Workbook

Sheet Summary

Sheet InputC
B2: Scenario Number | E2: 1
H4: 1 | I4: 2 | J4: 3 | K4: 4 | L4: 5 | M4: 6 | N4: 7 | O4: 8 | P4: 9 | Q4: 10
B5: Timing | F5: =INDEX(H5:Q5,$E$2) -> Base Case | H5: Base Case | I5: + Inflation | J5: + Inflation | K5: + Var OM | L5: - Var OM | M5: + Int Rate | N5: - Int Rate | O5: - Life | P5: + Life | Q5: Rev Share Pay
C6: Acquistion Date | E6: Date | F6: =INDEX(H6:Q6,$E$2) -> 2024-12-31 | H6: 2024-12-31 | I6: 2024-12-31 | J6: 2024-12-31 | K6: 2024-12-31 | L6: 2024-12-31 | M6: 2024-12-31 | N6: 2024-12-31 | O6: 2024-12-31 | P6: 2024-12-31 | Q6: 2024-12-31
C7: Life of Road | E7: Years | F7: =INDEX(H7:Q7,$E$2) -> 25 | H7: 25 | I7: 25 | J7: 25 | K7: 25 | L7: 25 | M7: 25 | N7: 25 | O7: 23 | P7: 27 | Q7: 25
C8: End of Life | E8: Date | F8: =INDEX(H8:Q8,$E$2) -> 2049-12-31 | H8: =EDATE(H6,(H7)*12) -> 2049-12-31 | I8: =EDATE(I6,(I7)*12) -> 2049-12-31 | J8: =EDATE(J6,(J7)*12) -> 2049-12-31 | K8: =EDATE(K6,(K7)*12) -> 2049-12-31 | L8: =EDATE(L6,(L7)*12) -> 2049-12-31 | M8: =EDATE(M6,(M7)*12) -> 2049-12-31 | N8: =EDATE(N6,(N7)*12) -> 2049-12-31 | O8: =EDATE(O6,(O7)*12) -> 2047-12-31 | P8: =EDATE(P6,(P7)*12) -> 2051-12-31 | Q8: =EDATE(Q6,(Q7)*12) -> 2049-12-31
C10: Sale Date | E10: Date | F10: =INDEX(H10:Q10,$E$2) -> 2030-12-31 | H10: 2030-12-31 | I10: 2030-12-31 | J10: 2030-12-31 | K10: 2030-12-31 | L10: 2030-12-31 | M10: 2030-12-31 | N10: 2030-12-31 | O10: 2030-12-31 | P10: 2030-12-31 | Q10: 2030-12-31
B12: Capacity and Volumes
C13: Capacity of Road | E13: km | F13: =INDEX(H13:Q13,$E$2) -> 50 | H13: 50 | I13: 50 | J13: 50 | K13: 50 | L13: 50 | M13: 50 | N13: 50 | O13: 50 | P13: 50 | Q13: 50
C15: Intial Car Traffic | E15: Cars/day | F15: =INDEX(H15:Q15,$E$2) -> 3500 | H15: 3500 | I15: 3500 | J15: 3500 | K15: 3500 | L15: 3500 | M15: 3500 | N15: 3500 | O15: 3500 | P15: 3500 | Q15: 3500
C16: Initial Trucks Traffic | E16: Cars/day | F16: =INDEX(H16:Q16,$E$2) -> 1500 | H16: 1500 | I16: 1500 | J16: 1500 | K16: 1500 | L16: 1500 | M16: 1500 | N16: 1500 | O16: 1500 | P16: 1500 | Q16: 1500
C18: Car volume Increase | E18: % p.a. | F18: =INDEX(H18:Q18,$E$2) -> 0.03 | H18: 0.03 | I18: 0.03 | J18: 0.03 | K18: 0.03 | L18: 0.03 | M18: 0.03 | N18: 0.03 | O18: 0.03 | P18: 0.03 | Q18: 0.03
C19: Truck Volume Increase | E19: % p.a. | F19: =INDEX(H19:Q19,$E$2) -> 0.02 | H19: 0.02 | I19: 0.02 | J19: 0.02 | K19: 0.02 | L19: 0.02 | M19: 0.02 | N19: 0.02 | O19: 0.02 | P19: 0.02 | Q19: 0.02
C21: Revernue Share Payable to Government | E21: Flag | F21: =INDEX(H21:Q21,$E$2) -> FALSE | H21: FALSE | I21: FALSE | J21: FALSE | K21: FALSE | L21: FALSE | M21: FALSE | N21: FALSE | O21: FALSE | P21: FALSE | Q21: TRUE
C22: Car Traffic Limit | E22: Cars/day | F22: =INDEX(H22:Q22,$E$2) -> 5000 | H22: 5000 | I22: 5000 | J22: 5000 | K22: 5000 | L22: 5000 | M22: 5000 | N22: 5000 | O22: 5000 | P22: 5000 | Q22: 5000
B24: Cap Exp, Revenues and Op Exp
C25: Initial Cap Exp | E25: USD | F25: =INDEX(H25:Q25,$E$2) -> 100000000 | H25: 100000000 | I25: 100000000 | J25: 100000000 | K25: 100000000 | L25: 100000000 | M25: 100000000 | N25: 100000000 | O25: 100000000 | P25: 100000000 | Q25: 100000000
C27: Marco - Inflation
D28: Inflation rate | E28: % p.a. | F28: =INDEX(H28:Q28,$E$2) -> 0.02 | H28: 0.02 | I28: 0.025 | J28: 0.015 | K28: 0.02 | L28: 0.02 | M28: 0.02 | N28: 0.02 | O28: 0.02 | P28: 0.02 | Q28: 0.02
D29: Start of Inflation | E29: Date | F29: =INDEX(H29:Q29,$E$2) -> 2026-01-01 | H29: 2026-01-01 | I29: 2026-01-01 | J29: 2026-01-01 | K29: 2026-01-01 | L29: 2026-01-01 | M29: 2026-01-01 | N29: 2026-01-01 | O29: 2026-01-01 | P29: 2026-01-01 | Q29: 2026-01-01
C31: Initial Toll Rates - Car | E31: USD/Car | F31: =INDEX(H31:Q31,$E$2) -> 5 | H31: 5 | I31: 5 | J31: 5 | K31: 5 | L31: 5 | M31: 5 | N31: 5 | O31: 5 | P31: 5 | Q31: 5
C32: Initial Toll Rates - Car | E32: USD/Car | F32: =INDEX(H32:Q32,$E$2) -> 3 | H32: 3 | I32: 3 | J32: 3 | K32: 3 | L32: 3 | M32: 3 | N32: 3 | O32: 3 | P32: 3 | Q32: 3
C33: Initial Toll Rates - Truck | E33: USD/Truck | F33: =INDEX(H33:Q33,$E$2) -> 10 | H33: 10 | I33: 10 | J33: 10 | K33: 10 | L33: 10 | M33: 10 | N33: 10 | O33: 10 | P33: 10 | Q33: 10
C35: Variable O&M | E35: USD/Vehicle | F35: =INDEX(H35:Q35,$E$2) -> 2 | H35: 2 | I35: 2 | J35: 2 | K35: =H35*1.1 -> 2.2 | L35: =H35*0.9 -> 1.8 | M35: 2 | N35: 2 | O35: 2 | P35: 2 | Q35: 2
C36: Fixed - Real 2025 | E36: USD/km - year | F36: =INDEX(H36:Q36,$E$2) -> 10000 | H36: 10000 | I36: 10000 | J36: 10000 | K36: 10000 | L36: 10000 | M36: 10000 | N36: 10000 | O36: 10000 | P36: 10000 | Q36: 10000
B38: Working Capital
C39: A/R Days | E39: Days | F39: =INDEX(H39:Q39,$E$2) -> 30 | H39: 30 | I39: 30 | J39: 30 | K39: 30 | L39: 30 | M39: 30 | N39: 30 | O39: 30 | P39: 30 | Q39: 30
C40: A/R Pct of Revenues | E40: % | F40: =INDEX(H40:Q40,$E$2) -> 0.08219178082 | H40: =H39/365 -> 0.08219178082 | I40: =I39/365 -> 0.08219178082 | J40: =J39/365 -> 0.08219178082 | K40: =K39/365 -> 0.08219178082 | L40: =L39/365 -> 0.08219178082 | M40: =M39/365 -> 0.08219178082 | N40: =N39/365 -> 0.08219178082 | O40: =O39/365 -> 0.08219178082 | P40: =P39/365 -> 0.08219178082 | Q40: =Q39/365 -> 0.08219178082
C42: A/P Days | E42: Days | F42: =INDEX(H42:Q42,$E$2) -> 60 | H42: 60 | I42: 60 | J42: 60 | K42: 60 | L42: 60 | M42: 60 | N42: 60 | O42: 60 | P42: 60 | Q42: 60
C43: A/P as Perent of Cost | E43: % | H43: =H42/365 -> 0.1643835616 | I43: =I42/365 -> 0.1643835616 | J43: =J42/365 -> 0.1643835616 | K43: =K42/365 -> 0.1643835616 | L43: =L42/365 -> 0.1643835616 | M43: =M42/365 -> 0.1643835616 | N43: =N42/365 -> 0.1643835616 | O43: =O42/365 -> 0.1643835616 | P43: =P42/365 -> 0.1643835616 | Q43: =Q42/365 -> 0.1643835616
B45: Tax and Depreciation
C46: Corporate Tax Rate | E46: % | F46: =INDEX(H46:Q46,$E$2) -> 0.2 | H46: 0.2 | I46: 0.2 | J46: 0.2 | K46: 0.2 | L46: 0.2 | M46: 0.2 | N46: 0.2 | O46: 0.2 | P46: 0.2 | Q46: 0.2
C47: Depreciation Life | E47: Years | F47: =INDEX(H47:Q47,$E$2) -> 20 | H47: 20 | I47: 20 | J47: 20 | K47: 20 | L47: 20 | M47: 20 | N47: 20 | O47: 20 | P47: 20 | Q47: 20
B49: Financing and Valuation
C50: DSCR Minimum | E50: x | F50: =INDEX(H50:Q50,$E$2) -> 1.35 | H50: 1.35 | I50: 1.35 | J50: 1.35 | K50: 1.35 | L50: 1.35 | M50: 1.35 | N50: 1.35 | O50: 1.35 | P50: 1.35 | Q50: 1.35
C51: Max Debt to Capital | E51: % | F51: =INDEX(H51:Q51,$E$2) -> 0.8 | H51: 0.8 | I51: 0.8 | J51: 0.8 | K51: 0.8 | L51: 0.8 | M51: 0.8 | N51: 0.8 | O51: 0.8 | P51: 0.8 | Q51: 0.8
C53: Tenure | E53: Years | F53: =INDEX(H53:Q53,$E$2) -> 15 | H53: 15 | I53: 15 | J53: 15 | K53: 15 | L53: 15 | M53: 15 | N53: 15 | O53: 15 | P53: 15 | Q53: 15
C54: Interest Rate | E54: % p.a. | F54: =INDEX(H54:Q54,$E$2) -> 0.03 | H54: 0.03 | I54: 0.03 | J54: 0.03 | K54: 0.03 | L54: 0.03 | M54: 0.03 | N54: 0.03 | O54: 0.03 | P54: 0.03 | Q54: 0.03
C55: Fees | E55: % | F55: =INDEX(H55:Q55,$E$2) -> 0.01 | H55: 0.01 | I55: 0.01 | J55: 0.01 | K55: 0.01 | L55: 0.01 | M55: 0.01 | N55: 0.01 | O55: 0.01 | P55: 0.01 | Q55: 0.01
C57: Target IRR | E57: % | F57: =INDEX(H57:Q57,$E$2) -> 0.08 | H57: 0.08 | I57: 0.08 | J57: 0.08 | K57: 0.08 | L57: 0.08 | M57: 0.08 | N57: 0.08 | O57: 0.08 | P57: 0.08 | Q57: 0.08

Sheet Model
B1: =InputC!F5 -> Base Case
B2: Timing | E2: Units for Input | F2: Constant | G2: Constant | H2: Units for Output | I2: Sum | J2: Initial | K2: 1 | L2: 2 | M2: 3 | N2: 4 | O2: 5 | P2: 6 | Q2: 7 | R2: 8 | S2: 9 | T2: 10 | U2: 11 | V2: 12 | W2: 13 | X2: 14 | Y2: 15 | Z2: 16 | AA2: 17 | AB2: 18 | AC2: 19 | AD2: 20 | AE2: 21 | AF2: 22 | AG2: 23 | AH2: 24 | AI2: 25 | AJ2: 26 | AK2: 27 | AL2: 28 | AM2: 29 | AN2: 30 | AO2: 31 | AP2: 32 | AQ2: 33 | AR2: 34 | AS2: 35 | AT2: 36 | AU2: 37 | AV2: 38 | AW2: 39 | AX2: 40 | AY2: 41 | AZ2: 42 | BA2: 43 | BB2: 44 | BC2: 45 | BD2: 46 | BE2: 47 | BF2: 48 | BG2: 49 | BH2: 50 | BI2: 51 | BJ2: 52 | BK2: 53 | BL2: 54 | BM2: 55 | BN2: 56 | BO2: 57 | BP2: 58 | BQ2: 59 | BR2: 60 | BS2: 61 | BT2: 62 | BU2: 63 | BV2: 64 | BW2: 65 | BX2: 66 | BY2: 67 | BZ2: 68 | CA2: 69 | CB2: 70
C3: Start of Period | K3: =J4+1 -> 2024-07-01 | L3: =K4+1 -> 2025-01-01 | M3: 2025-07-01 | N3: 2026-01-01 | O3: 2026-07-01 | P3: 2027-01-01 | Q3: 2027-07-01 | R3: 2028-01-01 | S3: 2028-07-01 | T3: 2029-01-01 | U3: 2029-07-01 | V3: 2030-01-01 | W3: 2030-07-01 | X3: 2031-01-01 | Y3: 2031-07-01 | Z3: 2032-01-01 | AA3: 2032-07-01 | AB3: 2033-01-01 | AC3: 2033-07-01 | AD3: 2034-01-01 | AE3: 2034-07-01 | AF3: 2035-01-01 | AG3: 2035-07-01 | AH3: 2036-01-01 | AI3: 2036-07-01 | AJ3: 2037-01-01 | AK3: 2037-07-01 | AL3: 2038-01-01 | AM3: 2038-07-01 | AN3: 2039-01-01 | AO3: 2039-07-01 | AP3: 2040-01-01 | AQ3: 2040-07-01 | AR3: 2041-01-01 | AS3: 2041-07-01 | AT3: 2042-01-01 | AU3: 2042-07-01 | AV3: 2043-01-01 | AW3: 2043-07-01 | AX3: 2044-01-01 | AY3: 2044-07-01 | AZ3: 2045-01-01 | BA3: 2045-07-01 | BB3: 2046-01-01 | BC3: 2046-07-01 | BD3: 2047-01-01 | BE3: 2047-07-01 | BF3: 2048-01-01 | BG3: 2048-07-01 | BH3: 2049-01-01 | BI3: 2049-07-01 | BJ3: 2050-01-01 | BK3: 2050-07-01 | BL3: 2051-01-01 | BM3: 2051-07-01 | BN3: 2052-01-01 | BO3: 2052-07-01 | BP3: 2053-01-01 | BQ3: 2053-07-01 | BR3: 2054-01-01 | BS3: 2054-07-01 | BT3: 2055-01-01 | BU3: 2055-07-01 | BV3: 2056-01-01 | BW3: 2056-07-01 | BX3: =BW4+1 -> 2057-01-01 | BY3: 2057-07-01 | BZ3: 2058-01-01 | CA3: 2058-07-01 | CB3: 2059-01-01
C4: End of Period | J4: =EDATE(InputC!F6,-6) -> 2024-06-30 | K4: =EDATE(K3,6)-1 -> 2024-12-31 | L4: =EDATE(L3,6)-1 -> 2025-06-30 | M4: 2025-12-31 | N4: 2026-06-30 | O4: 2026-12-31 | P4: 2027-06-30 | Q4: 2027-12-31 | R4: 2028-06-30 | S4: 2028-12-31 | T4: 2029-06-30 | U4: 2029-12-31 | V4: 2030-06-30 | W4: 2030-12-31 | X4: 2031-06-30 | Y4: 2031-12-31 | Z4: 2032-06-30 | AA4: 2032-12-31 | AB4: 2033-06-30 | AC4: 2033-12-31 | AD4: 2034-06-30 | AE4: 2034-12-31 | AF4: 2035-06-30 | AG4: 2035-12-31 | AH4: 2036-06-30 | AI4: 2036-12-31 | AJ4: 2037-06-30 | AK4: 2037-12-31 | AL4: 2038-06-30 | AM4: 2038-12-31 | AN4: 2039-06-30 | AO4: 2039-12-31 | AP4: 2040-06-30 | AQ4: 2040-12-31 | AR4: 2041-06-30 | AS4: 2041-12-31 | AT4: 2042-06-30 | AU4: 2042-12-31 | AV4: 2043-06-30 | AW4: 2043-12-31 | AX4: 2044-06-30 | AY4: 2044-12-31 | AZ4: 2045-06-30 | BA4: 2045-12-31 | BB4: 2046-06-30 | BC4: 2046-12-31 | BD4: 2047-06-30 | BE4: 2047-12-31 | BF4: 2048-06-30 | BG4: 2048-12-31 | BH4: 2049-06-30 | BI4: 2049-12-31 | BJ4: 2050-06-30 | BK4: 2050-12-31 | BL4: 2051-06-30 | BM4: 2051-12-31 | BN4: 2052-06-30 | BO4: 2052-12-31 | BP4: 2053-06-30 | BQ4: 2053-12-31 | BR4: 2054-06-30 | BS4: 2054-12-31 | BT4: 2055-06-30 | BU4: 2055-12-31 | BV4: 2056-06-30 | BW4: 2056-12-31 | BX4: =EDATE(BX3,6)-1 -> 2057-06-30 | BY4: 2057-12-31 | BZ4: 2058-06-30 | CA4: 2058-12-31 | CB4: 2059-06-30
C5: Acquisition Period | E5: Flag | F5: =InputC!F6 -> 2024-12-31 | H5: Flag | K5: =(K4=$F$5)*1 -> 1 | L5: =(L4=$F$5)*1 -> 0 | M5: 0 | N5: 0 | O5: 0 | P5: 0 | Q5: 0 | R5: 0 | S5: 0 | T5: 0 | U5: 0 | V5: 0 | W5: 0 | X5: 0 | Y5: 0 | Z5: 0 | AA5: 0 | AB5: 0 | AC5: 0 | AD5: 0 | AE5: 0 | AF5: 0 | AG5: 0 | AH5: 0 | AI5: 0 | AJ5: 0 | AK5: 0 | AL5: 0 | AM5: 0 | AN5: 0 | AO5: 0 | AP5: 0 | AQ5: 0 | AR5: 0 | AS5: 0 | AT5: 0 | AU5: 0 | AV5: 0 | AW5: 0 | AX5: 0 | AY5: 0 | AZ5: 0 | BA5: 0 | BB5: 0 | BC5: 0 | BD5: 0 | BE5: 0 | BF5: 0 | BG5: 0 | BH5: 0 | BI5: 0 | BJ5: 0 | BK5: 0 | BL5: 0 | BM5: 0 | BN5: 0 | BO5: 0 | BP5: 0 | BQ5: 0 | BR5: 0 | BS5: 0 | BT5: 0 | BU5: 0 | BV5: 0 | BW5: 0 | BX5: =(BX4=$F$5)*1 -> 0 | BY5: 0 | BZ5: 0 | CA5: 0 | CB5: 0
C6: Operation Perid | E6: Flag | F6: =InputC!F8 -> 2049-12-31 | H6: Flag | I6: =SUM(K6:XFD6) -> 50 | K6: =(AND(NOT(K5),K4<=$F$6))*1 -> 0 | L6: =(AND(NOT(L5),L4<=$F$6))*1 -> 1 | M6: 1 | N6: 1 | O6: 1 | P6: 1 | Q6: 1 | R6: 1 | S6: 1 | T6: 1 | U6: 1 | V6: 1 | W6: 1 | X6: 1 | Y6: 1 | Z6: 1 | AA6: 1 | AB6: 1 | AC6: 1 | AD6: 1 | AE6: 1 | AF6: 1 | AG6: 1 | AH6: 1 | AI6: 1 | AJ6: 1 | AK6: 1 | AL6: 1 | AM6: 1 | AN6: 1 | AO6: 1 | AP6: 1 | AQ6: 1 | AR6: 1 | AS6: 1 | AT6: 1 | AU6: 1 | AV6: 1 | AW6: 1 | AX6: 1 | AY6: 1 | AZ6: 1 | BA6: 1 | BB6: 1 | BC6: 1 | BD6: 1 | BE6: 1 | BF6: 1 | BG6: 1 | BH6: 1 | BI6: 1 | BJ6: 0 | BK6: 0 | BL6: 0 | BM6: 0 | BN6: 0 | BO6: 0 | BP6: 0 | BQ6: 0 | BR6: 0 | BS6: 0 | BT6: 0 | BU6: 0 | BV6: 0 | BW6: 0 | BX6: =(AND(NOT(BX5),BX4<=$F$6))*1 -> 0 | BY6: 0 | BZ6: 0 | CA6: 0 | CB6: 0
C7: Sale Date | E7: Flag | F7: =InputC!F10 -> 2030-12-31 | H7: Flag | I7: =SUM(K7:XFD7) -> 1 | K7: =(K4=$F$7)*1 -> 0 | L7: =(L4=$F$7)*1 -> 0 | M7: 0 | N7: 0 | O7: 0 | P7: 0 | Q7: 0 | R7: 0 | S7: 0 | T7: 0 | U7: 0 | V7: 0 | W7: 1 | X7: 0 | Y7: 0 | Z7: 0 | AA7: 0 | AB7: 0 | AC7: 0 | AD7: 0 | AE7: 0 | AF7: 0 | AG7: 0 | AH7: 0 | AI7: 0 | AJ7: 0 | AK7: 0 | AL7: 0 | AM7: 0 | AN7: 0 | AO7: 0 | AP7: 0 | AQ7: 0 | AR7: 0 | AS7: 0 | AT7: 0 | AU7: 0 | AV7: 0 | AW7: 0 | AX7: 0 | AY7: 0 | AZ7: 0 | BA7: 0 | BB7: 0 | BC7: 0 | BD7: 0 | BE7: 0 | BF7: 0 | BG7: 0 | BH7: 0 | BI7: 0 | BJ7: 0 | BK7: 0 | BL7: 0 | BM7: 0 | BN7: 0 | BO7: 0 | BP7: 0 | BQ7: 0 | BR7: 0 | BS7: 0 | BT7: 0 | BU7: 0 | BV7: 0 | BW7: 0 | BX7: =(BX4=$F$7)*1 -> 0 | BY7: 0 | BZ7: 0 | CA7: 0 | CB7: 0
C8: Days in Period | E8: Days | K8: =K4-K3+1 -> 184 | L8: =L4-L3+1 -> 181 | M8: 184 | N8: 181 | O8: 184 | P8: 181 | Q8: 184 | R8: 182 | S8: 184 | T8: 181 | U8: 184 | V8: 181 | W8: 184 | X8: 181 | Y8: 184 | Z8: 182 | AA8: 184 | AB8: 181 | AC8: 184 | AD8: 181 | AE8: 184 | AF8: 181 | AG8: 184 | AH8: 182 | AI8: 184 | AJ8: 181 | AK8: 184 | AL8: 181 | AM8: 184 | AN8: 181 | AO8: 184 | AP8: 182 | AQ8: 184 | AR8: 181 | AS8: 184 | AT8: 181 | AU8: 184 | AV8: 181 | AW8: 184 | AX8: 182 | AY8: 184 | AZ8: 181 | BA8: 184 | BB8: 181 | BC8: 184 | BD8: 181 | BE8: 184 | BF8: 182 | BG8: 184 | BH8: 181 | BI8: 184 | BJ8: 181 | BK8: 184 | BL8: 181 | BM8: 184 | BN8: 182 | BO8: 184 | BP8: 181 | BQ8: 184 | BR8: 181 | BS8: 184 | BT8: 181 | BU8: 184 | BV8: 182 | BW8: 184 | BX8: =BX4-BX3+1 -> 181 | BY8: 184 | BZ8: 181 | CA8: 184 | CB8: 181
B10: Capacity and Volumes
C11: Road Capacity | E11: km | F11: =InputC!F13 -> 50 | H11: km | K11: =$F11*K$6 -> 0 | L11: =$F11*L$6 -> 50 | M11: 50 | N11: 50 | O11: 50 | P11: 50 | Q11: 50 | R11: 50 | S11: 50 | T11: 50 | U11: 50 | V11: 50 | W11: 50 | X11: 50 | Y11: 50 | Z11: 50 | AA11: 50 | AB11: 50 | AC11: 50 | AD11: 50 | AE11: 50 | AF11: 50 | AG11: 50 | AH11: 50 | AI11: 50 | AJ11: 50 | AK11: 50 | AL11: 50 | AM11: 50 | AN11: 50 | AO11: 50 | AP11: 50 | AQ11: 50 | AR11: 50 | AS11: 50 | AT11: 50 | AU11: 50 | AV11: 50 | AW11: 50 | AX11: 50 | AY11: 50 | AZ11: 50 | BA11: 50 | BB11: 50 | BC11: 50 | BD11: 50 | BE11: 50 | BF11: 50 | BG11: 50 | BH11: 50 | BI11: 50 | BJ11: 0 | BK11: 0 | BL11: 0 | BM11: 0 | BN11: 0 | BO11: 0 | BP11: 0 | BQ11: 0 | BR11: 0 | BS11: 0 | BT11: 0 | BU11: 0 | BV11: 0 | BW11: 0 | BX11: =$F11*BX$6 -> 0 | BY11: 0 | BZ11: 0 | CA11: 0 | CB11: 0
C13: Car Volumes - Base | E13: Cars/Day | F13: =InputC!F15 -> 3500 | H13: Cars/Period | K13: =$F$13*K6*K8 -> 0 | L13: =$F$13*L6*L8 -> 633500 | M13: 644000 | N13: 633500 | O13: 644000 | P13: 633500 | Q13: 644000 | R13: 637000 | S13: 644000 | T13: 633500 | U13: 644000 | V13: 633500 | W13: 644000 | X13: 633500 | Y13: 644000 | Z13: 637000 | AA13: 644000 | AB13: 633500 | AC13: 644000 | AD13: 633500 | AE13: 644000 | AF13: 633500 | AG13: 644000 | AH13: 637000 | AI13: 644000 | AJ13: 633500 | AK13: 644000 | AL13: 633500 | AM13: 644000 | AN13: 633500 | AO13: 644000 | AP13: 637000 | AQ13: 644000 | AR13: 633500 | AS13: 644000 | AT13: 633500 | AU13: 644000 | AV13: 633500 | AW13: 644000 | AX13: 637000 | AY13: 644000 | AZ13: 633500 | BA13: 644000 | BB13: 633500 | BC13: 644000 | BD13: 633500 | BE13: 644000 | BF13: 637000 | BG13: 644000 | BH13: 633500 | BI13: 644000 | BJ13: 0 | BK13: 0 | BL13: 0 | BM13: 0 | BN13: 0 | BO13: 0 | BP13: 0 | BQ13: 0 | BR13: 0 | BS13: 0 | BT13: 0 | BU13: 0 | BV13: 0 | BW13: 0 | BX13: =$F$13*BX6*BX8 -> 0 | BY13: 0 | BZ13: 0 | CA13: 0 | CB13: 0
C14: Escalation Period | E14: Date | F14: =EDATE(F5,12)+1 -> 2026-01-01 | H14: Flag | K14: =(K3>=$F$14)*1 -> 0 | L14: =(L3>=$F$14)*1 -> 0 | M14: 0 | N14: 1 | O14: 1 | P14: 1 | Q14: 1 | R14: 1 | S14: 1 | T14: 1 | U14: 1 | V14: 1 | W14: 1 | X14: 1 | Y14: 1 | Z14: 1 | AA14: 1 | AB14: 1 | AC14: 1 | AD14: 1 | AE14: 1 | AF14: 1 | AG14: 1 | AH14: 1 | AI14: 1 | AJ14: 1 | AK14: 1 | AL14: 1 | AM14: 1 | AN14: 1 | AO14: 1 | AP14: 1 | AQ14: 1 | AR14: 1 | AS14: 1 | AT14: 1 | AU14: 1 | AV14: 1 | AW14: 1 | AX14: 1 | AY14: 1 | AZ14: 1 | BA14: 1 | BB14: 1 | BC14: 1 | BD14: 1 | BE14: 1 | BF14: 1 | BG14: 1 | BH14: 1 | BI14: 1 | BJ14: 1 | BK14: 1 | BL14: 1 | BM14: 1 | BN14: 1 | BO14: 1 | BP14: 1 | BQ14: 1 | BR14: 1 | BS14: 1 | BT14: 1 | BU14: 1 | BV14: 1 | BW14: 1 | BX14: =(BX3>=$F$14)*1 -> 1 | BY14: 1 | BZ14: 1 | CA14: 1 | CB14: 1
C15: Growth Index | E15: % p.a. | F15: =InputC!F18 -> 0.03 | G15: =(1+F15)^(1/2)-1 -> 0.01488915651 | H15: index | J15: 1 | K15: =J15*(1+$G$15*K14) -> 1 | L15: =K15*(1+$G$15*L14) -> 1 | M15: 1 | N15: 1.014889157 | O15: 1.03 | P15: 1.045335831 | Q15: 1.0609 | R15: 1.076695906 | S15: 1.092727 | T15: 1.108996783 | U15: 1.12550881 | V15: 1.142266687 | W15: 1.159274074 | X15: 1.176534687 | Y15: 1.194052297 | Z15: 1.211830728 | AA15: 1.229873865 | AB15: 1.24818565 | AC15: 1.266770081 | AD15: 1.285631219 | AE15: 1.304773184 | AF15: 1.324200156 | AG15: 1.343916379 | AH15: 1.363926161 | AI15: 1.384233871 | AJ15: 1.404843945 | AK15: 1.425760887 | AL15: 1.446989264 | AM15: 1.468533713 | AN15: 1.490398942 | AO15: 1.512589725 | AP15: 1.53511091 | AQ15: 1.557967417 | AR15: 1.581164237 | AS15: 1.604706439 | AT15: 1.628599164 | AU15: 1.652847632 | AV15: 1.677457139 | AW15: 1.702433061 | AX15: 1.727780854 | AY15: 1.753506053 | AZ15: 1.779614279 | BA15: 1.806111235 | BB15: 1.833002708 | BC15: 1.860294572 | BD15: 1.887992789 | BE15: 1.916103409 | BF15: 1.944632572 | BG15: 1.973586511 | BH15: 2.00297155 | BI15: 2.032794106 | BJ15: 2.063060696 | BK15: 2.09377793 | BL15: 2.124952517 | BM15: 2.156591268 | BN15: 2.188701092 | BO15: 2.221289006 | BP15: 2.254362125 | BQ15: 2.287927676 | BR15: 2.321992989 | BS15: 2.356565506 | BT15: 2.391652779 | BU15: 2.427262471 | BV15: 2.463402362 | BW15: 2.500080345 | BX15: =BW15*(1+$G$15*BX14) -> 2.537304433 | BY15: 2.575082756 | BZ15: 2.613423566 | CA15: 2.652335238 | CB15: 2.691826273
C16: Car Volumes with Growth | E16: Cars/Day | H16: Cars/Period | K16: =K15*K13 -> 0 | L16: =L15*L13 -> 633500 | M16: 644000 | N16: 642932.2806 | O16: 663320 | P16: 662220.2491 | Q16: 683219.6 | R16: 685855.2922 | S16: 703716.188 | T16: 702549.4622 | U16: 724827.6736 | V16: 723625.9461 | W16: 746572.5038 | X16: 745334.7245 | Y16: 768969.679 | Z16: 771936.1738 | AA16: 792038.7693 | AB16: 790725.6092 | AC16: 815799.9324 | AD16: 814447.3775 | AE16: 840273.9304 | AF16: 838880.7988 | AG16: 865482.1483 | AH16: 868820.9643 | AI16: 891446.6127 | AJ16: 889968.6395 | AK16: 918190.0111 | AL16: 916667.6986 | AM16: 945735.7115 | AN16: 944167.7296 | AO16: 974107.7828 | AP16: 977865.6497 | AQ16: 1003331.016 | AR16: 1001667.544 | AS16: 1033430.947 | AT16: 1031717.571 | AU16: 1064433.875 | AV16: 1062669.098 | AW16: 1096366.891 | AX16: 1100596.404 | AY16: 1129257.898 | AZ16: 1127385.646 | BA16: 1163135.635 | BB16: 1161207.215 | BC16: 1198029.704 | BD16: 1196043.432 | BE16: 1233970.595 | BF16: 1238730.949 | BG16: 1270989.713 | BH16: 1268882.477 | BI16: 1309119.405 | BJ16: 0 | BK16: 0 | BL16: 0 | BM16: 0 | BN16: 0 | BO16: 0 | BP16: 0 | BQ16: 0 | BR16: 0 | BS16: 0 | BT16: 0 | BU16: 0 | BV16: 0 | BW16: 0 | BX16: =BX15*BX13 -> 0 | BY16: 0 | BZ16: 0 | CA16: 0 | CB16: 0
C18: Truck Volumes - Base | E18: Trucks/Day | F18: =InputC!F16 -> 1500 | H18: Trucks/Period | K18: =$F$18*K6*K8 -> 0 | L18: =$F$18*L6*L8 -> 271500 | M18: 276000 | N18: 271500 | O18: 276000 | P18: 271500 | Q18: 276000 | R18: 273000 | S18: 276000 | T18: 271500 | U18: 276000 | V18: 271500 | W18: 276000 | X18: 271500 | Y18: 276000 | Z18: 273000 | AA18: 276000 | AB18: 271500 | AC18: 276000 | AD18: 271500 | AE18: 276000 | AF18: 271500 | AG18: 276000 | AH18: 273000 | AI18: 276000 | AJ18: 271500 | AK18: 276000 | AL18: 271500 | AM18: 276000 | AN18: 271500 | AO18: 276000 | AP18: 273000 | AQ18: 276000 | AR18: 271500 | AS18: 276000 | AT18: 271500 | AU18: 276000 | AV18: 271500 | AW18: 276000 | AX18: 273000 | AY18: 276000 | AZ18: 271500 | BA18: 276000 | BB18: 271500 | BC18: 276000 | BD18: 271500 | BE18: 276000 | BF18: 273000 | BG18: 276000 | BH18: 271500 | BI18: 276000 | BJ18: 0 | BK18: 0 | BL18: 0 | BM18: 0 | BN18: 0 | BO18: 0 | BP18: 0 | BQ18: 0 | BR18: 0 | BS18: 0 | BT18: 0 | BU18: 0 | BV18: 0 | BW18: 0 | BX18: =$F$18*BX6*BX8 -> 0 | BY18: 0 | BZ18: 0 | CA18: 0 | CB18: 0
C19: Growth Index | E19: % p.a. | F19: =InputC!F19 -> 0.02 | G19: =(1+F19)^(1/2)-1 -> 0.009950493836 | H19: index | J19: 1 | K19: =J19*(1+$G$19*K14) -> 1 | L19: =K19*(1+$G$19*L14) -> 1 | M19: 1 | N19: 1.009950494 | O19: 1.02 | P19: 1.030149504 | Q19: 1.0404 | R19: 1.050752494 | S19: 1.061208 | T19: 1.071767544 | U19: 1.08243216 | V19: 1.093202895 | W19: 1.104080803 | X19: 1.115066952 | Y19: 1.126162419 | Z19: 1.137368291 | AA19: 1.148685668 | AB19: 1.160115657 | AC19: 1.171659381 | AD19: 1.18331797 | AE19: 1.195092569 | AF19: 1.20698433 | AG19: 1.21899442 | AH19: 1.231124016 | AI19: 1.243374308 | AJ19: 1.255746497 | AK19: 1.268241795 | AL19: 1.280861427 | AM19: 1.29360663 | AN19: 1.306478655 | AO19: 1.319478763 | AP19: 1.332608228 | AQ19: 1.345868338 | AR19: 1.359260393 | AS19: 1.372785705 | AT19: 1.386445601 | AU19: 1.400241419 | AV19: 1.414174513 | AW19: 1.428246248 | AX19: 1.442458003 | AY19: 1.456811173 | AZ19: 1.471307163 | BA19: 1.485947396 | BB19: 1.500733306 | BC19: 1.515666344 | BD19: 1.530747973 | BE19: 1.545979671 | BF19: 1.561362932 | BG19: 1.576899264 | BH19: 1.592590191 | BI19: 1.608437249 | BJ19: 1.624441994 | BK19: 1.640605994 | BL19: 1.656930834 | BM19: 1.673418114 | BN19: 1.690069451 | BO19: 1.706886477 | BP19: 1.72387084 | BQ19: 1.741024206 | BR19: 1.758348257 | BS19: 1.77584469 | BT19: 1.793515222 | BU19: 1.811361584 | BV19: 1.829385526 | BW19: 1.847588816 | BX19: =BW19*(1+$G$19*BX14) -> 1.865973237 | BY19: 1.884540592 | BZ19: 1.903292702 | CA19: 1.922231404 | CB19: 1.941358556
C20: Truck Volumes with Growth | E20: Trucks/Day | H20: Trucks/Period | K20: =K19*K18 -> 0 | L20: =L19*L18 -> 271500 | M20: 276000 | N20: 274201.5591 | O20: 281520 | P20: 279685.5903 | Q20: 287150.4 | R20: 286855.4308 | S20: 292893.408 | T20: 290984.8881 | U20: 298751.2762 | V20: 296804.5859 | W20: 304726.3017 | X20: 302740.6776 | Y20: 310820.8277 | Z20: 310501.5436 | AA20: 317037.2443 | AB20: 314971.401 | AC20: 323377.9892 | AD20: 321270.829 | AE20: 329845.5489 | AF20: 327696.2456 | AG20: 336442.4599 | AH20: 336096.8565 | AI20: 343171.3091 | AJ20: 340935.1739 | AK20: 350034.7353 | AL20: 347753.8774 | AM20: 357035.43 | AN20: 354708.9549 | AO20: 364176.1386 | AP20: 363802.0463 | AQ20: 371459.6614 | AR20: 369039.1967 | AS20: 378888.8546 | AT20: 376419.9806 | AU20: 386466.6317 | AV20: 383948.3802 | AW20: 394195.9643 | AX20: 393791.0348 | AY20: 402079.8836 | AZ20: 399459.8948 | BA20: 410121.4813 | BB20: 407449.0927 | BC20: 418323.9109 | BD20: 415598.0745 | BE20: 426690.3891 | BF20: 426252.0804 | BG20: 435224.1969 | BH20: 432388.2367 | BI20: 443928.6809 | BJ20: 0 | BK20: 0 | BL20: 0 | BM20: 0 | BN20: 0 | BO20: 0 | BP20: 0 | BQ20: 0 | BR20: 0 | BS20: 0 | BT20: 0 | BU20: 0 | BV20: 0 | BW20: 0 | BX20: =BX19*BX18 -> 0 | BY20: 0 | BZ20: 0 | CA20: 0 | CB20: 0
C22: Total Vehicles per Period | E22: Vehicles | K22: =K20+K16 -> 0 | L22: =L20+L16 -> 905000 | M22: 920000 | N22: 917133.8397 | O22: 944840 | P22: 941905.8393 | Q22: 970370 | R22: 972710.723 | S22: 996609.596 | T22: 993534.3503 | U22: 1023578.95 | V22: 1020430.532 | W22: 1051298.806 | X22: 1048075.402 | Y22: 1079790.507 | Z22: 1082437.717 | AA22: 1109076.014 | AB22: 1105697.01 | AC22: 1139177.922 | AD22: 1135718.206 | AE22: 1170119.479 | AF22: 1166577.044 | AG22: 1201924.608 | AH22: 1204917.821 | AI22: 1234617.922 | AJ22: 1230903.813 | AK22: 1268224.746 | AL22: 1264421.576 | AM22: 1302771.141 | AN22: 1298876.685 | AO22: 1338283.921 | AP22: 1341667.696 | AQ22: 1374790.678 | AR22: 1370706.741 | AS22: 1412319.801 | AT22: 1408137.551 | AU22: 1450900.507 | AV22: 1446617.478 | AW22: 1490562.856 | AX22: 1494387.439 | AY22: 1531337.782 | AZ22: 1526845.541 | BA22: 1573257.116 | BB22: 1568656.308 | BC22: 1616353.615 | BD22: 1611641.506 | BE22: 1660660.984 | BF22: 1664983.029 | BG22: 1706213.91 | BH22: 1701270.713 | BI22: 1753048.085 | BJ22: 0 | BK22: 0 | BL22: 0 | BM22: 0 | BN22: 0 | BO22: 0 | BP22: 0 | BQ22: 0 | BR22: 0 | BS22: 0 | BT22: 0 | BU22: 0 | BV22: 0 | BW22: 0 | BX22: =BX20+BX16 -> 0 | BY22: 0 | BZ22: 0 | CA22: 0 | CB22: 0
C24: Total Car Volumes | E24: Cars | H24: Cars/Period | K24: =K16 -> 0 | L24: =L16 -> 633500 | M24: 644000 | N24: 642932.2806 | O24: 663320 | P24: 662220.2491 | Q24: 683219.6 | R24: 685855.2922 | S24: 703716.188 | T24: 702549.4622 | U24: 724827.6736 | V24: 723625.9461 | W24: 746572.5038 | X24: 745334.7245 | Y24: 768969.679 | Z24: 771936.1738 | AA24: 792038.7693 | AB24: 790725.6092 | AC24: 815799.9324 | AD24: 814447.3775 | AE24: 840273.9304 | AF24: 838880.7988 | AG24: 865482.1483 | AH24: 868820.9643 | AI24: 891446.6127 | AJ24: 889968.6395 | AK24: 918190.0111 | AL24: 916667.6986 | AM24: 945735.7115 | AN24: 944167.7296 | AO24: 974107.7828 | AP24: 977865.6497 | AQ24: 1003331.016 | AR24: 1001667.544 | AS24: 1033430.947 | AT24: 1031717.571 | AU24: 1064433.875 | AV24: 1062669.098 | AW24: 1096366.891 | AX24: 1100596.404 | AY24: 1129257.898 | AZ24: 1127385.646 | BA24: 1163135.635 | BB24: 1161207.215 | BC24: 1198029.704 | BD24: 1196043.432 | BE24: 1233970.595 | BF24: 1238730.949 | BG24: 1270989.713 | BH24: 1268882.477 | BI24: 1309119.405 | BJ24: 0 | BK24: 0 | BL24: 0 | BM24: 0 | BN24: 0 | BO24: 0 | BP24: 0 | BQ24: 0 | BR24: 0 | BS24: 0 | BT24: 0 | BU24: 0 | BV24: 0 | BW24: 0 | BX24: =BX16 -> 0 | BY24: 0 | BZ24: 0 | CA24: 0 | CB24: 0
C25: Maximum Volumes | E25: Cars | F25: =InputC!F22 -> 5000 | H25: Cars/Day | K25: =$F$25 -> 5000 | L25: =$F$25 -> 5000 | M25: 5000 | N25: 5000 | O25: 5000 | P25: 5000 | Q25: 5000 | R25: 5000 | S25: 5000 | T25: 5000 | U25: 5000 | V25: 5000 | W25: 5000 | X25: 5000 | Y25: 5000 | Z25: 5000 | AA25: 5000 | AB25: 5000 | AC25: 5000 | AD25: 5000 | AE25: 5000 | AF25: 5000 | AG25: 5000 | AH25: 5000 | AI25: 5000 | AJ25: 5000 | AK25: 5000 | AL25: 5000 | AM25: 5000 | AN25: 5000 | AO25: 5000 | AP25: 5000 | AQ25: 5000 | AR25: 5000 | AS25: 5000 | AT25: 5000 | AU25: 5000 | AV25: 5000 | AW25: 5000 | AX25: 5000 | AY25: 5000 | AZ25: 5000 | BA25: 5000 | BB25: 5000 | BC25: 5000 | BD25: 5000 | BE25: 5000 | BF25: 5000 | BG25: 5000 | BH25: 5000 | BI25: 5000 | BJ25: 5000 | BK25: 5000 | BL25: 5000 | BM25: 5000 | BN25: 5000 | BO25: 5000 | BP25: 5000 | BQ25: 5000 | BR25: 5000 | BS25: 5000 | BT25: 5000 | BU25: 5000 | BV25: 5000 | BW25: 5000 | BX25: =$F$25 -> 5000 | BY25: 5000 | BZ25: 5000 | CA25: 5000 | CB25: 5000
C26: Volumes Capped | E26: Cars | H26: Cars/Period | K26: =K25*K8*K6 -> 0 | L26: =L25*L8*L6 -> 905000 | M26: 920000 | N26: 905000 | O26: 920000 | P26: 905000 | Q26: 920000 | R26: 910000 | S26: 920000 | T26: 905000 | U26: 920000 | V26: 905000 | W26: 920000 | X26: 905000 | Y26: 920000 | Z26: 910000 | AA26: 920000 | AB26: 905000 | AC26: 920000 | AD26: 905000 | AE26: 920000 | AF26: 905000 | AG26: 920000 | AH26: 910000 | AI26: 920000 | AJ26: 905000 | AK26: 920000 | AL26: 905000 | AM26: 920000 | AN26: 905000 | AO26: 920000 | AP26: 910000 | AQ26: 920000 | AR26: 905000 | AS26: 920000 | AT26: 905000 | AU26: 920000 | AV26: 905000 | AW26: 920000 | AX26: 910000 | AY26: 920000 | AZ26: 905000 | BA26: 920000 | BB26: 905000 | BC26: 920000 | BD26: 905000 | BE26: 920000 | BF26: 910000 | BG26: 920000 | BH26: 905000 | BI26: 920000 | BJ26: 0 | BK26: 0 | BL26: 0 | BM26: 0 | BN26: 0 | BO26: 0 | BP26: 0 | BQ26: 0 | BR26: 0 | BS26: 0 | BT26: 0 | BU26: 0 | BV26: 0 | BW26: 0 | BX26: =BX25*BX8*BX6 -> 0 | BY26: 0 | BZ26: 0 | CA26: 0 | CB26: 0
C27: Volumes at Rev Share | E27: Cars | F27: =InputC!F21 -> FALSE | H27: Cars/Period | K27: =IF($F$27,MAX(K24-K26,0),0) -> 0 | L27: =IF($F$27,MAX(L24-L26,0),0) -> 0 | M27: 0 | N27: 0 | O27: 0 | P27: 0 | Q27: 0 | R27: 0 | S27: 0 | T27: 0 | U27: 0 | V27: 0 | W27: 0 | X27: 0 | Y27: 0 | Z27: 0 | AA27: 0 | AB27: 0 | AC27: 0 | AD27: 0 | AE27: 0 | AF27: 0 | AG27: 0 | AH27: 0 | AI27: 0 | AJ27: 0 | AK27: 0 | AL27: 0 | AM27: 0 | AN27: 0 | AO27: 0 | AP27: 0 | AQ27: 0 | AR27: 0 | AS27: 0 | AT27: 0 | AU27: 0 | AV27: 0 | AW27: 0 | AX27: 0 | AY27: 0 | AZ27: 0 | BA27: 0 | BB27: 0 | BC27: 0 | BD27: 0 | BE27: 0 | BF27: 0 | BG27: 0 | BH27: 0 | BI27: 0 | BJ27: 0 | BK27: 0 | BL27: 0 | BM27: 0 | BN27: 0 | BO27: 0 | BP27: 0 | BQ27: 0 | BR27: 0 | BS27: 0 | BT27: 0 | BU27: 0 | BV27: 0 | BW27: 0 | BX27: =IF($F$27,MAX(BX24-BX26,0),0) -> 0 | BY27: 0 | BZ27: 0 | CA27: 0 | CB27: 0
C28: Volumes without Cap | E28: Cars | H28: Cars/Period | K28: =K24-K27 -> 0 | L28: =L24-L27 -> 633500 | M28: 644000 | N28: 642932.2806 | O28: 663320 | P28: 662220.2491 | Q28: 683219.6 | R28: 685855.2922 | S28: 703716.188 | T28: 702549.4622 | U28: 724827.6736 | V28: 723625.9461 | W28: 746572.5038 | X28: 745334.7245 | Y28: 768969.679 | Z28: 771936.1738 | AA28: 792038.7693 | AB28: 790725.6092 | AC28: 815799.9324 | AD28: 814447.3775 | AE28: 840273.9304 | AF28: 838880.7988 | AG28: 865482.1483 | AH28: 868820.9643 | AI28: 891446.6127 | AJ28: 889968.6395 | AK28: 918190.0111 | AL28: 916667.6986 | AM28: 945735.7115 | AN28: 944167.7296 | AO28: 974107.7828 | AP28: 977865.6497 | AQ28: 1003331.016 | AR28: 1001667.544 | AS28: 1033430.947 | AT28: 1031717.571 | AU28: 1064433.875 | AV28: 1062669.098 | AW28: 1096366.891 | AX28: 1100596.404 | AY28: 1129257.898 | AZ28: 1127385.646 | BA28: 1163135.635 | BB28: 1161207.215 | BC28: 1198029.704 | BD28: 1196043.432 | BE28: 1233970.595 | BF28: 1238730.949 | BG28: 1270989.713 | BH28: 1268882.477 | BI28: 1309119.405 | BJ28: 0 | BK28: 0 | BL28: 0 | BM28: 0 | BN28: 0 | BO28: 0 | BP28: 0 | BQ28: 0 | BR28: 0 | BS28: 0 | BT28: 0 | BU28: 0 | BV28: 0 | BW28: 0 | BX28: =BX24-BX27 -> 0 | BY28: 0 | BZ28: 0 | CA28: 0 | CB28: 0
B30: Revenues, Expensea and Cap Exp
C31: Cap Exp/headline Investment | E31: USD | F31: 147385583.7 | G31: headline | I31: =SUM(J31:XFD31) -> 147385583.7 | J31: =$F$31*J5 -> 0 | K31: =$F$31*K5 -> 147385583.7 | L31: 0 | M31: 0 | N31: 0 | O31: 0 | P31: 0 | Q31: 0 | R31: 0 | S31: 0 | T31: 0 | U31: 0 | V31: 0 | W31: 0 | X31: 0 | Y31: 0 | Z31: 0 | AA31: 0 | AB31: 0 | AC31: 0 | AD31: 0 | AE31: 0 | AF31: 0 | AG31: 0 | AH31: 0 | AI31: 0 | AJ31: 0 | AK31: 0 | AL31: 0 | AM31: 0 | AN31: 0 | AO31: 0 | AP31: 0 | AQ31: 0 | AR31: 0 | AS31: 0 | AT31: 0 | AU31: 0 | AV31: 0 | AW31: 0 | AX31: 0 | AY31: 0 | AZ31: 0 | BA31: 0 | BB31: 0 | BC31: 0 | BD31: 0 | BE31: 0 | BF31: 0 | BG31: 0 | BH31: 0 | BI31: 0 | BJ31: 0 | BK31: 0 | BL31: 0 | BM31: 0 | BN31: 0 | BO31: 0 | BP31: 0 | BQ31: 0 | BR31: 0 | BS31: 0 | BT31: 0 | BU31: 0 | BV31: 0 | BW31: =$F$31*BW5 -> 0 | BX31: 0 | BY31: 0 | BZ31: 0 | CA31: 0 | CB31: 0
C33: Car Tolls
D34: Real Toll Rate | E34: USD/Car | F34: 5 | K34: =$F$34 -> 5 | L34: =$F$34 -> 5 | M34: 5 | N34: 5 | O34: 5 | P34: 5 | Q34: 5 | R34: 5 | S34: 5 | T34: 5 | U34: 5 | V34: 5 | W34: 5 | X34: 5 | Y34: 5 | Z34: 5 | AA34: 5 | AB34: 5 | AC34: 5 | AD34: 5 | AE34: 5 | AF34: 5 | AG34: 5 | AH34: 5 | AI34: 5 | AJ34: 5 | AK34: 5 | AL34: 5 | AM34: 5 | AN34: 5 | AO34: 5 | AP34: 5 | AQ34: 5 | AR34: 5 | AS34: 5 | AT34: 5 | AU34: 5 | AV34: 5 | AW34: 5 | AX34: 5 | AY34: 5 | AZ34: 5 | BA34: 5 | BB34: 5 | BC34: 5 | BD34: 5 | BE34: 5 | BF34: 5 | BG34: 5 | BH34: 5 | BI34: 5 | BJ34: 5 | BK34: 5 | BL34: 5 | BM34: 5 | BN34: 5 | BO34: 5 | BP34: 5 | BQ34: 5 | BR34: 5 | BS34: 5 | BT34: 5 | BU34: 5 | BV34: 5 | BW34: 5 | BX34: =$F$34 -> 5 | BY34: 5 | BZ34: 5 | CA34: 5 | CB34: 5
D35: Inflation Applied | E35: Date | F35: =InputC!F29 -> 2026-01-01 | H35: Flag | K35: =(K3>=$F$35)*1 -> 0 | L35: =(L3>=$F$35)*1 -> 0 | M35: 0 | N35: 1 | O35: 1 | P35: 1 | Q35: 1 | R35: 1 | S35: 1 | T35: 1 | U35: 1 | V35: 1 | W35: 1 | X35: 1 | Y35: 1 | Z35: 1 | AA35: 1 | AB35: 1 | AC35: 1 | AD35: 1 | AE35: 1 | AF35: 1 | AG35: 1 | AH35: 1 | AI35: 1 | AJ35: 1 | AK35: 1 | AL35: 1 | AM35: 1 | AN35: 1 | AO35: 1 | AP35: 1 | AQ35: 1 | AR35: 1 | AS35: 1 | AT35: 1 | AU35: 1 | AV35: 1 | AW35: 1 | AX35: 1 | AY35: 1 | AZ35: 1 | BA35: 1 | BB35: 1 | BC35: 1 | BD35: 1 | BE35: 1 | BF35: 1 | BG35: 1 | BH35: 1 | BI35: 1 | BJ35: 1 | BK35: 1 | BL35: 1 | BM35: 1 | BN35: 1 | BO35: 1 | BP35: 1 | BQ35: 1 | BR35: 1 | BS35: 1 | BT35: 1 | BU35: 1 | BV35: 1 | BW35: 1 | BX35: =(BX3>=$F$35)*1 -> 1 | BY35: 1 | BZ35: 1 | CA35: 1 | CB35: 1
D36: Inflation Index | E36: % p.a. | F36: =InputC!F28 -> 0.02 | G36: =(1+F36)^(1/2)-1 -> 0.009950493836 | H36: Index | J36: 1 | K36: =J36*(1+$G$36*K35) -> 1 | L36: =K36*(1+$G$36*L35) -> 1 | M36: 1 | N36: 1.009950494 | O36: 1.02 | P36: 1.030149504 | Q36: 1.0404 | R36: 1.050752494 | S36: 1.061208 | T36: 1.071767544 | U36: 1.08243216 | V36: 1.093202895 | W36: 1.104080803 | X36: 1.115066952 | Y36: 1.126162419 | Z36: 1.137368291 | AA36: 1.148685668 | AB36: 1.160115657 | AC36: 1.171659381 | AD36: 1.18331797 | AE36: 1.195092569 | AF36: 1.20698433 | AG36: 1.21899442 | AH36: 1.231124016 | AI36: 1.243374308 | AJ36: 1.255746497 | AK36: 1.268241795 | AL36: 1.280861427 | AM36: 1.29360663 | AN36: 1.306478655 | AO36: 1.319478763 | AP36: 1.332608228 | AQ36: 1.345868338 | AR36: 1.359260393 | AS36: 1.372785705 | AT36: 1.386445601 | AU36: 1.400241419 | AV36: 1.414174513 | AW36: 1.428246248 | AX36: 1.442458003 | AY36: 1.456811173 | AZ36: 1.471307163 | BA36: 1.485947396 | BB36: 1.500733306 | BC36: 1.515666344 | BD36: 1.530747973 | BE36: 1.545979671 | BF36: 1.561362932 | BG36: 1.576899264 | BH36: 1.592590191 | BI36: 1.608437249 | BJ36: 1.624441994 | BK36: 1.640605994 | BL36: 1.656930834 | BM36: 1.673418114 | BN36: 1.690069451 | BO36: 1.706886477 | BP36: 1.72387084 | BQ36: 1.741024206 | BR36: 1.758348257 | BS36: 1.77584469 | BT36: 1.793515222 | BU36: 1.811361584 | BV36: 1.829385526 | BW36: 1.847588816 | BX36: =BW36*(1+$G$36*BX35) -> 1.865973237 | BY36: 1.884540592 | BZ36: 1.903292702 | CA36: 1.922231404 | CB36: 1.941358556
D37: Inflated Toll Rate | E37: USD/Car | K37: =K34*K36 -> 5 | L37: =L34*L36 -> 5 | M37: 5 | N37: 5.049752469 | O37: 5.1 | P37: 5.150747519 | Q37: 5.202 | R37: 5.253762469 | S37: 5.30604 | T37: 5.358837718 | U37: 5.4121608 | V37: 5.466014473 | W37: 5.520404016 | X37: 5.575334762 | Y37: 5.630812096 | Z37: 5.686841457 | AA37: 5.743428338 | AB37: 5.800578287 | AC37: 5.858296905 | AD37: 5.916589852 | AE37: 5.975462843 | AF37: 6.034921649 | AG37: 6.0949721 | AH37: 6.155620082 | AI37: 6.216871542 | AJ37: 6.278732484 | AK37: 6.341208973 | AL37: 6.404307134 | AM37: 6.468033152 | AN37: 6.532393276 | AO37: 6.597393815 | AP37: 6.663041142 | AQ37: 6.729341692 | AR37: 6.796301965 | AS37: 6.863928525 | AT37: 6.932228004 | AU37: 7.001207096 | AV37: 7.070872564 | AW37: 7.141231238 | AX37: 7.212290015 | AY37: 7.284055863 | AZ37: 7.356535816 | BA37: 7.42973698 | BB37: 7.503666532 | BC37: 7.578331719 | BD37: 7.653739863 | BE37: 7.729898354 | BF37: 7.80681466 | BG37: 7.884496321 | BH37: 7.962950953 | BI37: 8.042186247 | BJ37: 8.122209972 | BK37: 8.203029972 | BL37: 8.284654172 | BM37: 8.367090572 | BN37: 8.450347255 | BO37: 8.534432383 | BP37: 8.6193542 | BQ37: 8.705121031 | BR37: 8.791741284 | BS37: 8.879223451 | BT37: 8.96757611 | BU37: 9.056807921 | BV37: 9.146927632 | BW37: 9.237944079 | BX37: =BX34*BX36 -> 9.329866185 | BY37: 9.422702961 | BZ37: 9.516463508 | CA37: 9.61115702 | CB37: 9.706792778
D38: Capped Toll Rate | E38: USD/Car | F38: =InputC!F32 -> 3 | K38: =$F$38*K36 -> 3 | L38: =$F$38*L36 -> 3 | M38: 3 | N38: 3.029851482 | O38: 3.06 | P38: 3.090448511 | Q38: 3.1212 | R38: 3.152257481 | S38: 3.183624 | T38: 3.215302631 | U38: 3.24729648 | V38: 3.279608684 | W38: 3.31224241 | X38: 3.345200857 | Y38: 3.378487258 | Z38: 3.412104874 | AA38: 3.446057003 | AB38: 3.480346972 | AC38: 3.514978143 | AD38: 3.549953911 | AE38: 3.585277706 | AF38: 3.62095299 | AG38: 3.65698326 | AH38: 3.693372049 | AI38: 3.730122925 | AJ38: 3.76723949 | AK38: 3.804725384 | AL38: 3.84258428 | AM38: 3.880819891 | AN38: 3.919435966 | AO38: 3.958436289 | AP38: 3.997824685 | AQ38: 4.037605015 | AR38: 4.077781179 | AS38: 4.118357115 | AT38: 4.159336802 | AU38: 4.200724258 | AV38: 4.242523538 | AW38: 4.284738743 | AX38: 4.327374009 | AY38: 4.370433518 | AZ38: 4.413921489 | BA38: 4.457842188 | BB38: 4.502199919 | BC38: 4.546999032 | BD38: 4.592243918 | BE38: 4.637939012 | BF38: 4.684088796 | BG38: 4.730697793 | BH38: 4.777770572 | BI38: 4.825311748 | BJ38: 4.873325983 | BK38: 4.921817983 | BL38: 4.970792503 | BM38: 5.020254343 | BN38: 5.070208353 | BO38: 5.12065943 | BP38: 5.17161252 | BQ38: 5.223072619 | BR38: 5.27504477 | BS38: 5.327534071 | BT38: 5.380545666 | BU38: 5.434084752 | BV38: 5.488156579 | BW38: 5.542766447 | BX38: =$F$38*BX36 -> 5.597919711 | BY38: 5.653621776 | BZ38: 5.709878105 | CA38: 5.766694212 | CB38: 5.824075667
D40: Volumes with witout Cap | E40: Cars/Period | G40: Cars/Period | K40: =K28 -> 0 | L40: =L28 -> 633500 | M40: 644000 | N40: 642932.2806 | O40: 663320 | P40: 662220.2491 | Q40: 683219.6 | R40: 685855.2922 | S40: 703716.188 | T40: 702549.4622 | U40: 724827.6736 | V40: 723625.9461 | W40: 746572.5038 | X40: 745334.7245 | Y40: 768969.679 | Z40: 771936.1738 | AA40: 792038.7693 | AB40: 790725.6092 | AC40: 815799.9324 | AD40: 814447.3775 | AE40: 840273.9304 | AF40: 838880.7988 | AG40: 865482.1483 | AH40: 868820.9643 | AI40: 891446.6127 | AJ40: 889968.6395 | AK40: 918190.0111 | AL40: 916667.6986 | AM40: 945735.7115 | AN40: 944167.7296 | AO40: 974107.7828 | AP40: 977865.6497 | AQ40: 1003331.016 | AR40: 1001667.544 | AS40: 1033430.947 | AT40: 1031717.571 | AU40: 1064433.875 | AV40: 1062669.098 | AW40: 1096366.891 | AX40: 1100596.404 | AY40: 1129257.898 | AZ40: 1127385.646 | BA40: 1163135.635 | BB40: 1161207.215 | BC40: 1198029.704 | BD40: 1196043.432 | BE40: 1233970.595 | BF40: 1238730.949 | BG40: 1270989.713 | BH40: 1268882.477 | BI40: 1309119.405 | BJ40: 0 | BK40: 0 | BL40: 0 | BM40: 0 | BN40: 0 | BO40: 0 | BP40: 0 | BQ40: 0 | BR40: 0 | BS40: 0 | BT40: 0 | BU40: 0 | BV40: 0 | BW40: 0 | BX40: =BX28 -> 0 | BY40: 0 | BZ40: 0 | CA40: 0 | CB40: 0
D41: Volumes at Capped Rate | E41: Cars/Period | G41: Cars/Period | K41: =K27 -> 0 | L41: =L27 -> 0 | M41: 0 | N41: 0 | O41: 0 | P41: 0 | Q41: 0 | R41: 0 | S41: 0 | T41: 0 | U41: 0 | V41: 0 | W41: 0 | X41: 0 | Y41: 0 | Z41: 0 | AA41: 0 | AB41: 0 | AC41: 0 | AD41: 0 | AE41: 0 | AF41: 0 | AG41: 0 | AH41: 0 | AI41: 0 | AJ41: 0 | AK41: 0 | AL41: 0 | AM41: 0 | AN41: 0 | AO41: 0 | AP41: 0 | AQ41: 0 | AR41: 0 | AS41: 0 | AT41: 0 | AU41: 0 | AV41: 0 | AW41: 0 | AX41: 0 | AY41: 0 | AZ41: 0 | BA41: 0 | BB41: 0 | BC41: 0 | BD41: 0 | BE41: 0 | BF41: 0 | BG41: 0 | BH41: 0 | BI41: 0 | BJ41: 0 | BK41: 0 | BL41: 0 | BM41: 0 | BN41: 0 | BO41: 0 | BP41: 0 | BQ41: 0 | BR41: 0 | BS41: 0 | BT41: 0 | BU41: 0 | BV41: 0 | BW41: 0 | BX41: =BX27 -> 0 | BY41: 0 | BZ41: 0 | CA41: 0 | CB41: 0
D43: Car Toll Revenue | E43: USD | I43: =SUM(K43:XFD43) -> 303957800 | K43: =K40*K37+K38*K41 -> 0 | L43: =L40*L37+L38*L41 -> 3167500 | M43: 3220000 | N43: 3246648.872 | O43: 3382932 | P43: 3410929.305 | Q43: 3554108.359 | R43: 3603320.793 | S43: 3733946.242 | T43: 3764848.557 | U43: 3922883.922 | V43: 3955349.894 | W43: 4121381.848 | X43: 4155490.599 | Y43: 4329923.77 | Z43: 4389878.635 | AA43: 4549017.913 | AB43: 4586665.799 | AC43: 4779198.219 | AD43: 4818751.089 | AE43: 5021025.649 | AF43: 5062579.894 | AG43: 5275089.547 | AH43: 5348131.776 | AI43: 5542009.078 | AJ43: 5587875.006 | AK43: 5822434.737 | AL43: 5870621.482 | AM43: 6117049.935 | AN43: 6167674.929 | AO43: 6426572.662 | AP43: 6515559.055 | AQ43: 6751757.238 | AR43: 6807635.099 | AS43: 7093396.155 | AT43: 7152101.435 | AU43: 7452322 | AV43: 7513997.768 | AW43: 7829409.493 | AX43: 7937820.453 | AY43: 8225577.614 | AZ43: 8293652.882 | BA43: 8641791.841 | BB43: 8713311.717 | BC43: 9079066.508 | BD43: 9154205.29 | BE43: 9538467.273 | BF43: 9670542.929 | BG43: 10021113.72 | BH43: 10104048.93 | BI43: 10528182.07 | BJ43: 0 | BK43: 0 | BL43: 0 | BM43: 0 | BN43: 0 | BO43: 0 | BP43: 0 | BQ43: 0 | BR43: 0 | BS43: 0 | BT43: 0 | BU43: 0 | BV43: 0 | BW43: 0 | BX43: =BX40*BX37+BX38*BX41 -> 0 | BY43: 0 | BZ43: 0 | CA43: 0 | CB43: 0
C45: Truck Tolls
D46: Real Toll Rate | E46: USD/Truck | F46: 10 | K46: =$F$46 -> 10 | L46: =$F$46 -> 10 | M46: 10 | N46: 10 | O46: 10 | P46: 10 | Q46: 10 | R46: 10 | S46: 10 | T46: 10 | U46: 10 | V46: 10 | W46: 10 | X46: 10 | Y46: 10 | Z46: 10 | AA46: 10 | AB46: 10 | AC46: 10 | AD46: 10 | AE46: 10 | AF46: 10 | AG46: 10 | AH46: 10 | AI46: 10 | AJ46: 10 | AK46: 10 | AL46: 10 | AM46: 10 | AN46: 10 | AO46: 10 | AP46: 10 | AQ46: 10 | AR46: 10 | AS46: 10 | AT46: 10 | AU46: 10 | AV46: 10 | AW46: 10 | AX46: 10 | AY46: 10 | AZ46: 10 | BA46: 10 | BB46: 10 | BC46: 10 | BD46: 10 | BE46: 10 | BF46: 10 | BG46: 10 | BH46: 10 | BI46: 10 | BJ46: 10 | BK46: 10 | BL46: 10 | BM46: 10 | BN46: 10 | BO46: 10 | BP46: 10 | BQ46: 10 | BR46: 10 | BS46: 10 | BT46: 10 | BU46: 10 | BV46: 10 | BW46: 10 | BX46: =$F$46 -> 10 | BY46: 10 | BZ46: 10 | CA46: 10 | CB46: 10
D47: Inflation Index | E47: Index | K47: =K36 -> 1 | L47: =L36 -> 1 | M47: 1 | N47: 1.009950494 | O47: 1.02 | P47: 1.030149504 | Q47: 1.0404 | R47: 1.050752494 | S47: 1.061208 | T47: 1.071767544 | U47: 1.08243216 | V47: 1.093202895 | W47: 1.104080803 | X47: 1.115066952 | Y47: 1.126162419 | Z47: 1.137368291 | AA47: 1.148685668 | AB47: 1.160115657 | AC47: 1.171659381 | AD47: 1.18331797 | AE47: 1.195092569 | AF47: 1.20698433 | AG47: 1.21899442 | AH47: 1.231124016 | AI47: 1.243374308 | AJ47: 1.255746497 | AK47: 1.268241795 | AL47: 1.280861427 | AM47: 1.29360663 | AN47: 1.306478655 | AO47: 1.319478763 | AP47: 1.332608228 | AQ47: 1.345868338 | AR47: 1.359260393 | AS47: 1.372785705 | AT47: 1.386445601 | AU47: 1.400241419 | AV47: 1.414174513 | AW47: 1.428246248 | AX47: 1.442458003 | AY47: 1.456811173 | AZ47: 1.471307163 | BA47: 1.485947396 | BB47: 1.500733306 | BC47: 1.515666344 | BD47: 1.530747973 | BE47: 1.545979671 | BF47: 1.561362932 | BG47: 1.576899264 | BH47: 1.592590191 | BI47: 1.608437249 | BJ47: 1.624441994 | BK47: 1.640605994 | BL47: 1.656930834 | BM47: 1.673418114 | BN47: 1.690069451 | BO47: 1.706886477 | BP47: 1.72387084 | BQ47: 1.741024206 | BR47: 1.758348257 | BS47: 1.77584469 | BT47: 1.793515222 | BU47: 1.811361584 | BV47: 1.829385526 | BW47: 1.847588816 | BX47: =BX36 -> 1.865973237 | BY47: 1.884540592 | BZ47: 1.903292702 | CA47: 1.922231404 | CB47: 1.941358556
D48: Inflated Toll Rate | E48: USD/ruck | K48: =K46*K47 -> 10 | L48: =L46*L47 -> 10 | M48: 10 | N48: 10.09950494 | O48: 10.2 | P48: 10.30149504 | Q48: 10.404 | R48: 10.50752494 | S48: 10.61208 | T48: 10.71767544 | U48: 10.8243216 | V48: 10.93202895 | W48: 11.04080803 | X48: 11.15066952 | Y48: 11.26162419 | Z48: 11.37368291 | AA48: 11.48685668 | AB48: 11.60115657 | AC48: 11.71659381 | AD48: 11.8331797 | AE48: 11.95092569 | AF48: 12.0698433 | AG48: 12.1899442 | AH48: 12.31124016 | AI48: 12.43374308 | AJ48: 12.55746497 | AK48: 12.68241795 | AL48: 12.80861427 | AM48: 12.9360663 | AN48: 13.06478655 | AO48: 13.19478763 | AP48: 13.32608228 | AQ48: 13.45868338 | AR48: 13.59260393 | AS48: 13.72785705 | AT48: 13.86445601 | AU48: 14.00241419 | AV48: 14.14174513 | AW48: 14.28246248 | AX48: 14.42458003 | AY48: 14.56811173 | AZ48: 14.71307163 | BA48: 14.85947396 | BB48: 15.00733306 | BC48: 15.15666344 | BD48: 15.30747973 | BE48: 15.45979671 | BF48: 15.61362932 | BG48: 15.76899264 | BH48: 15.92590191 | BI48: 16.08437249 | BJ48: 16.24441994 | BK48: 16.40605994 | BL48: 16.56930834 | BM48: 16.73418114 | BN48: 16.90069451 | BO48: 17.06886477 | BP48: 17.2387084 | BQ48: 17.41024206 | BR48: 17.58348257 | BS48: 17.7584469 | BT48: 17.93515222 | BU48: 18.11361584 | BV48: 18.29385526 | BW48: 18.47588816 | BX48: =BX46*BX47 -> 18.65973237 | BY48: 18.84540592 | BZ48: 19.03292702 | CA48: 19.22231404 | CB48: 19.41358556
D50: Truck Volumes | E50: trucks/Period | G50: trucks/Period | K50: =K20 -> 0 | L50: =L20 -> 271500 | M50: 276000 | N50: 274201.5591 | O50: 281520 | P50: 279685.5903 | Q50: 287150.4 | R50: 286855.4308 | S50: 292893.408 | T50: 290984.8881 | U50: 298751.2762 | V50: 296804.5859 | W50: 304726.3017 | X50: 302740.6776 | Y50: 310820.8277 | Z50: 310501.5436 | AA50: 317037.2443 | AB50: 314971.401 | AC50: 323377.9892 | AD50: 321270.829 | AE50: 329845.5489 | AF50: 327696.2456 | AG50: 336442.4599 | AH50: 336096.8565 | AI50: 343171.3091 | AJ50: 340935.1739 | AK50: 350034.7353 | AL50: 347753.8774 | AM50: 357035.43 | AN50: 354708.9549 | AO50: 364176.1386 | AP50: 363802.0463 | AQ50: 371459.6614 | AR50: 369039.1967 | AS50: 378888.8546 | AT50: 376419.9806 | AU50: 386466.6317 | AV50: 383948.3802 | AW50: 394195.9643 | AX50: 393791.0348 | AY50: 402079.8836 | AZ50: 399459.8948 | BA50: 410121.4813 | BB50: 407449.0927 | BC50: 418323.9109 | BD50: 415598.0745 | BE50: 426690.3891 | BF50: 426252.0804 | BG50: 435224.1969 | BH50: 432388.2367 | BI50: 443928.6809 | BJ50: 0 | BK50: 0 | BL50: 0 | BM50: 0 | BN50: 0 | BO50: 0 | BP50: 0 | BQ50: 0 | BR50: 0 | BS50: 0 | BT50: 0 | BU50: 0 | BV50: 0 | BW50: 0 | BX50: =BX20 -> 0 | BY50: 0 | BZ50: 0 | CA50: 0 | CB50: 0
D52: Truck Toll Revenue | E52: USD | I52: =SUM(K52:XFD52) -> 227221011.6 | K52: =K50*K48 -> 0 | L52: =L50*L48 -> 2715000 | M52: 2760000 | N52: 2769300 | O52: 2871504 | P52: 2881179.72 | Q52: 2987512.762 | R52: 3014140.593 | S52: 3108208.277 | T52: 3118681.588 | U52: 3233779.892 | V52: 3244676.324 | W52: 3364424.599 | X52: 3375761.247 | Y52: 3500347.353 | Z52: 3531546.101 | AA52: 3641761.386 | AB52: 3654032.539 | AC52: 3788888.546 | AD52: 3801655.453 | AE52: 3941959.643 | AF52: 3955242.333 | AG52: 4101214.813 | AH52: 4137769.119 | AI52: 4266903.891 | AJ52: 4281281.502 | AK52: 4439286.809 | AL52: 4454245.275 | AM52: 4618633.996 | AN52: 4634196.784 | AO52: 4805226.809 | AP52: 4848056.005 | AQ52: 4999357.972 | AR52: 5016203.635 | AS52: 5201332.034 | AT52: 5218858.262 | AU52: 5411465.848 | AV52: 5429700.135 | AW52: 5630089.069 | AX52: 5680270.297 | AY52: 5857544.667 | AZ52: 5877282.046 | BA52: 6094189.472 | BB52: 6114724.24 | BC52: 6340394.726 | BD52: 6361759.1 | BE52: 6596546.673 | BF52: 6655341.98 | BG52: 6863047.159 | BH52: 6886172.644 | BI52: 7140314.264 | BJ52: 0 | BK52: 0 | BL52: 0 | BM52: 0 | BN52: 0 | BO52: 0 | BP52: 0 | BQ52: 0 | BR52: 0 | BS52: 0 | BT52: 0 | BU52: 0 | BV52: 0 | BW52: 0 | BX52: =BX50*BX48 -> 0 | BY52: 0 | BZ52: 0 | CA52: 0 | CB52: 0
D54: Total Revenues | E54: USD | I54: =SUM(K54:XFD54) -> 531178811.6 | K54: =K52+K43 -> 0 | L54: =L52+L43 -> 5882500 | M54: 5980000 | N54: 6015948.872 | O54: 6254436 | P54: 6292109.025 | Q54: 6541621.121 | R54: 6617461.386 | S54: 6842154.519 | T54: 6883530.145 | U54: 7156663.814 | V54: 7200026.218 | W54: 7485806.448 | X54: 7531251.846 | Y54: 7830271.123 | Z54: 7921424.737 | AA54: 8190779.299 | AB54: 8240698.338 | AC54: 8568086.765 | AD54: 8620406.542 | AE54: 8962985.292 | AF54: 9017822.227 | AG54: 9376304.36 | AH54: 9485900.895 | AI54: 9808912.969 | AJ54: 9869156.509 | AK54: 10261721.55 | AL54: 10324866.76 | AM54: 10735683.93 | AN54: 10801871.71 | AO54: 11231799.47 | AP54: 11363615.06 | AQ54: 11751115.21 | AR54: 11823838.73 | AS54: 12294728.19 | AT54: 12370959.7 | AU54: 12863787.85 | AV54: 12943697.9 | AW54: 13459498.56 | AX54: 13618090.75 | AY54: 14083122.28 | AZ54: 14170934.93 | BA54: 14735981.31 | BB54: 14828035.96 | BC54: 15419461.23 | BD54: 15515964.39 | BE54: 16135013.95 | BF54: 16325884.91 | BG54: 16884160.88 | BH54: 16990221.57 | BI54: 17668496.34 | BJ54: 0 | BK54: 0 | BL54: 0 | BM54: 0 | BN54: 0 | BO54: 0 | BP54: 0 | BQ54: 0 | BR54: 0 | BS54: 0 | BT54: 0 | BU54: 0 | BV54: 0 | BW54: 0 | BX54: =BX52+BX43 -> 0 | BY54: 0 | BZ54: 0 | CA54: 0 | CB54: 0
C56: Operating Expenditures
D57: Inflation Index for Op Exp | E57: Index | K57: =K47 -> 1 | L57: =L47 -> 1 | M57: 1 | N57: 1.009950494 | O57: 1.02 | P57: 1.030149504 | Q57: 1.0404 | R57: 1.050752494 | S57: 1.061208 | T57: 1.071767544 | U57: 1.08243216 | V57: 1.093202895 | W57: 1.104080803 | X57: 1.115066952 | Y57: 1.126162419 | Z57: 1.137368291 | AA57: 1.148685668 | AB57: 1.160115657 | AC57: 1.171659381 | AD57: 1.18331797 | AE57: 1.195092569 | AF57: 1.20698433 | AG57: 1.21899442 | AH57: 1.231124016 | AI57: 1.243374308 | AJ57: 1.255746497 | AK57: 1.268241795 | AL57: 1.280861427 | AM57: 1.29360663 | AN57: 1.306478655 | AO57: 1.319478763 | AP57: 1.332608228 | AQ57: 1.345868338 | AR57: 1.359260393 | AS57: 1.372785705 | AT57: 1.386445601 | AU57: 1.400241419 | AV57: 1.414174513 | AW57: 1.428246248 | AX57: 1.442458003 | AY57: 1.456811173 | AZ57: 1.471307163 | BA57: 1.485947396 | BB57: 1.500733306 | BC57: 1.515666344 | BD57: 1.530747973 | BE57: 1.545979671 | BF57: 1.561362932 | BG57: 1.576899264 | BH57: 1.592590191 | BI57: 1.608437249 | BJ57: 1.624441994 | BK57: 1.640605994 | BL57: 1.656930834 | BM57: 1.673418114 | BN57: 1.690069451 | BO57: 1.706886477 | BP57: 1.72387084 | BQ57: 1.741024206 | BR57: 1.758348257 | BS57: 1.77584469 | BT57: 1.793515222 | BU57: 1.811361584 | BV57: 1.829385526 | BW57: 1.847588816 | BX57: =BX47 -> 1.865973237 | BY57: 1.884540592 | BZ57: 1.903292702 | CA57: 1.922231404 | CB57: 1.941358556
D59: Fixed Op Exp- Real | E59: Fix/km-yr | F59: =InputC!F36 -> 10000 | G59: =F59/2 -> 5000 | H59: USD/period | K59: =$G$59*K11 -> 0 | L59: =$G$59*L11 -> 250000 | M59: 250000 | N59: 250000 | O59: 250000 | P59: 250000 | Q59: 250000 | R59: 250000 | S59: 250000 | T59: 250000 | U59: 250000 | V59: 250000 | W59: 250000 | X59: 250000 | Y59: 250000 | Z59: 250000 | AA59: 250000 | AB59: 250000 | AC59: 250000 | AD59: 250000 | AE59: 250000 | AF59: 250000 | AG59: 250000 | AH59: 250000 | AI59: 250000 | AJ59: 250000 | AK59: 250000 | AL59: 250000 | AM59: 250000 | AN59: 250000 | AO59: 250000 | AP59: 250000 | AQ59: 250000 | AR59: 250000 | AS59: 250000 | AT59: 250000 | AU59: 250000 | AV59: 250000 | AW59: 250000 | AX59: 250000 | AY59: 250000 | AZ59: 250000 | BA59: 250000 | BB59: 250000 | BC59: 250000 | BD59: 250000 | BE59: 250000 | BF59: 250000 | BG59: 250000 | BH59: 250000 | BI59: 250000 | BJ59: 0 | BK59: 0 | BL59: 0 | BM59: 0 | BN59: 0 | BO59: 0 | BP59: 0 | BQ59: 0 | BR59: 0 | BS59: 0 | BT59: 0 | BU59: 0 | BV59: 0 | BW59: 0 | BX59: =$G$59*BX11 -> 0 | BY59: 0 | BZ59: 0 | CA59: 0 | CB59: 0
D60: Variable Expense | E60: USD/vehicle | F60: =InputC!F35 -> 2 | G60: =F60/2 -> 1 | H60: USD/period | K60: =$G$60*K22 -> 0 | L60: =$G$60*L22 -> 905000 | M60: 920000 | N60: 917133.8397 | O60: 944840 | P60: 941905.8393 | Q60: 970370 | R60: 972710.723 | S60: 996609.596 | T60: 993534.3503 | U60: 1023578.95 | V60: 1020430.532 | W60: 1051298.806 | X60: 1048075.402 | Y60: 1079790.507 | Z60: 1082437.717 | AA60: 1109076.014 | AB60: 1105697.01 | AC60: 1139177.922 | AD60: 1135718.206 | AE60: 1170119.479 | AF60: 1166577.044 | AG60: 1201924.608 | AH60: 1204917.821 | AI60: 1234617.922 | AJ60: 1230903.813 | AK60: 1268224.746 | AL60: 1264421.576 | AM60: 1302771.141 | AN60: 1298876.685 | AO60: 1338283.921 | AP60: 1341667.696 | AQ60: 1374790.678 | AR60: 1370706.741 | AS60: 1412319.801 | AT60: 1408137.551 | AU60: 1450900.507 | AV60: 1446617.478 | AW60: 1490562.856 | AX60: 1494387.439 | AY60: 1531337.782 | AZ60: 1526845.541 | BA60: 1573257.116 | BB60: 1568656.308 | BC60: 1616353.615 | BD60: 1611641.506 | BE60: 1660660.984 | BF60: 1664983.029 | BG60: 1706213.91 | BH60: 1701270.713 | BI60: 1753048.085 | BJ60: 0 | BK60: 0 | BL60: 0 | BM60: 0 | BN60: 0 | BO60: 0 | BP60: 0 | BQ60: 0 | BR60: 0 | BS60: 0 | BT60: 0 | BU60: 0 | BV60: 0 | BW60: 0 | BX60: =$G$60*BX22 -> 0 | BY60: 0 | BZ60: 0 | CA60: 0 | CB60: 0
D61: Total Expense | E61: USD | I61: =SUM(K61:XFD61) -> 99452379.84 | K61: =SUM(K59:K60)*K57 -> 0 | L61: =SUM(L59:L60)*L57 -> 1155000 | M61: 1170000 | N61: 1178747.398 | O61: 1218736.8 | P61: 1227841.209 | Q61: 1269672.948 | R61: 1284766.341 | S61: 1322912.076 | T61: 1332779.756 | U61: 1378562.814 | V61: 1388838.335 | W61: 1436739.03 | X61: 1447440.983 | Y61: 1497560.094 | Z61: 1515472.41 | AA61: 1561151.138 | AB61: 1572765.328 | AC61: 1627643.344 | AD61: 1639745.256 | AE61: 1697174.236 | AF61: 1709786.295 | AG61: 1769887.996 | AH61: 1791184.271 | AI61: 1845935.782 | AJ61: 1859639.776 | AK61: 1925476.077 | AL61: 1939764.18 | AM61: 2008675.044 | AN61: 2023574.328 | AO61: 2095706.904 | AP61: 2121069.469 | AQ61: 2186754.329 | AR61: 2202962.482 | AS61: 2282008.861 | AT61: 2298917.513 | AU61: 2381671.34 | AV61: 2399313.195 | AW61: 2485952.367 | AX61: 2516205.621 | AY61: 2595072.783 | AZ61: 2614285.572 | BA61: 2709264.164 | BB61: 2729318.094 | BC61: 2828769.36 | BD61: 2849703.961 | BE61: 2953843.04 | BF61: 2989983.517 | BG61: 3084752.275 | BH61: 3107574.597 | BI61: 3221777.153 | BJ61: 0 | BK61: 0 | BL61: 0 | BM61: 0 | BN61: 0 | BO61: 0 | BP61: 0 | BQ61: 0 | BR61: 0 | BS61: 0 | BT61: 0 | BU61: 0 | BV61: 0 | BW61: 0 | BX61: =SUM(BX59:BX60)*BX57 -> 0 | BY61: 0 | BZ61: 0 | CA61: 0 | CB61: 0
D63: EBITDA | E63: USD | I63: =SUM(K63:XFD63) -> 431726431.7 | K63: =K54-K61 -> 0 | L63: =L54-L61 -> 4727500 | M63: 4810000 | N63: 4837201.474 | O63: 5035699.2 | P63: 5064267.816 | Q63: 5271948.173 | R63: 5332695.045 | S63: 5519242.443 | T63: 5550750.389 | U63: 5778101 | V63: 5811187.883 | W63: 6049067.417 | X63: 6083810.864 | Y63: 6332711.029 | Z63: 6405952.327 | AA63: 6629628.161 | AB63: 6667933.01 | AC63: 6940443.422 | AD63: 6980661.286 | AE63: 7265811.056 | AF63: 7308035.933 | AG63: 7606416.364 | AH63: 7694716.624 | AI63: 7962977.187 | AJ63: 8009516.733 | AK63: 8336245.469 | AL63: 8385102.576 | AM63: 8727008.886 | AN63: 8778297.385 | AO63: 9136092.567 | AP63: 9242545.591 | AQ63: 9564360.881 | AR63: 9620876.253 | AS63: 10012719.33 | AT63: 10072042.18 | AU63: 10482116.51 | AV63: 10544384.71 | AW63: 10973546.19 | AX63: 11101885.13 | AY63: 11488049.5 | AZ63: 11556649.36 | BA63: 12026717.15 | BB63: 12098717.86 | BC63: 12590691.87 | BD63: 12666260.43 | BE63: 13181170.91 | BF63: 13335901.39 | BG63: 13799408.6 | BH63: 13882646.97 | BI63: 14446719.18 | BJ63: 0 | BK63: 0 | BL63: 0 | BM63: 0 | BN63: 0 | BO63: 0 | BP63: 0 | BQ63: 0 | BR63: 0 | BS63: 0 | BT63: 0 | BU63: 0 | BV63: 0 | BW63: 0 | BX63: =BX54-BX61 -> 0 | BY63: 0 | BZ63: 0 | CA63: 0 | CB63: 0
B65: Working Capital
C66: A/R Outstanding | E66: % Revenues | F66: =InputC!F40 -> 0.08219178082 | H66: USD | K66: =K54*$F$66 -> 0 | L66: =L54*$F$66 -> 483493.1507 | M66: 491506.8493 | N66: 494461.5511 | O66: 514063.2329 | P66: 517159.6459 | Q66: 537667.4894 | R66: 543900.9358 | S66: 562368.8646 | T66: 565769.6009 | U66: 588218.9436 | V66: 591782.9768 | W66: 615271.7628 | X66: 619007.0011 | Y66: 643583.9279 | Z66: 651076.0057 | AA66: 673214.7369 | AB66: 677317.6716 | AC66: 704226.3095 | AD66: 708526.5651 | AE66: 736683.7227 | AF66: 741190.868 | AG66: 770655.1529 | AH66: 779663.0872 | AI66: 806212.0249 | AJ66: 811163.5486 | AK66: 843429.1682 | AL66: 848619.1855 | AM66: 882384.9806 | AN66: 887825.0723 | AO66: 923161.6003 | AP66: 933995.7583 | AQ66: 965845.0858 | AR66: 971822.3617 | AS66: 1010525.605 | AT66: 1016791.208 | AU66: 1057297.631 | AV66: 1063865.581 | AW66: 1106260.156 | AX66: 1119295.13 | AY66: 1157516.9 | AZ66: 1164734.378 | BA66: 1211176.546 | BB66: 1218742.681 | BC66: 1267352.978 | BD66: 1275284.744 | BE66: 1326165.53 | BF66: 1341853.554 | BG66: 1387739.25 | BH66: 1396456.567 | BI66: 1452205.178 | BJ66: 0 | BK66: 0 | BL66: 0 | BM66: 0 | BN66: 0 | BO66: 0 | BP66: 0 | BQ66: 0 | BR66: 0 | BS66: 0 | BT66: 0 | BU66: 0 | BV66: 0 | BW66: 0 | BX66: =BX54*$F$66 -> 0 | BY66: 0 | BZ66: 0 | CA66: 0 | CB66: 0
C67: A/P Outstanding | E67: % Expense | F67: =InputC!F43 -> 0 | H67: USD | K67: =$F$67*K61 -> 0 | L67: =$F$67*L61 -> 0 | M67: 0 | N67: 0 | O67: 0 | P67: 0 | Q67: 0 | R67: 0 | S67: 0 | T67: 0 | U67: 0 | V67: 0 | W67: 0 | X67: 0 | Y67: 0 | Z67: 0 | AA67: 0 | AB67: 0 | AC67: 0 | AD67: 0 | AE67: 0 | AF67: 0 | AG67: 0 | AH67: 0 | AI67: 0 | AJ67: 0 | AK67: 0 | AL67: 0 | AM67: 0 | AN67: 0 | AO67: 0 | AP67: 0 | AQ67: 0 | AR67: 0 | AS67: 0 | AT67: 0 | AU67: 0 | AV67: 0 | AW67: 0 | AX67: 0 | AY67: 0 | AZ67: 0 | BA67: 0 | BB67: 0 | BC67: 0 | BD67: 0 | BE67: 0 | BF67: 0 | BG67: 0 | BH67: 0 | BI67: 0 | BJ67: 0 | BK67: 0 | BL67: 0 | BM67: 0 | BN67: 0 | BO67: 0 | BP67: 0 | BQ67: 0 | BR67: 0 | BS67: 0 | BT67: 0 | BU67: 0 | BV67: 0 | BW67: 0 | BX67: =$F$67*BX61 -> 0 | BY67: 0 | BZ67: 0 | CA67: 0 | CB67: 0
C68: Net Working Capital | E68: USD | H68: USD | K68: =K66-K67 -> 0 | L68: =L66-L67 -> 483493.1507 | M68: 491506.8493 | N68: 494461.5511 | O68: 514063.2329 | P68: 517159.6459 | Q68: 537667.4894 | R68: 543900.9358 | S68: 562368.8646 | T68: 565769.6009 | U68: 588218.9436 | V68: 591782.9768 | W68: 615271.7628 | X68: 619007.0011 | Y68: 643583.9279 | Z68: 651076.0057 | AA68: 673214.7369 | AB68: 677317.6716 | AC68: 704226.3095 | AD68: 708526.5651 | AE68: 736683.7227 | AF68: 741190.868 | AG68: 770655.1529 | AH68: 779663.0872 | AI68: 806212.0249 | AJ68: 811163.5486 | AK68: 843429.1682 | AL68: 848619.1855 | AM68: 882384.9806 | AN68: 887825.0723 | AO68: 923161.6003 | AP68: 933995.7583 | AQ68: 965845.0858 | AR68: 971822.3617 | AS68: 1010525.605 | AT68: 1016791.208 | AU68: 1057297.631 | AV68: 1063865.581 | AW68: 1106260.156 | AX68: 1119295.13 | AY68: 1157516.9 | AZ68: 1164734.378 | BA68: 1211176.546 | BB68: 1218742.681 | BC68: 1267352.978 | BD68: 1275284.744 | BE68: 1326165.53 | BF68: 1341853.554 | BG68: 1387739.25 | BH68: 1396456.567 | BI68: 1452205.178 | BJ68: 0 | BK68: 0 | BL68: 0 | BM68: 0 | BN68: 0 | BO68: 0 | BP68: 0 | BQ68: 0 | BR68: 0 | BS68: 0 | BT68: 0 | BU68: 0 | BV68: 0 | BW68: 0 | BX68: =BX66-BX67 -> 0 | BY68: 0 | BZ68: 0 | CA68: 0 | CB68: 0
C70: Change in Working Capital | E70: USD | H70: USD | L70: =L68-K68 -> 483493.1507 | M70: =M68-L68 -> 8013.69863 | N70: 2954.701785 | O70: 19601.68178 | P70: 3096.412983 | Q70: 20507.84352 | R70: 6233.446461 | S70: 18467.92876 | T70: 3400.736346 | U70: 22449.34263 | V70: 3564.03324 | W70: 23488.786 | X70: 3735.238231 | Y70: 24576.92687 | Z70: 7492.077828 | AA70: 22138.73114 | AB70: 4102.934719 | AC70: 26908.63786 | AD70: 4300.25562 | AE70: 28157.15757 | AF70: 4507.145339 | AG70: 29464.28486 | AH70: 9007.934385 | AI70: 26548.93763 | AJ70: 4951.52377 | AK70: 32265.61951 | AL70: 5190.017314 | AM70: 33765.79513 | AN70: 5440.091667 | AO70: 35336.52807 | AP70: 10834.15797 | AQ70: 31849.32749 | AR70: 5977.275926 | AS70: 38703.24284 | AT70: 6265.603423 | AU70: 40506.42339 | AV70: 6567.949735 | AW70: 42394.57466 | AX70: 13034.97441 | AY70: 38221.7696 | AZ70: 7217.477809 | BA70: 46442.16864 | BB70: 7566.135233 | BC70: 48610.2967 | BD70: 7931.766226 | BE70: 50880.78547 | BF70: 15688.02437 | BG70: 45885.69587 | BH70: 8717.317339 | BI70: 55748.61082 | BJ70: -1452205.178 | BK70: 0 | BL70: 0 | BM70: 0 | BN70: 0 | BO70: 0 | BP70: 0 | BQ70: 0 | BR70: 0 | BS70: 0 | BT70: 0 | BU70: 0 | BV70: 0 | BW70: 0 | BX70: 0 | BY70: =BY68-BX68 -> 0 | BZ70: 0 | CA70: 0 | CB70: 0
C72: Pre-tax Cash Flow
D73: EBITDA | E73: USD | H73: USD | K73: =K63 -> 0 | L73: =L63 -> 4727500 | M73: 4810000 | N73: 4837201.474 | O73: 5035699.2 | P73: 5064267.816 | Q73: 5271948.173 | R73: 5332695.045 | S73: 5519242.443 | T73: 5550750.389 | U73: 5778101 | V73: 5811187.883 | W73: 6049067.417 | X73: 6083810.864 | Y73: 6332711.029 | Z73: 6405952.327 | AA73: 6629628.161 | AB73: 6667933.01 | AC73: 6940443.422 | AD73: 6980661.286 | AE73: 7265811.056 | AF73: 7308035.933 | AG73: 7606416.364 | AH73: 7694716.624 | AI73: 7962977.187 | AJ73: 8009516.733 | AK73: 8336245.469 | AL73: 8385102.576 | AM73: 8727008.886 | AN73: 8778297.385 | AO73: 9136092.567 | AP73: 9242545.591 | AQ73: 9564360.881 | AR73: 9620876.253 | AS73: 10012719.33 | AT73: 10072042.18 | AU73: 10482116.51 | AV73: 10544384.71 | AW73: 10973546.19 | AX73: 11101885.13 | AY73: 11488049.5 | AZ73: 11556649.36 | BA73: 12026717.15 | BB73: 12098717.86 | BC73: 12590691.87 | BD73: 12666260.43 | BE73: 13181170.91 | BF73: 13335901.39 | BG73: 13799408.6 | BH73: 13882646.97 | BI73: 14446719.18 | BJ73: 0 | BK73: 0 | BL73: 0 | BM73: 0 | BN73: 0 | BO73: 0 | BP73: 0 | BQ73: 0 | BR73: 0 | BS73: 0 | BT73: 0 | BU73: 0 | BV73: 0 | BW73: 0 | BX73: =BX63 -> 0 | BY73: 0 | BZ73: 0 | CA73: 0 | CB73: 0
D74: Less: WC Change | E74: USD | H74: USD | K74: =K68 -> 0 | L74: =L68 -> 483493.1507 | M74: 491506.8493 | N74: 494461.5511 | O74: 514063.2329 | P74: 517159.6459 | Q74: 537667.4894 | R74: 543900.9358 | S74: 562368.8646 | T74: 565769.6009 | U74: 588218.9436 | V74: 591782.9768 | W74: 615271.7628 | X74: 619007.0011 | Y74: 643583.9279 | Z74: 651076.0057 | AA74: 673214.7369 | AB74: 677317.6716 | AC74: 704226.3095 | AD74: 708526.5651 | AE74: 736683.7227 | AF74: 741190.868 | AG74: 770655.1529 | AH74: 779663.0872 | AI74: 806212.0249 | AJ74: 811163.5486 | AK74: 843429.1682 | AL74: 848619.1855 | AM74: 882384.9806 | AN74: 887825.0723 | AO74: 923161.6003 | AP74: 933995.7583 | AQ74: 965845.0858 | AR74: 971822.3617 | AS74: 1010525.605 | AT74: 1016791.208 | AU74: 1057297.631 | AV74: 1063865.581 | AW74: 1106260.156 | AX74: 1119295.13 | AY74: 1157516.9 | AZ74: 1164734.378 | BA74: 1211176.546 | BB74: 1218742.681 | BC74: 1267352.978 | BD74: 1275284.744 | BE74: 1326165.53 | BF74: 1341853.554 | BG74: 1387739.25 | BH74: 1396456.567 | BI74: 1452205.178 | BJ74: 0 | BK74: 0 | BL74: 0 | BM74: 0 | BN74: 0 | BO74: 0 | BP74: 0 | BQ74: 0 | BR74: 0 | BS74: 0 | BT74: 0 | BU74: 0 | BV74: 0 | BW74: 0 | BX74: =BX68 -> 0 | BY74: 0 | BZ74: 0 | CA74: 0 | CB74: 0
D75: Less: Cap Exp | E75: USD | H75: USD | K75: =K31 -> 147385583.7 | L75: =L31 -> 0 | M75: 0 | N75: 0 | O75: 0 | P75: 0 | Q75: 0 | R75: 0 | S75: 0 | T75: 0 | U75: 0 | V75: 0 | W75: 0 | X75: 0 | Y75: 0 | Z75: 0 | AA75: 0 | AB75: 0 | AC75: 0 | AD75: 0 | AE75: 0 | AF75: 0 | AG75: 0 | AH75: 0 | AI75: 0 | AJ75: 0 | AK75: 0 | AL75: 0 | AM75: 0 | AN75: 0 | AO75: 0 | AP75: 0 | AQ75: 0 | AR75: 0 | AS75: 0 | AT75: 0 | AU75: 0 | AV75: 0 | AW75: 0 | AX75: 0 | AY75: 0 | AZ75: 0 | BA75: 0 | BB75: 0 | BC75: 0 | BD75: 0 | BE75: 0 | BF75: 0 | BG75: 0 | BH75: 0 | BI75: 0 | BJ75: 0 | BK75: 0 | BL75: 0 | BM75: 0 | BN75: 0 | BO75: 0 | BP75: 0 | BQ75: 0 | BR75: 0 | BS75: 0 | BT75: 0 | BU75: 0 | BV75: 0 | BW75: 0 | BX75: =BX31 -> 0 | BY75: 0 | BZ75: 0 | CA75: 0 | CB75: 0
D76: Free Cash Flow Before Tax | E76: USD | H76: USD | K76: =K73-K74-K75 -> -147385583.7 | L76: =L73-L74-L75 -> 4244006.849 | M76: 4318493.151 | N76: 4342739.923 | O76: 4521635.967 | P76: 4547108.17 | Q76: 4734280.683 | R76: 4788794.109 | S76: 4956873.579 | T76: 4984980.788 | U76: 5189882.056 | V76: 5219404.906 | W76: 5433795.654 | X76: 5464803.862 | Y76: 5689127.101 | Z76: 5754876.321 | AA76: 5956413.424 | AB76: 5990615.338 | AC76: 6236217.112 | AD76: 6272134.721 | AE76: 6529127.333 | AF76: 6566845.065 | AG76: 6835761.211 | AH76: 6915053.536 | AI76: 7156765.163 | AJ76: 7198353.184 | AK76: 7492816.301 | AL76: 7536483.391 | AM76: 7844623.906 | AN76: 7890472.312 | AO76: 8212930.966 | AP76: 8308549.833 | AQ76: 8598515.795 | AR76: 8649053.891 | AS76: 9002193.724 | AT76: 9055250.976 | AU76: 9424818.877 | AV76: 9480519.127 | AW76: 9867286.039 | AX76: 9982589.999 | AY76: 10330532.6 | AZ76: 10391914.98 | BA76: 10815540.6 | BB76: 10879975.18 | BC76: 11323338.9 | BD76: 11390975.68 | BE76: 11855005.38 | BF76: 11994047.84 | BG76: 12411669.35 | BH76: 12486190.41 | BI76: 12994514 | BJ76: 0 | BK76: 0 | BL76: 0 | BM76: 0 | BN76: 0 | BO76: 0 | BP76: 0 | BQ76: 0 | BR76: 0 | BS76: 0 | BT76: 0 | BU76: 0 | BV76: 0 | BW76: 0 | BX76: =BX73-BX74-BX75 -> 0 | BY76: 0 | BZ76: 0 | CA76: 0 | CB76: 0
D78: Pre-tax Project IRR | E78: % | F78: =XIRR(K76:CB76,K4:CB4) -> 0.07591917217
B80: Tax and Deprecation
C81: Tax Basis | E81: USD | F81: =InputC!F25 -> 100000000 | H81: USD | K81: =$F$81 -> 100000000 | L81: =K81+L31 -> 100000000 | M81: 100000000 | N81: 100000000 | O81: 100000000 | P81: 100000000 | Q81: 100000000 | R81: 100000000 | S81: 100000000 | T81: 100000000 | U81: 100000000 | V81: 100000000 | W81: 100000000 | X81: 100000000 | Y81: 100000000 | Z81: 100000000 | AA81: 100000000 | AB81: 100000000 | AC81: 100000000 | AD81: 100000000 | AE81: 100000000 | AF81: 100000000 | AG81: 100000000 | AH81: 100000000 | AI81: 100000000 | AJ81: 100000000 | AK81: 100000000 | AL81: 100000000 | AM81: 100000000 | AN81: 100000000 | AO81: 100000000 | AP81: 100000000 | AQ81: 100000000 | AR81: 100000000 | AS81: 100000000 | AT81: 100000000 | AU81: 100000000 | AV81: 100000000 | AW81: 100000000 | AX81: 100000000 | AY81: 100000000 | AZ81: 100000000 | BA81: 100000000 | BB81: 100000000 | BC81: 100000000 | BD81: 100000000 | BE81: 100000000 | BF81: 100000000 | BG81: 100000000 | BH81: 100000000 | BI81: 100000000 | BJ81: 100000000 | BK81: 100000000 | BL81: 100000000 | BM81: 100000000 | BN81: 100000000 | BO81: 100000000 | BP81: 100000000 | BQ81: 100000000 | BR81: 100000000 | BS81: 100000000 | BT81: 100000000 | BU81: 100000000 | BV81: 100000000 | BW81: 100000000 | BX81: =BW81+BX31 -> 100000000 | BY81: 100000000 | BZ81: 100000000 | CA81: 100000000 | CB81: 100000000
C82: Tax Depreciation Period | E82: Date | F82: =F5+1 -> 2025-01-01 | G82: =EDATE(F82,InputC!F47*12) -> 2045-01-01 | H82: Flag | I82: =SUM(K82:XFD82) -> 40 | K82: =(AND(K3>=$F$82,K3<$G$82))*1 -> 0 | L82: =(AND(L3>=$F$82,L3<$G$82))*1 -> 1 | M82: 1 | N82: 1 | O82: 1 | P82: 1 | Q82: 1 | R82: 1 | S82: 1 | T82: 1 | U82: 1 | V82: 1 | W82: 1 | X82: 1 | Y82: 1 | Z82: 1 | AA82: 1 | AB82: 1 | AC82: 1 | AD82: 1 | AE82: 1 | AF82: 1 | AG82: 1 | AH82: 1 | AI82: 1 | AJ82: 1 | AK82: 1 | AL82: 1 | AM82: 1 | AN82: 1 | AO82: 1 | AP82: 1 | AQ82: 1 | AR82: 1 | AS82: 1 | AT82: 1 | AU82: 1 | AV82: 1 | AW82: 1 | AX82: 1 | AY82: 1 | AZ82: 0 | BA82: 0 | BB82: 0 | BC82: 0 | BD82: 0 | BE82: 0 | BF82: 0 | BG82: 0 | BH82: 0 | BI82: 0 | BJ82: 0 | BK82: 0 | BL82: 0 | BM82: 0 | BN82: 0 | BO82: 0 | BP82: 0 | BQ82: 0 | BR82: 0 | BS82: 0 | BT82: 0 | BU82: 0 | BV82: 0 | BW82: 0 | BX82: =(AND(BX3>=$F$82,BX3<$G$82))*1 -> 0 | BY82: 0 | BZ82: 0 | CA82: 0 | CB82: 0
C83: Tax Depreciation | E83: % | F83: =1/I82 -> 0.025 | H83: USD | I83: =SUM(K83:XFD83) -> 100000000 | K83: =K81*K82*$F$83 -> 0 | L83: =L81*L82*$F$83 -> 2500000 | M83: 2500000 | N83: 2500000 | O83: 2500000 | P83: 2500000 | Q83: 2500000 | R83: 2500000 | S83: 2500000 | T83: 2500000 | U83: 2500000 | V83: 2500000 | W83: 2500000 | X83: 2500000 | Y83: 2500000 | Z83: 2500000 | AA83: 2500000 | AB83: 2500000 | AC83: 2500000 | AD83: 2500000 | AE83: 2500000 | AF83: 2500000 | AG83: 2500000 | AH83: 2500000 | AI83: 2500000 | AJ83: 2500000 | AK83: 2500000 | AL83: 2500000 | AM83: 2500000 | AN83: 2500000 | AO83: 2500000 | AP83: 2500000 | AQ83: 2500000 | AR83: 2500000 | AS83: 2500000 | AT83: 2500000 | AU83: 2500000 | AV83: 2500000 | AW83: 2500000 | AX83: 2500000 | AY83: 2500000 | AZ83: 0 | BA83: 0 | BB83: 0 | BC83: 0 | BD83: 0 | BE83: 0 | BF83: 0 | BG83: 0 | BH83: 0 | BI83: 0 | BJ83: 0 | BK83: 0 | BL83: 0 | BM83: 0 | BN83: 0 | BO83: 0 | BP83: 0 | BQ83: 0 | BR83: 0 | BS83: 0 | BT83: 0 | BU83: 0 | BV83: 0 | BW83: 0 | BX83: =BX81*BX82*$F$83 -> 0 | BY83: 0 | BZ83: 0 | CA83: 0 | CB83: 0
C85: EBITDA | E85: USD | H85: USD | K85: =K73 -> 0 | L85: =L73 -> 4727500 | M85: 4810000 | N85: 4837201.474 | O85: 5035699.2 | P85: 5064267.816 | Q85: 5271948.173 | R85: 5332695.045 | S85: 5519242.443 | T85: 5550750.389 | U85: 5778101 | V85: 5811187.883 | W85: 6049067.417 | X85: 6083810.864 | Y85: 6332711.029 | Z85: 6405952.327 | AA85: 6629628.161 | AB85: 6667933.01 | AC85: 6940443.422 | AD85: 6980661.286 | AE85: 7265811.056 | AF85: 7308035.933 | AG85: 7606416.364 | AH85: 7694716.624 | AI85: 7962977.187 | AJ85: 8009516.733 | AK85: 8336245.469 | AL85: 8385102.576 | AM85: 8727008.886 | AN85: 8778297.385 | AO85: 9136092.567 | AP85: 9242545.591 | AQ85: 9564360.881 | AR85: 9620876.253 | AS85: 10012719.33 | AT85: 10072042.18 | AU85: 10482116.51 | AV85: 10544384.71 | AW85: 10973546.19 | AX85: 11101885.13 | AY85: 11488049.5 | AZ85: 11556649.36 | BA85: 12026717.15 | BB85: 12098717.86 | BC85: 12590691.87 | BD85: 12666260.43 | BE85: 13181170.91 | BF85: 13335901.39 | BG85: 13799408.6 | BH85: 13882646.97 | BI85: 14446719.18 | BJ85: 0 | BK85: 0 | BL85: 0 | BM85: 0 | BN85: 0 | BO85: 0 | BP85: 0 | BQ85: 0 | BR85: 0 | BS85: 0 | BT85: 0 | BU85: 0 | BV85: 0 | BW85: 0 | BX85: =BX73 -> 0 | BY85: 0 | BZ85: 0 | CA85: 0 | CB85: 0
C86: Less: Depreciation | E86: USD | H86: USD | K86: =K83 -> 0 | L86: =L83 -> 2500000 | M86: 2500000 | N86: 2500000 | O86: 2500000 | P86: 2500000 | Q86: 2500000 | R86: 2500000 | S86: 2500000 | T86: 2500000 | U86: 2500000 | V86: 2500000 | W86: 2500000 | X86: 2500000 | Y86: 2500000 | Z86: 2500000 | AA86: 2500000 | AB86: 2500000 | AC86: 2500000 | AD86: 2500000 | AE86: 2500000 | AF86: 2500000 | AG86: 2500000 | AH86: 2500000 | AI86: 2500000 | AJ86: 2500000 | AK86: 2500000 | AL86: 2500000 | AM86: 2500000 | AN86: 2500000 | AO86: 2500000 | AP86: 2500000 | AQ86: 2500000 | AR86: 2500000 | AS86: 2500000 | AT86: 2500000 | AU86: 2500000 | AV86: 2500000 | AW86: 2500000 | AX86: 2500000 | AY86: 2500000 | AZ86: 0 | BA86: 0 | BB86: 0 | BC86: 0 | BD86: 0 | BE86: 0 | BF86: 0 | BG86: 0 | BH86: 0 | BI86: 0 | BJ86: 0 | BK86: 0 | BL86: 0 | BM86: 0 | BN86: 0 | BO86: 0 | BP86: 0 | BQ86: 0 | BR86: 0 | BS86: 0 | BT86: 0 | BU86: 0 | BV86: 0 | BW86: 0 | BX86: =BX83 -> 0 | BY86: 0 | BZ86: 0 | CA86: 0 | CB86: 0
C87: EBIT | E87: USD | H87: USD | K87: =K85-K86 -> 0 | L87: =L85-L86 -> 2227500 | M87: 2310000 | N87: 2337201.474 | O87: 2535699.2 | P87: 2564267.816 | Q87: 2771948.173 | R87: 2832695.045 | S87: 3019242.443 | T87: 3050750.389 | U87: 3278101 | V87: 3311187.883 | W87: 3549067.417 | X87: 3583810.864 | Y87: 3832711.029 | Z87: 3905952.327 | AA87: 4129628.161 | AB87: 4167933.01 | AC87: 4440443.422 | AD87: 4480661.286 | AE87: 4765811.056 | AF87: 4808035.933 | AG87: 5106416.364 | AH87: 5194716.624 | AI87: 5462977.187 | AJ87: 5509516.733 | AK87: 5836245.469 | AL87: 5885102.576 | AM87: 6227008.886 | AN87: 6278297.385 | AO87: 6636092.567 | AP87: 6742545.591 | AQ87: 7064360.881 | AR87: 7120876.253 | AS87: 7512719.328 | AT87: 7572042.184 | AU87: 7982116.509 | AV87: 8044384.708 | AW87: 8473546.195 | AX87: 8601885.129 | AY87: 8988049.498 | AZ87: 11556649.36 | BA87: 12026717.15 | BB87: 12098717.86 | BC87: 12590691.87 | BD87: 12666260.43 | BE87: 13181170.91 | BF87: 13335901.39 | BG87: 13799408.6 | BH87: 13882646.97 | BI87: 14446719.18 | BJ87: 0 | BK87: 0 | BL87: 0 | BM87: 0 | BN87: 0 | BO87: 0 | BP87: 0 | BQ87: 0 | BR87: 0 | BS87: 0 | BT87: 0 | BU87: 0 | BV87: 0 | BW87: 0 | BX87: =BX85-BX86 -> 0 | BY87: 0 | BZ87: 0 | CA87: 0 | CB87: 0
C89: NOL Balance
C90: Opening Balance | K90: =J93 -> 0 | L90: =K93 -> 0 | M90: 0 | N90: 0 | O90: 0 | P90: 0 | Q90: 0 | R90: 0 | S90: 0 | T90: 0 | U90: 0 | V90: 0 | W90: 0 | X90: 0 | Y90: 0 | Z90: 0 | AA90: 0 | AB90: 0 | AC90: 0 | AD90: 0 | AE90: 0 | AF90: 0 | AG90: 0 | AH90: 0 | AI90: 0 | AJ90: 0 | AK90: 0 | AL90: 0 | AM90: 0 | AN90: 0 | AO90: 0 | AP90: 0 | AQ90: 0 | AR90: 0 | AS90: 0 | AT90: 0 | AU90: 0 | AV90: 0 | AW90: 0 | AX90: 0 | AY90: 0 | AZ90: 0 | BA90: 0 | BB90: 0 | BC90: 0 | BD90: 0 | BE90: 0 | BF90: 0 | BG90: 0 | BH90: 0 | BI90: 0 | BJ90: 0 | BK90: 0 | BL90: 0 | BM90: 0 | BN90: 0 | BO90: 0 | BP90: 0 | BQ90: 0 | BR90: 0 | BS90: 0 | BT90: 0 | BU90: 0 | BV90: 0 | BW90: 0 | BX90: =BW93 -> 0 | BY90: 0 | BZ90: 0 | CA90: 0 | CB90: 0
C91: Add: Negative Income Carried Forward | K91: =MAX(-K87,0) -> 0 | L91: =MAX(-L87,0) -> 0 | M91: 0 | N91: 0 | O91: 0 | P91: 0 | Q91: 0 | R91: 0 | S91: 0 | T91: 0 | U91: 0 | V91: 0 | W91: 0 | X91: 0 | Y91: 0 | Z91: 0 | AA91: 0 | AB91: 0 | AC91: 0 | AD91: 0 | AE91: 0 | AF91: 0 | AG91: 0 | AH91: 0 | AI91: 0 | AJ91: 0 | AK91: 0 | AL91: 0 | AM91: 0 | AN91: 0 | AO91: 0 | AP91: 0 | AQ91: 0 | AR91: 0 | AS91: 0 | AT91: 0 | AU91: 0 | AV91: 0 | AW91: 0 | AX91: 0 | AY91: 0 | AZ91: 0 | BA91: 0 | BB91: 0 | BC91: 0 | BD91: 0 | BE91: 0 | BF91: 0 | BG91: 0 | BH91: 0 | BI91: 0 | BJ91: 0 | BK91: 0 | BL91: 0 | BM91: 0 | BN91: 0 | BO91: 0 | BP91: 0 | BQ91: 0 | BR91: 0 | BS91: 0 | BT91: 0 | BU91: 0 | BV91: 0 | BW91: 0 | BX91: =MAX(-BX87,0) -> 0 | BY91: 0 | BZ91: 0 | CA91: 0 | CB91: 0
C92: Less: NOL Used | K92: =MIN(K90,MAX(K87,0)) -> 0 | L92: =MIN(L90,MAX(L87,0)) -> 0 | M92: 0 | N92: 0 | O92: 0 | P92: 0 | Q92: 0 | R92: 0 | S92: 0 | T92: 0 | U92: 0 | V92: 0 | W92: 0 | X92: 0 | Y92: 0 | Z92: 0 | AA92: 0 | AB92: 0 | AC92: 0 | AD92: 0 | AE92: 0 | AF92: 0 | AG92: 0 | AH92: 0 | AI92: 0 | AJ92: 0 | AK92: 0 | AL92: 0 | AM92: 0 | AN92: 0 | AO92: 0 | AP92: 0 | AQ92: 0 | AR92: 0 | AS92: 0 | AT92: 0 | AU92: 0 | AV92: 0 | AW92: 0 | AX92: 0 | AY92: 0 | AZ92: 0 | BA92: 0 | BB92: 0 | BC92: 0 | BD92: 0 | BE92: 0 | BF92: 0 | BG92: 0 | BH92: 0 | BI92: 0 | BJ92: 0 | BK92: 0 | BL92: 0 | BM92: 0 | BN92: 0 | BO92: 0 | BP92: 0 | BQ92: 0 | BR92: 0 | BS92: 0 | BT92: 0 | BU92: 0 | BV92: 0 | BW92: 0 | BX92: =MIN(BX90,MAX(BX87,0)) -> 0 | BY92: 0 | BZ92: 0 | CA92: 0 | CB92: 0
C93: Closing Balance | K93: =K90+K91-K92 -> 0 | L93: =L90+L91-L92 -> 0 | M93: 0 | N93: 0 | O93: 0 | P93: 0 | Q93: 0 | R93: 0 | S93: 0 | T93: 0 | U93: 0 | V93: 0 | W93: 0 | X93: 0 | Y93: 0 | Z93: 0 | AA93: 0 | AB93: 0 | AC93: 0 | AD93: 0 | AE93: 0 | AF93: 0 | AG93: 0 | AH93: 0 | AI93: 0 | AJ93: 0 | AK93: 0 | AL93: 0 | AM93: 0 | AN93: 0 | AO93: 0 | AP93: 0 | AQ93: 0 | AR93: 0 | AS93: 0 | AT93: 0 | AU93: 0 | AV93: 0 | AW93: 0 | AX93: 0 | AY93: 0 | AZ93: 0 | BA93: 0 | BB93: 0 | BC93: 0 | BD93: 0 | BE93: 0 | BF93: 0 | BG93: 0 | BH93: 0 | BI93: 0 | BJ93: 0 | BK93: 0 | BL93: 0 | BM93: 0 | BN93: 0 | BO93: 0 | BP93: 0 | BQ93: 0 | BR93: 0 | BS93: 0 | BT93: 0 | BU93: 0 | BV93: 0 | BW93: 0 | BX93: =BX90+BX91-BX92 -> 0 | BY93: 0 | BZ93: 0 | CA93: 0 | CB93: 0
C95: EBIT after NOL | E95: USD | H95: USD | K95: =K87+K91-K92 -> 0 | L95: =L87+L91-L92 -> 2227500 | M95: =M87+M91-M92 -> 2310000 | N95: =N87+N91-N92 -> 2337201.474 | O95: =O87+O91-O92 -> 2535699.2 | P95: =P87+P91-P92 -> 2564267.816 | Q95: =Q87+Q91-Q92 -> 2771948.173 | R95: =R87+R91-R92 -> 2832695.045 | S95: =S87+S91-S92 -> 3019242.443 | T95: =T87+T91-T92 -> 3050750.389 | U95: =U87+U91-U92 -> 3278101 | V95: =V87+V91-V92 -> 3311187.883 | W95: =W87+W91-W92 -> 3549067.417 | X95: =X87+X91-X92 -> 3583810.864 | Y95: =Y87+Y91-Y92 -> 3832711.029 | Z95: =Z87+Z91-Z92 -> 3905952.327 | AA95: =AA87+AA91-AA92 -> 4129628.161 | AB95: =AB87+AB91-AB92 -> 4167933.01 | AC95: =AC87+AC91-AC92 -> 4440443.422 | AD95: =AD87+AD91-AD92 -> 4480661.286 | AE95: =AE87+AE91-AE92 -> 4765811.056 | AF95: =AF87+AF91-AF92 -> 4808035.933 | AG95: =AG87+AG91-AG92 -> 5106416.364 | AH95: =AH87+AH91-AH92 -> 5194716.624 | AI95: =AI87+AI91-AI92 -> 5462977.187 | AJ95: =AJ87+AJ91-AJ92 -> 5509516.733 | AK95: =AK87+AK91-AK92 -> 5836245.469 | AL95: =AL87+AL91-AL92 -> 5885102.576 | AM95: =AM87+AM91-AM92 -> 6227008.886 | AN95: =AN87+AN91-AN92 -> 6278297.385 | AO95: =AO87+AO91-AO92 -> 6636092.567 | AP95: =AP87+AP91-AP92 -> 6742545.591 | AQ95: =AQ87+AQ91-AQ92 -> 7064360.881 | AR95: =AR87+AR91-AR92 -> 7120876.253 | AS95: =AS87+AS91-AS92 -> 7512719.328 | AT95: =AT87+AT91-AT92 -> 7572042.184 | AU95: =AU87+AU91-AU92 -> 7982116.509 | AV95: =AV87+AV91-AV92 -> 8044384.708 | AW95: =AW87+AW91-AW92 -> 8473546.195 | AX95: =AX87+AX91-AX92 -> 8601885.129 | AY95: =AY87+AY91-AY92 -> 8988049.498 | AZ95: =AZ87+AZ91-AZ92 -> 11556649.36 | BA95: =BA87+BA91-BA92 -> 12026717.15 | BB95: =BB87+BB91-BB92 -> 12098717.86 | BC95: =BC87+BC91-BC92 -> 12590691.87 | BD95: =BD87+BD91-BD92 -> 12666260.43 | BE95: =BE87+BE91-BE92 -> 13181170.91 | BF95: =BF87+BF91-BF92 -> 13335901.39 | BG95: =BG87+BG91-BG92 -> 13799408.6 | BH95: =BH87+BH91-BH92 -> 13882646.97 | BI95: =BI87+BI91-BI92 -> 14446719.18 | BJ95: =BJ87+BJ91-BJ92 -> 0 | BK95: =BK87+BK91-BK92 -> 0 | BL95: =BL87+BL91-BL92 -> 0 | BM95: =BM87+BM91-BM92 -> 0 | BN95: =BN87+BN91-BN92 -> 0 | BO95: =BO87+BO91-BO92 -> 0 | BP95: =BP87+BP91-BP92 -> 0 | BQ95: =BQ87+BQ91-BQ92 -> 0 | BR95: =BR87+BR91-BR92 -> 0 | BS95: =BS87+BS91-BS92 -> 0 | BT95: =BT87+BT91-BT92 -> 0 | BU95: =BU87+BU91-BU92 -> 0 | BV95: =BV87+BV91-BV92 -> 0 | BW95: =BW87+BW91-BW92 -> 0 | BX95: =BX87+BX91-BX92 -> 0 | BY95: =BY87+BY91-BY92 -> 0 | BZ95: =BZ87+BZ91-BZ92 -> 0 | CA95: =CA87+CA91-CA92 -> 0 | CB95: =CB87+CB91-CB92 -> 0
C96: Taxes on EBIT | E96: Rate | F96: =InputC!F46 -> 0.2 | H96: USD | K96: =K95*$F$96 -> 0 | L96: =L95*$F$96 -> 445500 | M96: 462000 | N96: 467440.2948 | O96: 507139.84 | P96: 512853.5632 | Q96: 554389.6346 | R96: 566539.0089 | S96: 603848.4886 | T96: 610150.0778 | U96: 655620.2 | V96: 662237.5766 | W96: 709813.4835 | X96: 716762.1727 | Y96: 766542.2058 | Z96: 781190.4653 | AA96: 825925.6322 | AB96: 833586.602 | AC96: 888088.6843 | AD96: 896132.2572 | AE96: 953162.2112 | AF96: 961607.1865 | AG96: 1021283.273 | AH96: 1038943.325 | AI96: 1092595.437 | AJ96: 1101903.347 | AK96: 1167249.094 | AL96: 1177020.515 | AM96: 1245401.777 | AN96: 1255659.477 | AO96: 1327218.513 | AP96: 1348509.118 | AQ96: 1412872.176 | AR96: 1424175.251 | AS96: 1502543.866 | AT96: 1514408.437 | AU96: 1596423.302 | AV96: 1608876.942 | AW96: 1694709.239 | AX96: 1720377.026 | AY96: 1797609.9 | AZ96: 2311329.871 | BA96: 2405343.43 | BB96: 2419743.573 | BC96: 2518138.375 | BD96: 2533252.086 | BE96: 2636234.181 | BF96: 2667180.279 | BG96: 2759881.72 | BH96: 2776529.395 | BI96: 2889343.836 | BJ96: 0 | BK96: 0 | BL96: 0 | BM96: 0 | BN96: 0 | BO96: 0 | BP96: 0 | BQ96: 0 | BR96: 0 | BS96: 0 | BT96: 0 | BU96: 0 | BV96: 0 | BW96: 0 | BX96: =BX95*$F$96 -> 0 | BY96: 0 | BZ96: 0 | CA96: 0 | CB96: 0
C98: Pre-tax Cash Flow | E98: USD | H98: USD | K98: =K76 -> -147385583.7 | L98: =L76 -> 4244006.849 | M98: =M76 -> 4318493.151 | N98: =N76 -> 4342739.923 | O98: =O76 -> 4521635.967 | P98: =P76 -> 4547108.17 | Q98: =Q76 -> 4734280.683 | R98: =R76 -> 4788794.109 | S98: =S76 -> 4956873.579 | T98: =T76 -> 4984980.788 | U98: =U76 -> 5189882.056 | V98: =V76 -> 5219404.906 | W98: =W76 -> 5433795.654 | X98: =X76 -> 5464803.862 | Y98: =Y76 -> 5689127.101 | Z98: =Z76 -> 5754876.321 | AA98: =AA76 -> 5956413.424 | AB98: =AB76 -> 5990615.338 | AC98: =AC76 -> 6236217.112 | AD98: =AD76 -> 6272134.721 | AE98: =AE76 -> 6529127.333 | AF98: =AF76 -> 6566845.065 | AG98: =AG76 -> 6835761.211 | AH98: =AH76 -> 6915053.536 | AI98: =AI76 -> 7156765.163 | AJ98: =AJ76 -> 7198353.184 | AK98: =AK76 -> 7492816.301 | AL98: =AL76 -> 7536483.391 | AM98: =AM76 -> 7844623.906 | AN98: =AN76 -> 7890472.312 | AO98: =AO76 -> 8212930.966 | AP98: =AP76 -> 8308549.833 | AQ98: =AQ76 -> 8598515.795 | AR98: =AR76 -> 8649053.891 | AS98: =AS76 -> 9002193.724 | AT98: =AT76 -> 9055250.976 | AU98: =AU76 -> 9424818.877 | AV98: =AV76 -> 9480519.127 | AW98: =AW76 -> 9867286.039 | AX98: =AX76 -> 9982589.999 | AY98: =AY76 -> 10330532.6 | AZ98: =AZ76 -> 10391914.98 | BA98: =BA76 -> 10815540.6 | BB98: =BB76 -> 10879975.18 | BC98: =BC76 -> 11323338.9 | BD98: =BD76 -> 11390975.68 | BE98: =BE76 -> 11855005.38 | BF98: =BF76 -> 11994047.84 | BG98: =BG76 -> 12411669.35 | BH98: =BH76 -> 12486190.41 | BI98: =BI76 -> 12994514 | BJ98: =BJ76 -> 0 | BK98: =BK76 -> 0 | BL98: =BL76 -> 0 | BM98: =BM76 -> 0 | BN98: =BN76 -> 0 | BO98: =BO76 -> 0 | BP98: =BP76 -> 0 | BQ98: =BQ76 -> 0 | BR98: =BR76 -> 0 | BS98: =BS76 -> 0 | BT98: =BT76 -> 0 | BU98: =BU76 -> 0 | BV98: =BV76 -> 0 | BW98: =BW76 -> 0 | BX98: =BX76 -> 0 | BY98: =BY76 -> 0 | BZ98: =BZ76 -> 0 | CA98: =CA76 -> 0 | CB98: =CB76 -> 0
C99: Less: Taxes | E99: USD | H99: USD | K99: =K96 -> 0 | L99: =L96 -> 445500 | M99: 462000 | N99: 467440.2948 | O99: 507139.84 | P99: 512853.5632 | Q99: 554389.6346 | R99: 566539.0089 | S99: 603848.4886 | T99: 610150.0778 | U99: 655620.2 | V99: 662237.5766 | W99: 709813.4835 | X99: 716762.1727 | Y99: 766542.2058 | Z99: 781190.4653 | AA99: 825925.6322 | AB99: 833586.602 | AC99: 888088.6843 | AD99: 896132.2572 | AE99: 953162.2112 | AF99: 961607.1865 | AG99: 1021283.273 | AH99: 1038943.325 | AI99: 1092595.437 | AJ99: 1101903.347 | AK99: 1167249.094 | AL99: 1177020.515 | AM99: 1245401.777 | AN99: 1255659.477 | AO99: 1327218.513 | AP99: 1348509.118 | AQ99: 1412872.176 | AR99: 1424175.251 | AS99: 1502543.866 | AT99: 1514408.437 | AU99: 1596423.302 | AV99: 1608876.942 | AW99: 1694709.239 | AX99: 1720377.026 | AY99: 1797609.9 | AZ99: 2311329.871 | BA99: 2405343.43 | BB99: 2419743.573 | BC99: 2518138.375 | BD99: 2533252.086 | BE99: 2636234.181 | BF99: 2667180.279 | BG99: 2759881.72 | BH99: 2776529.395 | BI99: 2889343.836 | BJ99: 0 | BK99: 0 | BL99: 0 | BM99: 0 | BN99: 0 | BO99: 0 | BP99: 0 | BQ99: 0 | BR99: 0 | BS99: 0 | BT99: 0 | BU99: 0 | BV99: 0 | BW99: 0 | BX99: =BX96 -> 0 | BY99: 0 | BZ99: 0 | CA99: 0 | CB99: 0
C100: After Tax Free Cash Flow | E100: USD | H100: USD | K100: =K98-K99 -> -147385583.7 | L100: =L98-L99 -> 3798506.849 | M100: 3856493.151 | N100: 3875299.628 | O100: 4014496.127 | P100: 4034254.607 | Q100: 4179891.049 | R100: 4222255.1 | S100: 4353025.09 | T100: 4374830.71 | U100: 4534261.856 | V100: 4557167.33 | W100: 4723982.171 | X100: 4748041.69 | Y100: 4922584.895 | Z100: 4973685.855 | AA100: 5130487.792 | AB100: 5157028.736 | AC100: 5348128.428 | AD100: 5376002.464 | AE100: 5575965.122 | AF100: 5605237.878 | AG100: 5814477.938 | AH100: 5876110.212 | AI100: 6064169.725 | AJ100: 6096449.838 | AK100: 6325567.207 | AL100: 6359462.875 | AM100: 6599222.129 | AN100: 6634812.835 | AO100: 6885712.453 | AP100: 6960040.714 | AQ100: 7185643.619 | AR100: 7224878.64 | AS100: 7499649.858 | AT100: 7540842.539 | AU100: 7828395.576 | AV100: 7871642.185 | AW100: 8172576.8 | AX100: 8262212.973 | AY100: 8532922.699 | AZ100: 8080585.107 | BA100: 8410197.172 | BB100: 8460231.61 | BC100: 8805200.521 | BD100: 8857723.599 | BE100: 9218771.196 | BF100: 9326867.56 | BG100: 9651787.631 | BH100: 9709661.011 | BI100: 10105170.17 | BJ100: 0 | BK100: 0 | BL100: 0 | BM100: 0 | BN100: 0 | BO100: 0 | BP100: 0 | BQ100: 0 | BR100: 0 | BS100: 0 | BT100: 0 | BU100: 0 | BV100: 0 | BW100: 0 | BX100: =BX98-BX99 -> 0 | BY100: 0 | BZ100: 0 | CA100: 0 | CB100: 0
C102: Project IRR after Tax | E102: % | F102: =XIRR(K100:CB100,K4:CB4,7) -> 0.06043431396
B104: Debt Sizing
C105: Debt Size
D106: Tenure Input | E106: Year | F106: =InputC!F53 -> 15
D107: Repayment Period | E107: Year | F107: =F82 -> 2025-01-01 | G107: =EDATE(F82,F106*12) -> 2040-01-01 | I107: =SUM(K107:XFD107) -> 30 | K107: =(AND(K3>=$F$107,K3<$G$107))*1 -> 0 | L107: =(AND(L3>=$F$107,L3<$G$107))*1 -> 1 | M107: =(AND(M3>=$F$107,M3<$G$107))*1 -> 1 | N107: =(AND(N3>=$F$107,N3<$G$107))*1 -> 1 | O107: =(AND(O3>=$F$107,O3<$G$107))*1 -> 1 | P107: =(AND(P3>=$F$107,P3<$G$107))*1 -> 1 | Q107: =(AND(Q3>=$F$107,Q3<$G$107))*1 -> 1 | R107: =(AND(R3>=$F$107,R3<$G$107))*1 -> 1 | S107: =(AND(S3>=$F$107,S3<$G$107))*1 -> 1 | T107: =(AND(T3>=$F$107,T3<$G$107))*1 -> 1 | U107: =(AND(U3>=$F$107,U3<$G$107))*1 -> 1 | V107: =(AND(V3>=$F$107,V3<$G$107))*1 -> 1 | W107: =(AND(W3>=$F$107,W3<$G$107))*1 -> 1 | X107: =(AND(X3>=$F$107,X3<$G$107))*1 -> 1 | Y107: =(AND(Y3>=$F$107,Y3<$G$107))*1 -> 1 | Z107: =(AND(Z3>=$F$107,Z3<$G$107))*1 -> 1 | AA107: =(AND(AA3>=$F$107,AA3<$G$107))*1 -> 1 | AB107: =(AND(AB3>=$F$107,AB3<$G$107))*1 -> 1 | AC107: =(AND(AC3>=$F$107,AC3<$G$107))*1 -> 1 | AD107: =(AND(AD3>=$F$107,AD3<$G$107))*1 -> 1 | AE107: =(AND(AE3>=$F$107,AE3<$G$107))*1 -> 1 | AF107: =(AND(AF3>=$F$107,AF3<$G$107))*1 -> 1 | AG107: =(AND(AG3>=$F$107,AG3<$G$107))*1 -> 1 | AH107: =(AND(AH3>=$F$107,AH3<$G$107))*1 -> 1 | AI107: =(AND(AI3>=$F$107,AI3<$G$107))*1 -> 1 | AJ107: =(AND(AJ3>=$F$107,AJ3<$G$107))*1 -> 1 | AK107: =(AND(AK3>=$F$107,AK3<$G$107))*1 -> 1 | AL107: =(AND(AL3>=$F$107,AL3<$G$107))*1 -> 1 | AM107: =(AND(AM3>=$F$107,AM3<$G$107))*1 -> 1 | AN107: =(AND(AN3>=$F$107,AN3<$G$107))*1 -> 1 | AO107: =(AND(AO3>=$F$107,AO3<$G$107))*1 -> 1 | AP107: =(AND(AP3>=$F$107,AP3<$G$107))*1 -> 0 | AQ107: =(AND(AQ3>=$F$107,AQ3<$G$107))*1 -> 0 | AR107: =(AND(AR3>=$F$107,AR3<$G$107))*1 -> 0 | AS107: =(AND(AS3>=$F$107,AS3<$G$107))*1 -> 0 | AT107: =(AND(AT3>=$F$107,AT3<$G$107))*1 -> 0 | AU107: =(AND(AU3>=$F$107,AU3<$G$107))*1 -> 0 | AV107: =(AND(AV3>=$F$107,AV3<$G$107))*1 -> 0 | AW107: =(AND(AW3>=$F$107,AW3<$G$107))*1 -> 0 | AX107: =(AND(AX3>=$F$107,AX3<$G$107))*1 -> 0 | AY107: =(AND(AY3>=$F$107,AY3<$G$107))*1 -> 0 | AZ107: =(AND(AZ3>=$F$107,AZ3<$G$107))*1 -> 0 | BA107: =(AND(BA3>=$F$107,BA3<$G$107))*1 -> 0 | BB107: =(AND(BB3>=$F$107,BB3<$G$107))*1 -> 0 | BC107: =(AND(BC3>=$F$107,BC3<$G$107))*1 -> 0 | BD107: =(AND(BD3>=$F$107,BD3<$G$107))*1 -> 0 | BE107: =(AND(BE3>=$F$107,BE3<$G$107))*1 -> 0 | BF107: =(AND(BF3>=$F$107,BF3<$G$107))*1 -> 0 | BG107: =(AND(BG3>=$F$107,BG3<$G$107))*1 -> 0 | BH107: =(AND(BH3>=$F$107,BH3<$G$107))*1 -> 0 | BI107: =(AND(BI3>=$F$107,BI3<$G$107))*1 -> 0 | BJ107: =(AND(BJ3>=$F$107,BJ3<$G$107))*1 -> 0 | BK107: =(AND(BK3>=$F$107,BK3<$G$107))*1 -> 0 | BL107: =(AND(BL3>=$F$107,BL3<$G$107))*1 -> 0 | BM107: =(AND(BM3>=$F$107,BM3<$G$107))*1 -> 0 | BN107: =(AND(BN3>=$F$107,BN3<$G$107))*1 -> 0 | BO107: =(AND(BO3>=$F$107,BO3<$G$107))*1 -> 0 | BP107: =(AND(BP3>=$F$107,BP3<$G$107))*1 -> 0 | BQ107: =(AND(BQ3>=$F$107,BQ3<$G$107))*1 -> 0 | BR107: =(AND(BR3>=$F$107,BR3<$G$107))*1 -> 0 | BS107: =(AND(BS3>=$F$107,BS3<$G$107))*1 -> 0 | BT107: =(AND(BT3>=$F$107,BT3<$G$107))*1 -> 0 | BU107: =(AND(BU3>=$F$107,BU3<$G$107))*1 -> 0 | BV107: =(AND(BV3>=$F$107,BV3<$G$107))*1 -> 0 | BW107: =(AND(BW3>=$F$107,BW3<$G$107))*1 -> 0 | BX107: =(AND(BX3>=$F$107,BX3<$G$107))*1 -> 0 | BY107: =(AND(BY3>=$F$107,BY3<$G$107))*1 -> 0 | BZ107: =(AND(BZ3>=$F$107,BZ3<$G$107))*1 -> 0 | CA107: =(AND(CA3>=$F$107,CA3<$G$107))*1 -> 0 | CB107: =(AND(CB3>=$F$107,CB3<$G$107))*1 -> 0
C109: Taxes with Interes
D110: EBITDA | K110: =K73 -> 0 | L110: =L73 -> 4727500 | M110: 4810000 | N110: 4837201.474 | O110: 5035699.2 | P110: 5064267.816 | Q110: 5271948.173 | R110: 5332695.045 | S110: 5519242.443 | T110: 5550750.389 | U110: 5778101 | V110: 5811187.883 | W110: 6049067.417 | X110: 6083810.864 | Y110: 6332711.029 | Z110: 6405952.327 | AA110: 6629628.161 | AB110: 6667933.01 | AC110: 6940443.422 | AD110: 6980661.286 | AE110: 7265811.056 | AF110: 7308035.933 | AG110: 7606416.364 | AH110: 7694716.624 | AI110: 7962977.187 | AJ110: 8009516.733 | AK110: 8336245.469 | AL110: 8385102.576 | AM110: 8727008.886 | AN110: 8778297.385 | AO110: 9136092.567 | AP110: 9242545.591 | AQ110: 9564360.881 | AR110: 9620876.253 | AS110: 10012719.33 | AT110: 10072042.18 | AU110: 10482116.51 | AV110: 10544384.71 | AW110: 10973546.19 | AX110: 11101885.13 | AY110: 11488049.5 | AZ110: 11556649.36 | BA110: 12026717.15 | BB110: 12098717.86 | BC110: 12590691.87 | BD110: 12666260.43 | BE110: 13181170.91 | BF110: 13335901.39 | BG110: 13799408.6 | BH110: 13882646.97 | BI110: 14446719.18 | BJ110: 0 | BK110: 0 | BL110: 0 | BM110: 0 | BN110: 0 | BO110: 0 | BP110: 0 | BQ110: 0 | BR110: 0 | BS110: 0 | BT110: 0 | BU110: 0 | BV110: 0 | BW110: 0 | BX110: =BX73 -> 0 | BY110: 0 | BZ110: 0 | CA110: 0 | CB110: 0
D111: Less: Depreciation | K111: =K83 -> 0 | L111: =L83 -> 2500000 | M111: 2500000 | N111: 2500000 | O111: 2500000 | P111: 2500000 | Q111: 2500000 | R111: 2500000 | S111: 2500000 | T111: 2500000 | U111: 2500000 | V111: 2500000 | W111: 2500000 | X111: 2500000 | Y111: 2500000 | Z111: 2500000 | AA111: 2500000 | AB111: 2500000 | AC111: 2500000 | AD111: 2500000 | AE111: 2500000 | AF111: 2500000 | AG111: 2500000 | AH111: 2500000 | AI111: 2500000 | AJ111: 2500000 | AK111: 2500000 | AL111: 2500000 | AM111: 2500000 | AN111: 2500000 | AO111: 2500000 | AP111: 2500000 | AQ111: 2500000 | AR111: 2500000 | AS111: 2500000 | AT111: 2500000 | AU111: 2500000 | AV111: 2500000 | AW111: 2500000 | AX111: 2500000 | AY111: 2500000 | AZ111: 0 | BA111: 0 | BB111: 0 | BC111: 0 | BD111: 0 | BE111: 0 | BF111: 0 | BG111: 0 | BH111: 0 | BI111: 0 | BJ111: 0 | BK111: 0 | BL111: 0 | BM111: 0 | BN111: 0 | BO111: 0 | BP111: 0 | BQ111: 0 | BR111: 0 | BS111: 0 | BT111: 0 | BU111: 0 | BV111: 0 | BW111: 0 | BX111: =BX83 -> 0 | BY111: 0 | BZ111: 0 | CA111: 0 | CB111: 0
D112: Less: Amortisation of Fees | F112: =F146 -> 1033774.183 | G112: =F83 -> 0.025 | K112: =$F$112*$G$112*K82 -> 0 | L112: =$F$112*$G$112*L82 -> 25844.35456 | M112: 25844.35456 | N112: 25844.35456 | O112: 25844.35456 | P112: 25844.35456 | Q112: 25844.35456 | R112: 25844.35456 | S112: 25844.35456 | T112: 25844.35456 | U112: 25844.35456 | V112: 25844.35456 | W112: 25844.35456 | X112: 25844.35456 | Y112: 25844.35456 | Z112: 25844.35456 | AA112: 25844.35456 | AB112: 25844.35456 | AC112: 25844.35456 | AD112: 25844.35456 | AE112: 25844.35456 | AF112: 25844.35456 | AG112: 25844.35456 | AH112: 25844.35456 | AI112: 25844.35456 | AJ112: 25844.35456 | AK112: 25844.35456 | AL112: 25844.35456 | AM112: 25844.35456 | AN112: 25844.35456 | AO112: 25844.35456 | AP112: 25844.35456 | AQ112: 25844.35456 | AR112: 25844.35456 | AS112: 25844.35456 | AT112: 25844.35456 | AU112: 25844.35456 | AV112: 25844.35456 | AW112: 25844.35456 | AX112: 25844.35456 | AY112: 25844.35456 | AZ112: 0 | BA112: 0 | BB112: 0 | BC112: 0 | BD112: 0 | BE112: 0 | BF112: 0 | BG112: 0 | BH112: 0 | BI112: 0 | BJ112: 0 | BK112: 0 | BL112: 0 | BM112: 0 | BN112: 0 | BO112: 0 | BP112: 0 | BQ112: 0 | BR112: 0 | BS112: 0 | BT112: 0 | BU112: 0 | BV112: 0 | BW112: 0 | BX112: =$F$112*$G$112*BX82 -> 0 | BY112: 0 | BZ112: 0 | CA112: 0 | CB112: 0
D113: Less: Interest | K113: =K161 -> 0 | L113: =L161 -> 1550661.274 | M113: 1526765.561 | N113: 1501683.788 | O113: 1475956.379 | P113: 1447855.325 | Q113: 1419049.73 | R113: 1387732.358 | S113: 1355339.52 | T113: 1320593.239 | U113: 1285013.462 | V113: 1246623.308 | W113: 1207329.27 | X113: 1165063.702 | Y113: 1121819.614 | Z113: 1075434.385 | AA113: 1027622.831 | AB113: 976854.8018 | AC113: 924945.2312 | AD113: 869528.1084 | AE113: 812880.6442 | AF113: 752527.9946 | AG113: 690850.9694 | AH113: 625260.8316 | AI113: 557805.8159 | AJ113: 486653.2902 | AK113: 413971.3875 | AL113: 336927.4439 | AM113: 258242.6512 | AN113: 174953.8031 | AO113: 89906.19558 | AP113: 0 | AQ113: 0 | AR113: 0 | AS113: 0 | AT113: 0 | AU113: 0 | AV113: 0 | AW113: 0 | AX113: 0 | AY113: 0 | AZ113: 0 | BA113: 0 | BB113: 0 | BC113: 0 | BD113: 0 | BE113: 0 | BF113: 0 | BG113: 0 | BH113: 0 | BI113: 0 | BJ113: 1.198495137e-45 | BK113: 1.680411829e-41 | BL113: 3.908773132e-38 | BM113: 3.60272018e-35 | BN113: 1.753514952e-32 | BO113: 5.207722156e-30 | BP113: 1.028481586e-27 | BQ113: 1.42837422e-25 | BR113: 1.449317032e-23 | BS113: 1.10334421e-21 | BT113: 6.418911795e-20 | BU113: 2.888232513e-18 | BV113: 1.011844284e-16 | BW113: 2.764582429e-15 | BX113: =BX161 -> 5.870219961e-14 | BY113: 9.59508968e-13 | BZ113: 1.186522417e-11 | CA113: 1.078621136e-10 | CB113: 6.876786668e-10
D114: EBT | K114: =K110-K111-K112-K113 -> 0 | L114: =L110-L111-L112-L113 -> 650994.3715 | M114: 757390.0841 | N114: 809673.3318 | O114: 1033898.467 | P114: 1090568.137 | Q114: 1327054.088 | R114: 1419118.333 | S114: 1638058.569 | T114: 1704312.795 | U114: 1967243.183 | V114: 2038720.22 | W114: 2315893.793 | X114: 2392902.807 | Y114: 2685047.06 | Z114: 2804673.587 | AA114: 3076160.975 | AB114: 3165233.853 | AC114: 3489653.836 | AD114: 3585288.823 | AE114: 3927086.057 | AF114: 4029663.584 | AG114: 4389721.04 | AH114: 4543611.437 | AI114: 4879327.017 | AJ114: 4997019.088 | AK114: 5396429.727 | AL114: 5522330.778 | AM114: 5942921.881 | AN114: 6077499.227 | AO114: 6520342.017 | AP114: 6716701.236 | AQ114: 7038516.527 | AR114: 7095031.898 | AS114: 7486874.974 | AT114: 7546197.829 | AU114: 7956272.154 | AV114: 8018540.354 | AW114: 8447701.84 | AX114: 8576040.775 | AY114: 8962205.144 | AZ114: 11556649.36 | BA114: 12026717.15 | BB114: 12098717.86 | BC114: 12590691.87 | BD114: 12666260.43 | BE114: 13181170.91 | BF114: 13335901.39 | BG114: 13799408.6 | BH114: 13882646.97 | BI114: 14446719.18 | BJ114: -1.198495137e-45 | BK114: -1.680411829e-41 | BL114: -3.908773132e-38 | BM114: -3.60272018e-35 | BN114: -1.753514952e-32 | BO114: -5.207722156e-30 | BP114: -1.028481586e-27 | BQ114: -1.42837422e-25 | BR114: -1.449317032e-23 | BS114: -1.10334421e-21 | BT114: -6.418911795e-20 | BU114: -2.888232513e-18 | BV114: -1.011844284e-16 | BW114: -2.764582429e-15 | BX114: =BX110-BX111-BX112-BX113 -> -5.870219961e-14 | BY114: -9.59508968e-13 | BZ114: -1.186522417e-11 | CA114: -1.078621136e-10 | CB114: -6.876786668e-10
D116: NOL Balance
D117: Opening Balance | K117: =J120 -> 0 | L117: =K120 -> 0 | M117: 0 | N117: 0 | O117: 0 | P117: 0 | Q117: 0 | R117: 0 | S117: 0 | T117: 0 | U117: 0 | V117: 0 | W117: 0 | X117: 0 | Y117: 0 | Z117: 0 | AA117: 0 | AB117: 0 | AC117: 0 | AD117: 0 | AE117: 0 | AF117: 0 | AG117: 0 | AH117: 0 | AI117: 0 | AJ117: 0 | AK117: 0 | AL117: 0 | AM117: 0 | AN117: 0 | AO117: 0 | AP117: 0 | AQ117: 0 | AR117: 0 | AS117: 0 | AT117: 0 | AU117: 0 | AV117: 0 | AW117: 0 | AX117: 0 | AY117: 0 | AZ117: 0 | BA117: 0 | BB117: 0 | BC117: 0 | BD117: 0 | BE117: 0 | BF117: 0 | BG117: 0 | BH117: 0 | BI117: 0 | BJ117: 0 | BK117: 1.599192011e-42 | BL117: 8.114903792e-39 | BM117: 1.192881709e-35 | BN117: 8.214626171e-33 | BO117: 3.24245943e-30 | BP117: 8.197475177e-28 | BQ117: 1.422755328e-25 | BR117: 1.775809401e-23 | BS117: 1.646211446e-21 | BT117: 1.15936428e-19 | BU117: 6.299884966e-18 | BV117: 2.667294994e-16 | BW117: 8.840404319e-15 | BX117: =BW120 -> 2.292788255e-13 | BY117: 4.624409865e-12 | BZ117: 7.154230428e-11 | CA117: 8.278588315e-10 | CB117: 6.852405811e-09
D118: Add: Negative Income Carried Forward | K118: =MAX(-K114,0) -> 0 | L118: =MAX(-L114,0) -> 0 | M118: 0 | N118: 0 | O118: 0 | P118: 0 | Q118: 0 | R118: 0 | S118: 0 | T118: 0 | U118: 0 | V118: 0 | W118: 0 | X118: 0 | Y118: 0 | Z118: 0 | AA118: 0 | AB118: 0 | AC118: 0 | AD118: 0 | AE118: 0 | AF118: 0 | AG118: 0 | AH118: 0 | AI118: 0 | AJ118: 0 | AK118: 0 | AL118: 0 | AM118: 0 | AN118: 0 | AO118: 0 | AP118: 0 | AQ118: 0 | AR118: 0 | AS118: 0 | AT118: 0 | AU118: 0 | AV118: 0 | AW118: 0 | AX118: 0 | AY118: 0 | AZ118: 0 | BA118: 0 | BB118: 0 | BC118: 0 | BD118: 0 | BE118: 0 | BF118: 0 | BG118: 0 | BH118: 0 | BI118: 0 | BJ118: 1.198495137e-45 | BK118: 1.680411829e-41 | BL118: 3.908773132e-38 | BM118: 3.60272018e-35 | BN118: 1.753514952e-32 | BO118: 5.207722156e-30 | BP118: 1.028481586e-27 | BQ118: 1.42837422e-25 | BR118: 1.449317032e-23 | BS118: 1.10334421e-21 | BT118: 6.418911795e-20 | BU118: 2.888232513e-18 | BV118: 1.011844284e-16 | BW118: 2.764582429e-15 | BX118: =MAX(-BX114,0) -> 5.870219961e-14 | BY118: 9.59508968e-13 | BZ118: 1.186522417e-11 | CA118: 1.078621136e-10 | CB118: 6.876786668e-10
D119: Less: NOL Used | K119: =MIN(K117,MAX(K114,0)) -> 0 | L119: =MIN(L117,MAX(L114,0)) -> 0 | M119: 0 | N119: 0 | O119: 0 | P119: 0 | Q119: 0 | R119: 0 | S119: 0 | T119: 0 | U119: 0 | V119: 0 | W119: 0 | X119: 0 | Y119: 0 | Z119: 0 | AA119: 0 | AB119: 0 | AC119: 0 | AD119: 0 | AE119: 0 | AF119: 0 | AG119: 0 | AH119: 0 | AI119: 0 | AJ119: 0 | AK119: 0 | AL119: 0 | AM119: 0 | AN119: 0 | AO119: 0 | AP119: 0 | AQ119: 0 | AR119: 0 | AS119: 0 | AT119: 0 | AU119: 0 | AV119: 0 | AW119: 0 | AX119: 0 | AY119: 0 | AZ119: 0 | BA119: 0 | BB119: 0 | BC119: 0 | BD119: 0 | BE119: 0 | BF119: 0 | BG119: 0 | BH119: 0 | BI119: 0 | BJ119: 0 | BK119: 0 | BL119: 0 | BM119: 0 | BN119: 0 | BO119: 0 | BP119: 0 | BQ119: 0 | BR119: 0 | BS119: 0 | BT119: 0 | BU119: 0 | BV119: 0 | BW119: 0 | BX119: =MIN(BX117,MAX(BX114,0)) -> 0 | BY119: 0 | BZ119: 0 | CA119: 0 | CB119: 0
D120: Closing Balance | K120: =K117+K118-K119 -> 0 | L120: =L117+L118-L119 -> 0 | M120: 0 | N120: 0 | O120: 0 | P120: 0 | Q120: 0 | R120: 0 | S120: 0 | T120: 0 | U120: 0 | V120: 0 | W120: 0 | X120: 0 | Y120: 0 | Z120: 0 | AA120: 0 | AB120: 0 | AC120: 0 | AD120: 0 | AE120: 0 | AF120: 0 | AG120: 0 | AH120: 0 | AI120: 0 | AJ120: 0 | AK120: 0 | AL120: 0 | AM120: 0 | AN120: 0 | AO120: 0 | AP120: 0 | AQ120: 0 | AR120: 0 | AS120: 0 | AT120: 0 | AU120: 0 | AV120: 0 | AW120: 0 | AX120: 0 | AY120: 0 | AZ120: 0 | BA120: 0 | BB120: 0 | BC120: 0 | BD120: 0 | BE120: 0 | BF120: 0 | BG120: 0 | BH120: 0 | BI120: 0 | BJ120: 1.198495137e-45 | BK120: 1.840331031e-41 | BL120: 4.720263511e-38 | BM120: 4.795601889e-35 | BN120: 2.574977569e-32 | BO120: 8.450181586e-30 | BP120: 1.848229104e-27 | BQ120: 2.851129547e-25 | BR120: 3.225126433e-23 | BS120: 2.749555656e-21 | BT120: 1.80125546e-19 | BU120: 9.188117479e-18 | BV120: 3.679139278e-16 | BW120: 1.160498675e-14 | BX120: =BX117+BX118-BX119 -> 2.879810251e-13 | BY120: 5.583918833e-12 | BZ120: 8.340752845e-11 | CA120: 9.357209451e-10 | CB120: 7.540084478e-09
D122: Adjusted EBT | K122: =K117+K118-K119 -> 0 | L122: =L117+L118-L119 -> 0 | M122: 0 | N122: 0 | O122: 0 | P122: 0 | Q122: 0 | R122: 0 | S122: 0 | T122: 0 | U122: 0 | V122: 0 | W122: 0 | X122: 0 | Y122: 0 | Z122: 0 | AA122: 0 | AB122: 0 | AC122: 0 | AD122: 0 | AE122: 0 | AF122: 0 | AG122: 0 | AH122: 0 | AI122: 0 | AJ122: 0 | AK122: 0 | AL122: 0 | AM122: 0 | AN122: 0 | AO122: 0 | AP122: 0 | AQ122: 0 | AR122: 0 | AS122: 0 | AT122: 0 | AU122: 0 | AV122: 0 | AW122: 0 | AX122: 0 | AY122: 0 | AZ122: 0 | BA122: 0 | BB122: 0 | BC122: 0 | BD122: 0 | BE122: 0 | BF122: 0 | BG122: 0 | BH122: 0 | BI122: 0 | BJ122: 1.198495137e-45 | BK122: 1.840331031e-41 | BL122: 4.720263511e-38 | BM122: 4.795601889e-35 | BN122: 2.574977569e-32 | BO122: 8.450181586e-30 | BP122: 1.848229104e-27 | BQ122: 2.851129547e-25 | BR122: 3.225126433e-23 | BS122: 2.749555656e-21 | BT122: 1.80125546e-19 | BU122: 9.188117479e-18 | BV122: 3.679139278e-16 | BW122: 1.160498675e-14 | BX122: =BX117+BX118-BX119 -> 2.879810251e-13 | BY122: 5.583918833e-12 | BZ122: 8.340752845e-11 | CA122: 9.357209451e-10 | CB122: 7.540084478e-09
D123: Taxes Paid | F123: =InputC!F46 -> 0.2 | K123: =$F$123*K122 -> 0 | L123: =$F$123*L122 -> 0 | M123: 0 | N123: 0 | O123: 0 | P123: 0 | Q123: 0 | R123: 0 | S123: 0 | T123: 0 | U123: 0 | V123: 0 | W123: 0 | X123: 0 | Y123: 0 | Z123: 0 | AA123: 0 | AB123: 0 | AC123: 0 | AD123: 0 | AE123: 0 | AF123: 0 | AG123: 0 | AH123: 0 | AI123: 0 | AJ123: 0 | AK123: 0 | AL123: 0 | AM123: 0 | AN123: 0 | AO123: 0 | AP123: 0 | AQ123: 0 | AR123: 0 | AS123: 0 | AT123: 0 | AU123: 0 | AV123: 0 | AW123: 0 | AX123: 0 | AY123: 0 | AZ123: 0 | BA123: 0 | BB123: 0 | BC123: 0 | BD123: 0 | BE123: 0 | BF123: 0 | BG123: 0 | BH123: 0 | BI123: 0 | BJ123: 2.396990274e-46 | BK123: 3.680662061e-42 | BL123: 9.440527022e-39 | BM123: 9.591203778e-36 | BN123: 5.149955138e-33 | BO123: 1.690036317e-30 | BP123: 3.696458208e-28 | BQ123: 5.702259095e-26 | BR123: 6.450252866e-24 | BS123: 5.499111313e-22 | BT123: 3.602510919e-20 | BU123: 1.837623496e-18 | BV123: 7.358278555e-17 | BW123: 2.32099735e-15 | BX123: =$F$123*BX122 -> 5.759620502e-14 | BY123: 1.116783767e-12 | BZ123: 1.668150569e-11 | CA123: 1.87144189e-10 | CB123: 1.508016896e-09
C125: CFADS
D126: EBITDA | H126: USD | K126: =K85 -> 0 | L126: =L85 -> 4727500 | M126: =M85 -> 4810000 | N126: =N85 -> 4837201.474 | O126: =O85 -> 5035699.2 | P126: =P85 -> 5064267.816 | Q126: =Q85 -> 5271948.173 | R126: =R85 -> 5332695.045 | S126: =S85 -> 5519242.443 | T126: =T85 -> 5550750.389 | U126: =U85 -> 5778101 | V126: =V85 -> 5811187.883 | W126: =W85 -> 6049067.417 | X126: =X85 -> 6083810.864 | Y126: =Y85 -> 6332711.029 | Z126: =Z85 -> 6405952.327 | AA126: =AA85 -> 6629628.161 | AB126: =AB85 -> 6667933.01 | AC126: =AC85 -> 6940443.422 | AD126: =AD85 -> 6980661.286 | AE126: =AE85 -> 7265811.056 | AF126: =AF85 -> 7308035.933 | AG126: =AG85 -> 7606416.364 | AH126: =AH85 -> 7694716.624 | AI126: =AI85 -> 7962977.187 | AJ126: =AJ85 -> 8009516.733 | AK126: =AK85 -> 8336245.469 | AL126: =AL85 -> 8385102.576 | AM126: =AM85 -> 8727008.886 | AN126: =AN85 -> 8778297.385 | AO126: =AO85 -> 9136092.567 | AP126: =AP85 -> 9242545.591 | AQ126: =AQ85 -> 9564360.881 | AR126: =AR85 -> 9620876.253 | AS126: =AS85 -> 10012719.33 | AT126: =AT85 -> 10072042.18 | AU126: =AU85 -> 10482116.51 | AV126: =AV85 -> 10544384.71 | AW126: =AW85 -> 10973546.19 | AX126: =AX85 -> 11101885.13 | AY126: =AY85 -> 11488049.5 | AZ126: =AZ85 -> 11556649.36 | BA126: =BA85 -> 12026717.15 | BB126: =BB85 -> 12098717.86 | BC126: =BC85 -> 12590691.87 | BD126: =BD85 -> 12666260.43 | BE126: =BE85 -> 13181170.91 | BF126: =BF85 -> 13335901.39 | BG126: =BG85 -> 13799408.6 | BH126: =BH85 -> 13882646.97 | BI126: =BI85 -> 14446719.18 | BJ126: =BJ85 -> 0 | BK126: =BK85 -> 0 | BL126: =BL85 -> 0 | BM126: =BM85 -> 0 | BN126: =BN85 -> 0 | BO126: =BO85 -> 0 | BP126: =BP85 -> 0 | BQ126: =BQ85 -> 0 | BR126: =BR85 -> 0 | BS126: =BS85 -> 0 | BT126: =BT85 -> 0 | BU126: =BU85 -> 0 | BV126: =BV85 -> 0 | BW126: =BW85 -> 0 | BX126: =BX85 -> 0 | BY126: =BY85 -> 0 | BZ126: =BZ85 -> 0 | CA126: =CA85 -> 0 | CB126: =CB85 -> 0
D127: Less: Working Capital Changes | H127: USD | K127: =-K74 -> 0 | L127: =-L74 -> -483493.1507 | M127: =-M74 -> -491506.8493 | N127: =-N74 -> -494461.5511 | O127: =-O74 -> -514063.2329 | P127: =-P74 -> -517159.6459 | Q127: =-Q74 -> -537667.4894 | R127: =-R74 -> -543900.9358 | S127: =-S74 -> -562368.8646 | T127: =-T74 -> -565769.6009 | U127: =-U74 -> -588218.9436 | V127: =-V74 -> -591782.9768 | W127: =-W74 -> -615271.7628 | X127: =-X74 -> -619007.0011 | Y127: =-Y74 -> -643583.9279 | Z127: =-Z74 -> -651076.0057 | AA127: =-AA74 -> -673214.7369 | AB127: =-AB74 -> -677317.6716 | AC127: =-AC74 -> -704226.3095 | AD127: =-AD74 -> -708526.5651 | AE127: =-AE74 -> -736683.7227 | AF127: =-AF74 -> -741190.868 | AG127: =-AG74 -> -770655.1529 | AH127: =-AH74 -> -779663.0872 | AI127: =-AI74 -> -806212.0249 | AJ127: =-AJ74 -> -811163.5486 | AK127: =-AK74 -> -843429.1682 | AL127: =-AL74 -> -848619.1855 | AM127: =-AM74 -> -882384.9806 | AN127: =-AN74 -> -887825.0723 | AO127: =-AO74 -> -923161.6003 | AP127: =-AP74 -> -933995.7583 | AQ127: =-AQ74 -> -965845.0858 | AR127: =-AR74 -> -971822.3617 | AS127: =-AS74 -> -1010525.605 | AT127: =-AT74 -> -1016791.208 | AU127: =-AU74 -> -1057297.631 | AV127: =-AV74 -> -1063865.581 | AW127: =-AW74 -> -1106260.156 | AX127: =-AX74 -> -1119295.13 | AY127: =-AY74 -> -1157516.9 | AZ127: =-AZ74 -> -1164734.378 | BA127: =-BA74 -> -1211176.546 | BB127: =-BB74 -> -1218742.681 | BC127: =-BC74 -> -1267352.978 | BD127: =-BD74 -> -1275284.744 | BE127: =-BE74 -> -1326165.53 | BF127: =-BF74 -> -1341853.554 | BG127: =-BG74 -> -1387739.25 | BH127: =-BH74 -> -1396456.567 | BI127: =-BI74 -> -1452205.178 | BJ127: =-BJ74 -> 0 | BK127: =-BK74 -> 0 | BL127: =-BL74 -> 0 | BM127: =-BM74 -> 0 | BN127: =-BN74 -> 0 | BO127: =-BO74 -> 0 | BP127: =-BP74 -> 0 | BQ127: =-BQ74 -> 0 | BR127: =-BR74 -> 0 | BS127: =-BS74 -> 0 | BT127: =-BT74 -> 0 | BU127: =-BU74 -> 0 | BV127: =-BV74 -> 0 | BW127: =-BW74 -> 0 | BX127: =-BX74 -> 0 | BY127: =-BY74 -> 0 | BZ127: =-BZ74 -> 0 | CA127: =-CA74 -> 0 | CB127: =-CB74 -> 0
D128: Less: Taxes Paid | H128: USD | K128: =-K123 -> 0 | L128: =-L123 -> 0 | M128: 0 | N128: 0 | O128: 0 | P128: 0 | Q128: 0 | R128: 0 | S128: 0 | T128: 0 | U128: 0 | V128: 0 | W128: 0 | X128: 0 | Y128: 0 | Z128: 0 | AA128: 0 | AB128: 0 | AC128: 0 | AD128: 0 | AE128: 0 | AF128: 0 | AG128: 0 | AH128: 0 | AI128: 0 | AJ128: 0 | AK128: 0 | AL128: 0 | AM128: 0 | AN128: 0 | AO128: 0 | AP128: 0 | AQ128: 0 | AR128: 0 | AS128: 0 | AT128: 0 | AU128: 0 | AV128: 0 | AW128: 0 | AX128: 0 | AY128: 0 | AZ128: 0 | BA128: 0 | BB128: 0 | BC128: 0 | BD128: 0 | BE128: 0 | BF128: 0 | BG128: 0 | BH128: 0 | BI128: 0 | BJ128: -2.396990274e-46 | BK128: -3.680662061e-42 | BL128: -9.440527022e-39 | BM128: -9.591203778e-36 | BN128: -5.149955138e-33 | BO128: -1.690036317e-30 | BP128: -3.696458208e-28 | BQ128: -5.702259095e-26 | BR128: -6.450252866e-24 | BS128: -5.499111313e-22 | BT128: -3.602510919e-20 | BU128: -1.837623496e-18 | BV128: -7.358278555e-17 | BW128: -2.32099735e-15 | BX128: =-BX123 -> -5.759620502e-14 | BY128: -1.116783767e-12 | BZ128: -1.668150569e-11 | CA128: -1.87144189e-10 | CB128: -1.508016896e-09
D129: CFADS | H129: USD | K129: =SUM(K126:K128) -> 0 | L129: =SUM(L126:L128) -> 4244006.849 | M129: 4318493.151 | N129: 4342739.923 | O129: 4521635.967 | P129: 4547108.17 | Q129: 4734280.683 | R129: 4788794.109 | S129: 4956873.579 | T129: 4984980.788 | U129: 5189882.056 | V129: 5219404.906 | W129: 5433795.654 | X129: 5464803.862 | Y129: 5689127.101 | Z129: 5754876.321 | AA129: 5956413.424 | AB129: 5990615.338 | AC129: 6236217.112 | AD129: 6272134.721 | AE129: 6529127.333 | AF129: 6566845.065 | AG129: 6835761.211 | AH129: 6915053.536 | AI129: 7156765.163 | AJ129: 7198353.184 | AK129: 7492816.301 | AL129: 7536483.391 | AM129: 7844623.906 | AN129: 7890472.312 | AO129: 8212930.966 | AP129: 8308549.833 | AQ129: 8598515.795 | AR129: 8649053.891 | AS129: 9002193.724 | AT129: 9055250.976 | AU129: 9424818.877 | AV129: 9480519.127 | AW129: 9867286.039 | AX129: 9982589.999 | AY129: 10330532.6 | AZ129: 10391914.98 | BA129: 10815540.6 | BB129: 10879975.18 | BC129: 11323338.9 | BD129: 11390975.68 | BE129: 11855005.38 | BF129: 11994047.84 | BG129: 12411669.35 | BH129: 12486190.41 | BI129: 12994514 | BJ129: -2.396990274e-46 | BK129: -3.680662061e-42 | BL129: -9.440527022e-39 | BM129: -9.591203778e-36 | BN129: -5.149955138e-33 | BO129: -1.690036317e-30 | BP129: -3.696458208e-28 | BQ129: -5.702259095e-26 | BR129: -6.450252866e-24 | BS129: -5.499111313e-22 | BT129: -3.602510919e-20 | BU129: -1.837623496e-18 | BV129: -7.358278555e-17 | BW129: -2.32099735e-15 | BX129: =SUM(BX126:BX128) -> -5.759620502e-14 | BY129: -1.116783767e-12 | BZ129: -1.668150569e-11 | CA129: -1.87144189e-10 | CB129: -1.508016896e-09
D131: CFADS over Debt Repayment | H131: USD | K131: =K129*K107 -> 0 | L131: =L129*L107 -> 4244006.849 | M131: 4318493.151 | N131: 4342739.923 | O131: 4521635.967 | P131: 4547108.17 | Q131: 4734280.683 | R131: 4788794.109 | S131: 4956873.579 | T131: 4984980.788 | U131: 5189882.056 | V131: 5219404.906 | W131: 5433795.654 | X131: 5464803.862 | Y131: 5689127.101 | Z131: 5754876.321 | AA131: 5956413.424 | AB131: 5990615.338 | AC131: 6236217.112 | AD131: 6272134.721 | AE131: 6529127.333 | AF131: 6566845.065 | AG131: 6835761.211 | AH131: 6915053.536 | AI131: 7156765.163 | AJ131: 7198353.184 | AK131: 7492816.301 | AL131: 7536483.391 | AM131: 7844623.906 | AN131: 7890472.312 | AO131: 8212930.966 | AP131: 0 | AQ131: 0 | AR131: 0 | AS131: 0 | AT131: 0 | AU131: 0 | AV131: 0 | AW131: 0 | AX131: 0 | AY131: 0 | AZ131: 0 | BA131: 0 | BB131: 0 | BC131: 0 | BD131: 0 | BE131: 0 | BF131: 0 | BG131: 0 | BH131: 0 | BI131: 0 | BJ131: 0 | BK131: 0 | BL131: 0 | BM131: 0 | BN131: 0 | BO131: 0 | BP131: 0 | BQ131: 0 | BR131: 0 | BS131: 0 | BT131: 0 | BU131: 0 | BV131: 0 | BW131: 0 | BX131: =BX129*BX107 -> 0 | BY131: 0 | BZ131: 0 | CA131: 0 | CB131: 0
D133: Periodic Discount Factor | E133: % p.a/p.p | F133: =InputC!F54 -> 0.03 | G133: =F133/2 -> 0.015 | H133: USD | J133: 1 | K133: =J133*(1+$G$133*K107) -> 1 | L133: =K133*(1+$G$133*L107) -> 1.015 | M133: 1.030225 | N133: 1.045678375 | O133: 1.061363551 | P133: 1.077284004 | Q133: 1.093443264 | R133: 1.109844913 | S133: 1.126492587 | T133: 1.143389975 | U133: 1.160540825 | V133: 1.177948937 | W133: 1.195618171 | X133: 1.213552444 | Y133: 1.231755731 | Z133: 1.250232067 | AA133: 1.268985548 | AB133: 1.288020331 | AC133: 1.307340636 | AD133: 1.326950745 | AE133: 1.346855007 | AF133: 1.367057832 | AG133: 1.387563699 | AH133: 1.408377155 | AI133: 1.429502812 | AJ133: 1.450945354 | AK133: 1.472709534 | AL133: 1.494800177 | AM133: 1.51722218 | AN133: 1.539980513 | AO133: 1.56308022 | AP133: 1.56308022 | AQ133: 1.56308022 | AR133: 1.56308022 | AS133: 1.56308022 | AT133: 1.56308022 | AU133: 1.56308022 | AV133: 1.56308022 | AW133: 1.56308022 | AX133: 1.56308022 | AY133: 1.56308022 | AZ133: 1.56308022 | BA133: 1.56308022 | BB133: 1.56308022 | BC133: 1.56308022 | BD133: 1.56308022 | BE133: 1.56308022 | BF133: 1.56308022 | BG133: 1.56308022 | BH133: 1.56308022 | BI133: 1.56308022 | BJ133: 1.56308022 | BK133: 1.56308022 | BL133: 1.56308022 | BM133: 1.56308022 | BN133: 1.56308022 | BO133: 1.56308022 | BP133: 1.56308022 | BQ133: 1.56308022 | BR133: 1.56308022 | BS133: 1.56308022 | BT133: 1.56308022 | BU133: 1.56308022 | BV133: 1.56308022 | BW133: 1.56308022 | BX133: =BW133*(1+$G$133*BX107) -> 1.56308022 | BY133: 1.56308022 | BZ133: 1.56308022 | CA133: 1.56308022 | CB133: 1.56308022
D135: Debt Service over Repayment | E135: x | F135: =InputC!F50 -> 1.35 | H135: USD | K135: =K131/$F$135 -> 0 | L135: =L131/$F$135 -> 3143708.777 | M135: 3198883.815 | N135: 3216844.387 | O135: 3349359.976 | P135: 3368228.274 | Q135: 3506874.58 | R135: 3547254.895 | S135: 3671758.206 | T135: 3692578.361 | U135: 3844357.079 | V135: 3866225.857 | W135: 4025033.818 | X135: 4048002.861 | Y135: 4214168.223 | Z135: 4262871.349 | AA135: 4412158.092 | AB135: 4437492.843 | AC135: 4619420.083 | AD135: 4646025.719 | AE135: 4836390.617 | AF135: 4864329.678 | AG135: 5063526.823 | AH135: 5122261.879 | AI135: 5301307.528 | AJ135: 5332113.47 | AK135: 5550234.297 | AL135: 5582580.289 | AM135: 5810832.523 | AN135: 5844794.305 | AO135: 6083652.568 | AP135: 0 | AQ135: 0 | AR135: 0 | AS135: 0 | AT135: 0 | AU135: 0 | AV135: 0 | AW135: 0 | AX135: 0 | AY135: 0 | AZ135: 0 | BA135: 0 | BB135: 0 | BC135: 0 | BD135: 0 | BE135: 0 | BF135: 0 | BG135: 0 | BH135: 0 | BI135: 0 | BJ135: 0 | BK135: 0 | BL135: 0 | BM135: 0 | BN135: 0 | BO135: 0 | BP135: 0 | BQ135: 0 | BR135: 0 | BS135: 0 | BT135: 0 | BU135: 0 | BV135: 0 | BW135: 0 | BX135: =BX131/$F$135 -> 0 | BY135: 0 | BZ135: 0 | CA135: 0 | CB135: 0
D136: PV of Debt Service with Sumproduct | E136: USD | F136: =SUMPRODUCT(K135:CB135/K133:CB133) -> 103377418.3
D138: Max Debt to Capital | E138: % | F138: =InputC!F51 -> 0.8
D139: Max Debt with Debt to capital | E139: USD | F139: =F138*F147 -> 118735486.3
D141: Debt Applied | E141: USD | F141: =MIN(F139,F136) -> 103377418.3
B143: Uses and Sources of Funds
C144: Uses of Funds
D145: Capital Expenditures | F145: =K145 -> 147385583.7 | K145: =K31 -> 147385583.7 | L145: =L31 -> 0 | M145: 0 | N145: 0 | O145: 0 | P145: 0 | Q145: 0 | R145: 0 | S145: 0 | T145: 0 | U145: 0 | V145: 0 | W145: 0 | X145: 0 | Y145: 0 | Z145: 0 | AA145: 0 | AB145: 0 | AC145: 0 | AD145: 0 | AE145: 0 | AF145: 0 | AG145: 0 | AH145: 0 | AI145: 0 | AJ145: 0 | AK145: 0 | AL145: 0 | AM145: 0 | AN145: 0 | AO145: 0 | AP145: 0 | AQ145: 0 | AR145: 0 | AS145: 0 | AT145: 0 | AU145: 0 | AV145: 0 | AW145: 0 | AX145: 0 | AY145: 0 | AZ145: 0 | BA145: 0 | BB145: 0 | BC145: 0 | BD145: 0 | BE145: 0 | BF145: 0 | BG145: 0 | BH145: 0 | BI145: 0 | BJ145: 0 | BK145: 0 | BL145: 0 | BM145: 0 | BN145: 0 | BO145: 0 | BP145: 0 | BQ145: 0 | BR145: 0 | BS145: 0 | BT145: 0 | BU145: 0 | BV145: 0 | BW145: 0 | BX145: =BX31 -> 0 | BY145: 0 | BZ145: 0 | CA145: 0 | CB145: 0
D146: Debt Fees | F146: =SUM(K146:CB146) -> 1033774.183 | K146: =K162 -> 1033774.183 | L146: =L162 -> 0 | M146: 0 | N146: 0 | O146: 0 | P146: 0 | Q146: 0 | R146: 0 | S146: 0 | T146: 0 | U146: 0 | V146: 0 | W146: 0 | X146: 0 | Y146: 0 | Z146: 0 | AA146: 0 | AB146: 0 | AC146: 0 | AD146: 0 | AE146: 0 | AF146: 0 | AG146: 0 | AH146: 0 | AI146: 0 | AJ146: 0 | AK146: 0 | AL146: 0 | AM146: 0 | AN146: 0 | AO146: 0 | AP146: 0 | AQ146: 0 | AR146: 0 | AS146: 0 | AT146: 0 | AU146: 0 | AV146: 0 | AW146: 0 | AX146: 0 | AY146: 0 | AZ146: 0 | BA146: 0 | BB146: 0 | BC146: 0 | BD146: 0 | BE146: 0 | BF146: 0 | BG146: 0 | BH146: 0 | BI146: 0 | BJ146: 0 | BK146: 0 | BL146: 0 | BM146: 0 | BN146: 0 | BO146: 0 | BP146: 0 | BQ146: 0 | BR146: 0 | BS146: 0 | BT146: 0 | BU146: 0 | BV146: 0 | BW146: 0 | BX146: =BX162 -> 0 | BY146: 0 | BZ146: 0 | CA146: 0 | CB146: 0
D147: Total | F147: =SUM(F145:F146) -> 148419357.9 | K147: =SUM(K145:K146) -> 148419357.9 | L147: =SUM(L145:L146) -> 0 | M147: 0 | N147: 0 | O147: 0 | P147: 0 | Q147: 0 | R147: 0 | S147: 0 | T147: 0 | U147: 0 | V147: 0 | W147: 0 | X147: 0 | Y147: 0 | Z147: 0 | AA147: 0 | AB147: 0 | AC147: 0 | AD147: 0 | AE147: 0 | AF147: 0 | AG147: 0 | AH147: 0 | AI147: 0 | AJ147: 0 | AK147: 0 | AL147: 0 | AM147: 0 | AN147: 0 | AO147: 0 | AP147: 0 | AQ147: 0 | AR147: 0 | AS147: 0 | AT147: 0 | AU147: 0 | AV147: 0 | AW147: 0 | AX147: 0 | AY147: 0 | AZ147: 0 | BA147: 0 | BB147: 0 | BC147: 0 | BD147: 0 | BE147: 0 | BF147: 0 | BG147: 0 | BH147: 0 | BI147: 0 | BJ147: 0 | BK147: 0 | BL147: 0 | BM147: 0 | BN147: 0 | BO147: 0 | BP147: 0 | BQ147: 0 | BR147: 0 | BS147: 0 | BT147: 0 | BU147: 0 | BV147: 0 | BW147: 0 | BX147: =SUM(BX145:BX146) -> 0 | BY147: 0 | BZ147: 0 | CA147: 0 | CB147: 0
C149: Sources of Funds
D150: Debt | F150: =F141 -> 103377418.3 | G150: =F150/$F$147 -> 0.6965224735
D151: Equity | F151: =F147-F150 -> 45041939.6 | G151: =F151/$F$147 -> 0.3034775265
D152: Total | F152: =SUM(F150:F151) -> 148419357.9 | G152: =F152/$F$147 -> 1
B154: Debt Account
C156: Debt Balance
D157: Opening Balance | K157: =J160 -> 0 | L157: =K160 -> 103377418.3 | M157: 101784370.8 | N157: 100112252.5 | O157: 98397091.9 | P157: 96523688.31 | Q157: 94603315.36 | R157: 92515490.51 | S157: 90355967.97 | T157: 88039549.28 | U157: 85667564.16 | V157: 83108220.54 | W157: 80488617.99 | X157: 77670913.45 | Y157: 74787974.29 | Z157: 71695625.68 | AA157: 68508188.71 | AB157: 65123653.45 | AC157: 61663015.41 | AD157: 57968540.56 | AE157: 54192042.95 | AF157: 50168532.98 | AG157: 46056731.29 | AH157: 41684055.44 | AI157: 37187054.39 | AJ157: 32443552.68 | AK157: 27598092.5 | AL157: 22461829.59 | AM157: 17216176.75 | AN157: 11663586.87 | AO157: 5993746.372 | AP157: 0 | AQ157: 0 | AR157: 0 | AS157: 0 | AT157: 0 | AU157: 0 | AV157: 0 | AW157: 0 | AX157: 0 | AY157: 0 | AZ157: 0 | BA157: 0 | BB157: 0 | BC157: 0 | BD157: 0 | BE157: 0 | BF157: 0 | BG157: 0 | BH157: 0 | BI157: 0 | BJ157: 0 | BK157: 1.679091687e-42 | BL157: 8.221516593e-39 | BM157: 1.199639454e-35 | BN157: 8.241682084e-33 | BO157: 3.250133181e-30 | BP157: 8.213864864e-28 | BQ157: 1.425490542e-25 | BR157: 1.779461853e-23 | BS157: 1.650175162e-21 | BT157: 1.162894754e-19 | BU157: 6.325837484e-18 | BV157: 2.683069349e-16 | BW157: 8.919555907e-15 | BX157: =BW160 -> 2.325405064e-13 | BY157: 4.733755857e-12 | BZ157: 7.448056523e-11 | CA157: 8.897328206e-10 | CB157: 7.83876181e-09
D158: Add: Draw | F158: =F150 -> 103377418.3 | K158: =$F$158*K5 -> 103377418.3 | L158: =$F$158*L5 -> 0 | M158: =$F$158*M5 -> 0 | N158: =$F$158*N5 -> 0 | O158: =$F$158*O5 -> 0 | P158: =$F$158*P5 -> 0 | Q158: =$F$158*Q5 -> 0 | R158: =$F$158*R5 -> 0 | S158: =$F$158*S5 -> 0 | T158: =$F$158*T5 -> 0 | U158: =$F$158*U5 -> 0 | V158: =$F$158*V5 -> 0 | W158: =$F$158*W5 -> 0 | X158: =$F$158*X5 -> 0 | Y158: =$F$158*Y5 -> 0 | Z158: =$F$158*Z5 -> 0 | AA158: =$F$158*AA5 -> 0 | AB158: =$F$158*AB5 -> 0 | AC158: =$F$158*AC5 -> 0 | AD158: =$F$158*AD5 -> 0 | AE158: =$F$158*AE5 -> 0 | AF158: =$F$158*AF5 -> 0 | AG158: =$F$158*AG5 -> 0 | AH158: =$F$158*AH5 -> 0 | AI158: =$F$158*AI5 -> 0 | AJ158: =$F$158*AJ5 -> 0 | AK158: =$F$158*AK5 -> 0 | AL158: =$F$158*AL5 -> 0 | AM158: =$F$158*AM5 -> 0 | AN158: =$F$158*AN5 -> 0 | AO158: =$F$158*AO5 -> 0 | AP158: =$F$158*AP5 -> 0 | AQ158: =$F$158*AQ5 -> 0 | AR158: =$F$158*AR5 -> 0 | AS158: =$F$158*AS5 -> 0 | AT158: =$F$158*AT5 -> 0 | AU158: =$F$158*AU5 -> 0 | AV158: =$F$158*AV5 -> 0 | AW158: =$F$158*AW5 -> 0 | AX158: =$F$158*AX5 -> 0 | AY158: =$F$158*AY5 -> 0 | AZ158: =$F$158*AZ5 -> 0 | BA158: =$F$158*BA5 -> 0 | BB158: =$F$158*BB5 -> 0 | BC158: =$F$158*BC5 -> 0 | BD158: =$F$158*BD5 -> 0 | BE158: =$F$158*BE5 -> 0 | BF158: =$F$158*BF5 -> 0 | BG158: =$F$158*BG5 -> 0 | BH158: =$F$158*BH5 -> 0 | BI158: =$F$158*BI5 -> 0 | BJ158: =$F$158*BJ5 -> 0 | BK158: =$F$158*BK5 -> 0 | BL158: =$F$158*BL5 -> 0 | BM158: =$F$158*BM5 -> 0 | BN158: =$F$158*BN5 -> 0 | BO158: =$F$158*BO5 -> 0 | BP158: =$F$158*BP5 -> 0 | BQ158: =$F$158*BQ5 -> 0 | BR158: =$F$158*BR5 -> 0 | BS158: =$F$158*BS5 -> 0 | BT158: =$F$158*BT5 -> 0 | BU158: =$F$158*BU5 -> 0 | BV158: =$F$158*BV5 -> 0 | BW158: =$F$158*BW5 -> 0 | BX158: =$F$158*BX5 -> 0 | BY158: =$F$158*BY5 -> 0 | BZ158: =$F$158*BZ5 -> 0 | CA158: =$F$158*CA5 -> 0 | CB158: =$F$158*CB5 -> 0
D159: Less: Repayment (DS - Interest) | K159: =MIN(K135-K161,K157) -> 0 | L159: =MIN(L135-L161,L157) -> 1593047.503 | M159: 1672118.254 | N159: 1715160.6 | O159: 1873403.597 | P159: 1920372.949 | Q159: 2087824.85 | R159: 2159522.538 | S159: 2316418.687 | T159: 2371985.122 | U159: 2559343.616 | V159: 2619602.548 | W159: 2817704.548 | X159: 2882939.159 | Y159: 3092348.609 | Z159: 3187436.964 | AA159: 3384535.261 | AB159: 3460638.041 | AC159: 3694474.852 | AD159: 3776497.611 | AE159: 4023509.973 | AF159: 4111801.683 | AG159: 4372675.854 | AH159: 4497001.047 | AI159: 4743501.712 | AJ159: 4845460.18 | AK159: 5136262.909 | AL159: 5245652.845 | AM159: 5552589.872 | AN159: 5669840.502 | AO159: 5993746.372 | AP159: 0 | AQ159: 0 | AR159: 0 | AS159: 0 | AT159: 0 | AU159: 0 | AV159: 0 | AW159: 0 | AX159: 0 | AY159: 0 | AZ159: 0 | BA159: 0 | BB159: 0 | BC159: 0 | BD159: 0 | BE159: 0 | BF159: 0 | BG159: 0 | BH159: 0 | BI159: 0 | BJ159: -1.198495137e-45 | BK159: -1.680411829e-41 | BL159: -3.908773132e-38 | BM159: -3.60272018e-35 | BN159: -1.753514952e-32 | BO159: -5.207722156e-30 | BP159: -1.028481586e-27 | BQ159: -1.42837422e-25 | BR159: -1.449317032e-23 | BS159: -1.10334421e-21 | BT159: -6.418911795e-20 | BU159: -2.888232513e-18 | BV159: -1.011844284e-16 | BW159: -2.764582429e-15 | BX159: =MIN(BX135-BX161,BX157) -> -5.870219961e-14 | BY159: -9.59508968e-13 | BZ159: -1.186522417e-11 | CA159: -1.078621136e-10 | CB159: -6.876786668e-10
D160: Closing Balance | K160: =K157+K158-K159 -> 103377418.3 | L160: =L157+L158-L159 -> 101784370.8 | M160: 100112252.5 | N160: 98397091.9 | O160: 96523688.31 | P160: 94603315.36 | Q160: 92515490.51 | R160: 90355967.97 | S160: 88039549.28 | T160: 85667564.16 | U160: 83108220.54 | V160: 80488617.99 | W160: 77670913.45 | X160: 74787974.29 | Y160: 71695625.68 | Z160: 68508188.71 | AA160: 65123653.45 | AB160: 61663015.41 | AC160: 57968540.56 | AD160: 54192042.95 | AE160: 50168532.98 | AF160: 46056731.29 | AG160: 41684055.44 | AH160: 37187054.39 | AI160: 32443552.68 | AJ160: 27598092.5 | AK160: 22461829.59 | AL160: 17216176.75 | AM160: 11663586.87 | AN160: 5993746.372 | AO160: 5.587935448e-08 | AP160: 0 | AQ160: 0 | AR160: 0 | AS160: 0 | AT160: 0 | AU160: 0 | AV160: 0 | AW160: 0 | AX160: 0 | AY160: 0 | AZ160: 0 | BA160: 0 | BB160: 0 | BC160: 0 | BD160: 0 | BE160: 0 | BF160: 0 | BG160: 0 | BH160: 0 | BI160: 0 | BJ160: 1.198495137e-45 | BK160: 1.848320998e-41 | BL160: 4.730924791e-38 | BM160: 4.802359634e-35 | BN160: 2.57768316e-32 | BO160: 8.457855337e-30 | BP160: 1.849868073e-27 | BQ160: 2.853864762e-25 | BR160: 3.228778885e-23 | BS160: 2.753519372e-21 | BT160: 1.804785934e-19 | BU160: 9.214069996e-18 | BV160: 3.694913633e-16 | BW160: 1.168413834e-14 | BX160: =BX157+BX158-BX159 -> 2.91242706e-13 | BY160: 5.693264825e-12 | BZ160: 8.634578939e-11 | CA160: 9.975949342e-10 | CB160: 8.526440477e-09
D161: Interest Cost | F161: =G133 -> 0.015 | K161: =K157*$F$161 -> 0 | L161: =L157*$F$161 -> 1550661.274 | M161: 1526765.561 | N161: 1501683.788 | O161: 1475956.379 | P161: 1447855.325 | Q161: 1419049.73 | R161: 1387732.358 | S161: 1355339.52 | T161: 1320593.239 | U161: 1285013.462 | V161: 1246623.308 | W161: 1207329.27 | X161: 1165063.702 | Y161: 1121819.614 | Z161: 1075434.385 | AA161: 1027622.831 | AB161: 976854.8018 | AC161: 924945.2312 | AD161: 869528.1084 | AE161: 812880.6442 | AF161: 752527.9946 | AG161: 690850.9694 | AH161: 625260.8316 | AI161: 557805.8159 | AJ161: 486653.2902 | AK161: 413971.3875 | AL161: 336927.4439 | AM161: 258242.6512 | AN161: 174953.8031 | AO161: 89906.19558 | AP161: 0 | AQ161: 0 | AR161: 0 | AS161: 0 | AT161: 0 | AU161: 0 | AV161: 0 | AW161: 0 | AX161: 0 | AY161: 0 | AZ161: 0 | BA161: 0 | BB161: 0 | BC161: 0 | BD161: 0 | BE161: 0 | BF161: 0 | BG161: 0 | BH161: 0 | BI161: 0 | BJ161: 0 | BK161: 2.518637531e-44 | BL161: 1.233227489e-40 | BM161: 1.799459181e-37 | BN161: 1.236252313e-34 | BO161: 4.875199771e-32 | BP161: 1.23207973e-29 | BQ161: 2.138235813e-27 | BR161: 2.669192779e-25 | BS161: 2.475262744e-23 | BT161: 1.744342131e-21 | BU161: 9.488756226e-20 | BV161: 4.024604024e-18 | BW161: 1.337933386e-16 | BX161: =BX157*$F$161 -> 3.488107596e-15 | BY161: 7.100633785e-14 | BZ161: 1.117208478e-12 | CA161: 1.334599231e-11 | CB161: 1.175814272e-10
D162: Debt Fees | F162: =InputC!F55 -> 0.01 | K162: =K158*$F$162*K5 -> 1033774.183 | L162: =L158*$F$162*L5 -> 0 | M162: =M158*$F$162*M5 -> 0 | N162: =N158*$F$162*N5 -> 0 | O162: =O158*$F$162*O5 -> 0 | P162: =P158*$F$162*P5 -> 0 | Q162: =Q158*$F$162*Q5 -> 0 | R162: =R158*$F$162*R5 -> 0 | S162: =S158*$F$162*S5 -> 0 | T162: =T158*$F$162*T5 -> 0 | U162: =U158*$F$162*U5 -> 0 | V162: =V158*$F$162*V5 -> 0 | W162: =W158*$F$162*W5 -> 0 | X162: =X158*$F$162*X5 -> 0 | Y162: =Y158*$F$162*Y5 -> 0 | Z162: =Z158*$F$162*Z5 -> 0 | AA162: =AA158*$F$162*AA5 -> 0 | AB162: =AB158*$F$162*AB5 -> 0 | AC162: =AC158*$F$162*AC5 -> 0 | AD162: =AD158*$F$162*AD5 -> 0 | AE162: =AE158*$F$162*AE5 -> 0 | AF162: =AF158*$F$162*AF5 -> 0 | AG162: =AG158*$F$162*AG5 -> 0 | AH162: =AH158*$F$162*AH5 -> 0 | AI162: =AI158*$F$162*AI5 -> 0 | AJ162: =AJ158*$F$162*AJ5 -> 0 | AK162: =AK158*$F$162*AK5 -> 0 | AL162: =AL158*$F$162*AL5 -> 0 | AM162: =AM158*$F$162*AM5 -> 0 | AN162: =AN158*$F$162*AN5 -> 0 | AO162: =AO158*$F$162*AO5 -> 0 | AP162: =AP158*$F$162*AP5 -> 0 | AQ162: =AQ158*$F$162*AQ5 -> 0 | AR162: =AR158*$F$162*AR5 -> 0 | AS162: =AS158*$F$162*AS5 -> 0 | AT162: =AT158*$F$162*AT5 -> 0 | AU162: =AU158*$F$162*AU5 -> 0 | AV162: =AV158*$F$162*AV5 -> 0 | AW162: =AW158*$F$162*AW5 -> 0 | AX162: =AX158*$F$162*AX5 -> 0 | AY162: =AY158*$F$162*AY5 -> 0 | AZ162: =AZ158*$F$162*AZ5 -> 0 | BA162: =BA158*$F$162*BA5 -> 0 | BB162: =BB158*$F$162*BB5 -> 0 | BC162: =BC158*$F$162*BC5 -> 0 | BD162: =BD158*$F$162*BD5 -> 0 | BE162: =BE158*$F$162*BE5 -> 0 | BF162: =BF158*$F$162*BF5 -> 0 | BG162: =BG158*$F$162*BG5 -> 0 | BH162: =BH158*$F$162*BH5 -> 0 | BI162: =BI158*$F$162*BI5 -> 0 | BJ162: =BJ158*$F$162*BJ5 -> 0 | BK162: =BK158*$F$162*BK5 -> 0 | BL162: =BL158*$F$162*BL5 -> 0 | BM162: =BM158*$F$162*BM5 -> 0 | BN162: =BN158*$F$162*BN5 -> 0 | BO162: =BO158*$F$162*BO5 -> 0 | BP162: =BP158*$F$162*BP5 -> 0 | BQ162: =BQ158*$F$162*BQ5 -> 0 | BR162: =BR158*$F$162*BR5 -> 0 | BS162: =BS158*$F$162*BS5 -> 0 | BT162: =BT158*$F$162*BT5 -> 0 | BU162: =BU158*$F$162*BU5 -> 0 | BV162: =BV158*$F$162*BV5 -> 0 | BW162: =BW158*$F$162*BW5 -> 0 | BX162: =BX158*$F$162*BX5 -> 0 | BY162: =BY158*$F$162*BY5 -> 0 | BZ162: =BZ158*$F$162*BZ5 -> 0 | CA162: =CA158*$F$162*CA5 -> 0 | CB162: =CB158*$F$162*CB5 -> 0
D164: Check of Closing Balance | F164: =F106*2+1 -> 31 | G164: =LOOKUP(F164,2:2,160:160) -> 5.587935448e-08 | H164: =ROUND(G164,0)=0 -> TRUE
B166: Cash Flow Waterfall
C167: Equity Cash Flow
D168: CFADS | K168: =K129 -> 0 | L168: =L129 -> 4244006.849 | M168: =M129 -> 4318493.151 | N168: =N129 -> 4342739.923 | O168: =O129 -> 4521635.967 | P168: =P129 -> 4547108.17 | Q168: =Q129 -> 4734280.683 | R168: =R129 -> 4788794.109 | S168: =S129 -> 4956873.579 | T168: =T129 -> 4984980.788 | U168: =U129 -> 5189882.056 | V168: =V129 -> 5219404.906 | W168: =W129 -> 5433795.654 | X168: =X129 -> 5464803.862 | Y168: =Y129 -> 5689127.101 | Z168: =Z129 -> 5754876.321 | AA168: =AA129 -> 5956413.424 | AB168: =AB129 -> 5990615.338 | AC168: =AC129 -> 6236217.112 | AD168: =AD129 -> 6272134.721 | AE168: =AE129 -> 6529127.333 | AF168: =AF129 -> 6566845.065 | AG168: =AG129 -> 6835761.211 | AH168: =AH129 -> 6915053.536 | AI168: =AI129 -> 7156765.163 | AJ168: =AJ129 -> 7198353.184 | AK168: =AK129 -> 7492816.301 | AL168: =AL129 -> 7536483.391 | AM168: =AM129 -> 7844623.906 | AN168: =AN129 -> 7890472.312 | AO168: =AO129 -> 8212930.966 | AP168: =AP129 -> 8308549.833 | AQ168: =AQ129 -> 8598515.795 | AR168: =AR129 -> 8649053.891 | AS168: =AS129 -> 9002193.724 | AT168: =AT129 -> 9055250.976 | AU168: =AU129 -> 9424818.877 | AV168: =AV129 -> 9480519.127 | AW168: =AW129 -> 9867286.039 | AX168: =AX129 -> 9982589.999 | AY168: =AY129 -> 10330532.6 | AZ168: =AZ129 -> 10391914.98 | BA168: =BA129 -> 10815540.6 | BB168: =BB129 -> 10879975.18 | BC168: =BC129 -> 11323338.9 | BD168: =BD129 -> 11390975.68 | BE168: =BE129 -> 11855005.38 | BF168: =BF129 -> 11994047.84 | BG168: =BG129 -> 12411669.35 | BH168: =BH129 -> 12486190.41 | BI168: =BI129 -> 12994514 | BJ168: =BJ129 -> -2.396990274e-46 | BK168: =BK129 -> -3.680662061e-42 | BL168: =BL129 -> -9.440527022e-39 | BM168: =BM129 -> -9.591203778e-36 | BN168: =BN129 -> -5.149955138e-33 | BO168: =BO129 -> -1.690036317e-30 | BP168: =BP129 -> -3.696458208e-28 | BQ168: =BQ129 -> -5.702259095e-26 | BR168: =BR129 -> -6.450252866e-24 | BS168: =BS129 -> -5.499111313e-22 | BT168: =BT129 -> -3.602510919e-20 | BU168: =BU129 -> -1.837623496e-18 | BV168: =BV129 -> -7.358278555e-17 | BW168: =BW129 -> -2.32099735e-15 | BX168: =BX129 -> -5.759620502e-14 | BY168: =BY129 -> -1.116783767e-12 | BZ168: =BZ129 -> -1.668150569e-11 | CA168: =CA129 -> -1.87144189e-10 | CB168: =CB129 -> -1.508016896e-09
D169: Less: Debt Servcice | K169: =K161+K159 -> 0 | L169: =L161+L159 -> 3143708.777 | M169: 3198883.815 | N169: 3216844.387 | O169: 3349359.976 | P169: 3368228.274 | Q169: 3506874.58 | R169: 3547254.895 | S169: 3671758.206 | T169: 3692578.361 | U169: 3844357.079 | V169: 3866225.857 | W169: 4025033.818 | X169: 4048002.861 | Y169: 4214168.223 | Z169: 4262871.349 | AA169: 4412158.092 | AB169: 4437492.843 | AC169: 4619420.083 | AD169: 4646025.719 | AE169: 4836390.617 | AF169: 4864329.678 | AG169: 5063526.823 | AH169: 5122261.879 | AI169: 5301307.528 | AJ169: 5332113.47 | AK169: 5550234.297 | AL169: 5582580.289 | AM169: 5810832.523 | AN169: 5844794.305 | AO169: 6083652.568 | AP169: 0 | AQ169: 0 | AR169: 0 | AS169: 0 | AT169: 0 | AU169: 0 | AV169: 0 | AW169: 0 | AX169: 0 | AY169: 0 | AZ169: 0 | BA169: 0 | BB169: 0 | BC169: 0 | BD169: 0 | BE169: 0 | BF169: 0 | BG169: 0 | BH169: 0 | BI169: 0 | BJ169: -1.198495137e-45 | BK169: -1.677893192e-41 | BL169: -3.896440857e-38 | BM169: -3.584725588e-35 | BN169: -1.741152429e-32 | BO169: -5.158970159e-30 | BP169: -1.016160789e-27 | BQ169: -1.406991861e-25 | BR169: -1.422625104e-23 | BS169: -1.078591582e-21 | BT169: -6.244477582e-20 | BU169: -2.79334495e-18 | BV169: -9.715982436e-17 | BW169: -2.63078909e-15 | BX169: =BX161+BX159 -> -5.521409202e-14 | BY169: -8.885026302e-13 | BZ169: -1.074801569e-11 | CA169: -9.451612132e-11 | CB169: -5.700972397e-10
D170: Cash to Equity | K170: =K168-K169 -> 0 | L170: =L168-L169 -> 1100298.072 | M170: 1119609.335 | N170: 1125895.536 | O170: 1172275.991 | P170: 1178879.896 | Q170: 1227406.103 | R170: 1241539.213 | S170: 1285115.372 | T170: 1292402.426 | U170: 1345524.978 | V170: 1353179.05 | W170: 1408761.836 | X170: 1416801.001 | Y170: 1474958.878 | Z170: 1492004.972 | AA170: 1544255.332 | AB170: 1553122.495 | AC170: 1616797.029 | AD170: 1626109.002 | AE170: 1692736.716 | AF170: 1702515.387 | AG170: 1772234.388 | AH170: 1792791.658 | AI170: 1855457.635 | AJ170: 1866239.714 | AK170: 1942582.004 | AL170: 1953903.101 | AM170: 2033791.383 | AN170: 2045678.007 | AO170: 2129278.399 | AP170: 8308549.833 | AQ170: 8598515.795 | AR170: 8649053.891 | AS170: 9002193.724 | AT170: 9055250.976 | AU170: 9424818.877 | AV170: 9480519.127 | AW170: 9867286.039 | AX170: 9982589.999 | AY170: 10330532.6 | AZ170: 10391914.98 | BA170: 10815540.6 | BB170: 10879975.18 | BC170: 11323338.9 | BD170: 11390975.68 | BE170: 11855005.38 | BF170: 11994047.84 | BG170: 12411669.35 | BH170: 12486190.41 | BI170: 12994514 | BJ170: 9.587961097e-46 | BK170: 1.309826986e-41 | BL170: 2.952388155e-38 | BM170: 2.62560521e-35 | BN170: 1.226156915e-32 | BO170: 3.468933841e-30 | BP170: 6.465149681e-28 | BQ170: 8.36765952e-26 | BR170: 7.775998177e-24 | BS170: 5.286804511e-22 | BT170: 2.641966663e-20 | BU170: 9.557214545e-19 | BV170: 2.35770388e-17 | BW170: 3.097917407e-16 | BX170: =BX168-BX169 -> -2.382113005e-15 | BY170: -2.282811365e-13 | BZ170: -5.933490002e-12 | CA170: -9.262806771e-11 | CB170: -9.379196559e-10
D172: Total Expenditure | K172: =K31 -> 147385583.7
D173: Less: Debt | F173: =F158 -> 103377418.3 | K173: =$F$173*K5 -> 103377418.3 | L173: =$F$173*L5 -> 0 | M173: =$F$173*M5 -> 0 | N173: =$F$173*N5 -> 0 | O173: =$F$173*O5 -> 0 | P173: =$F$173*P5 -> 0 | Q173: =$F$173*Q5 -> 0 | R173: =$F$173*R5 -> 0 | S173: =$F$173*S5 -> 0 | T173: =$F$173*T5 -> 0 | U173: =$F$173*U5 -> 0 | V173: =$F$173*V5 -> 0 | W173: =$F$173*W5 -> 0 | X173: =$F$173*X5 -> 0 | Y173: =$F$173*Y5 -> 0 | Z173: =$F$173*Z5 -> 0 | AA173: =$F$173*AA5 -> 0 | AB173: =$F$173*AB5 -> 0 | AC173: =$F$173*AC5 -> 0 | AD173: =$F$173*AD5 -> 0 | AE173: =$F$173*AE5 -> 0 | AF173: =$F$173*AF5 -> 0 | AG173: =$F$173*AG5 -> 0 | AH173: =$F$173*AH5 -> 0 | AI173: =$F$173*AI5 -> 0 | AJ173: =$F$173*AJ5 -> 0 | AK173: =$F$173*AK5 -> 0 | AL173: =$F$173*AL5 -> 0 | AM173: =$F$173*AM5 -> 0 | AN173: =$F$173*AN5 -> 0 | AO173: =$F$173*AO5 -> 0 | AP173: =$F$173*AP5 -> 0 | AQ173: =$F$173*AQ5 -> 0 | AR173: =$F$173*AR5 -> 0 | AS173: =$F$173*AS5 -> 0 | AT173: =$F$173*AT5 -> 0 | AU173: =$F$173*AU5 -> 0 | AV173: =$F$173*AV5 -> 0 | AW173: =$F$173*AW5 -> 0 | AX173: =$F$173*AX5 -> 0 | AY173: =$F$173*AY5 -> 0 | AZ173: =$F$173*AZ5 -> 0 | BA173: =$F$173*BA5 -> 0 | BB173: =$F$173*BB5 -> 0 | BC173: =$F$173*BC5 -> 0 | BD173: =$F$173*BD5 -> 0 | BE173: =$F$173*BE5 -> 0 | BF173: =$F$173*BF5 -> 0 | BG173: =$F$173*BG5 -> 0 | BH173: =$F$173*BH5 -> 0 | BI173: =$F$173*BI5 -> 0 | BJ173: =$F$173*BJ5 -> 0 | BK173: =$F$173*BK5 -> 0 | BL173: =$F$173*BL5 -> 0 | BM173: =$F$173*BM5 -> 0 | BN173: =$F$173*BN5 -> 0 | BO173: =$F$173*BO5 -> 0 | BP173: =$F$173*BP5 -> 0 | BQ173: =$F$173*BQ5 -> 0 | BR173: =$F$173*BR5 -> 0 | BS173: =$F$173*BS5 -> 0 | BT173: =$F$173*BT5 -> 0 | BU173: =$F$173*BU5 -> 0 | BV173: =$F$173*BV5 -> 0 | BW173: =$F$173*BW5 -> 0 | BX173: =$F$173*BX5 -> 0 | BY173: =$F$173*BY5 -> 0 | BZ173: =$F$173*BZ5 -> 0 | CA173: =$F$173*CA5 -> 0 | CB173: =$F$173*CB5 -> 0
D174: Less: Fees on Debt | F174: =InputC!F55 -> 0.01 | G174: =F174*F158 -> 1033774.183 | K174: =$G$174*K5 -> 1033774.183 | L174: =$G$174*L5 -> 0 | M174: =$G$174*M5 -> 0 | N174: =$G$174*N5 -> 0 | O174: =$G$174*O5 -> 0 | P174: =$G$174*P5 -> 0 | Q174: =$G$174*Q5 -> 0 | R174: =$G$174*R5 -> 0 | S174: =$G$174*S5 -> 0 | T174: =$G$174*T5 -> 0 | U174: =$G$174*U5 -> 0 | V174: =$G$174*V5 -> 0 | W174: =$G$174*W5 -> 0 | X174: =$G$174*X5 -> 0 | Y174: =$G$174*Y5 -> 0 | Z174: =$G$174*Z5 -> 0 | AA174: =$G$174*AA5 -> 0 | AB174: =$G$174*AB5 -> 0 | AC174: =$G$174*AC5 -> 0 | AD174: =$G$174*AD5 -> 0 | AE174: =$G$174*AE5 -> 0 | AF174: =$G$174*AF5 -> 0 | AG174: =$G$174*AG5 -> 0 | AH174: =$G$174*AH5 -> 0 | AI174: =$G$174*AI5 -> 0 | AJ174: =$G$174*AJ5 -> 0 | AK174: =$G$174*AK5 -> 0 | AL174: =$G$174*AL5 -> 0 | AM174: =$G$174*AM5 -> 0 | AN174: =$G$174*AN5 -> 0 | AO174: =$G$174*AO5 -> 0 | AP174: =$G$174*AP5 -> 0 | AQ174: =$G$174*AQ5 -> 0 | AR174: =$G$174*AR5 -> 0 | AS174: =$G$174*AS5 -> 0 | AT174: =$G$174*AT5 -> 0 | AU174: =$G$174*AU5 -> 0 | AV174: =$G$174*AV5 -> 0 | AW174: =$G$174*AW5 -> 0 | AX174: =$G$174*AX5 -> 0 | AY174: =$G$174*AY5 -> 0 | AZ174: =$G$174*AZ5 -> 0 | BA174: =$G$174*BA5 -> 0 | BB174: =$G$174*BB5 -> 0 | BC174: =$G$174*BC5 -> 0 | BD174: =$G$174*BD5 -> 0 | BE174: =$G$174*BE5 -> 0 | BF174: =$G$174*BF5 -> 0 | BG174: =$G$174*BG5 -> 0 | BH174: =$G$174*BH5 -> 0 | BI174: =$G$174*BI5 -> 0 | BJ174: =$G$174*BJ5 -> 0 | BK174: =$G$174*BK5 -> 0 | BL174: =$G$174*BL5 -> 0 | BM174: =$G$174*BM5 -> 0 | BN174: =$G$174*BN5 -> 0 | BO174: =$G$174*BO5 -> 0 | BP174: =$G$174*BP5 -> 0 | BQ174: =$G$174*BQ5 -> 0 | BR174: =$G$174*BR5 -> 0 | BS174: =$G$174*BS5 -> 0 | BT174: =$G$174*BT5 -> 0 | BU174: =$G$174*BU5 -> 0 | BV174: =$G$174*BV5 -> 0 | BW174: =$G$174*BW5 -> 0 | BX174: =$G$174*BX5 -> 0 | BY174: =$G$174*BY5 -> 0 | BZ174: =$G$174*BZ5 -> 0 | CA174: =$G$174*CA5 -> 0 | CB174: =$G$174*CB5 -> 0
D175: Net Equity Invested | K175: =K172-K173-K174 -> 42974391.24 | L175: =L172-L173-L174 -> 0 | M175: 0 | N175: 0 | O175: 0 | P175: 0 | Q175: 0 | R175: 0 | S175: 0 | T175: 0 | U175: 0 | V175: 0 | W175: 0 | X175: 0 | Y175: 0 | Z175: 0 | AA175: 0 | AB175: 0 | AC175: 0 | AD175: 0 | AE175: 0 | AF175: 0 | AG175: 0 | AH175: 0 | AI175: 0 | AJ175: 0 | AK175: 0 | AL175: 0 | AM175: 0 | AN175: 0 | AO175: 0 | AP175: 0 | AQ175: 0 | AR175: 0 | AS175: 0 | AT175: 0 | AU175: 0 | AV175: 0 | AW175: 0 | AX175: 0 | AY175: 0 | AZ175: 0 | BA175: 0 | BB175: 0 | BC175: 0 | BD175: 0 | BE175: 0 | BF175: 0 | BG175: 0 | BH175: 0 | BI175: 0 | BJ175: 0 | BK175: 0 | BL175: 0 | BM175: 0 | BN175: 0 | BO175: 0 | BP175: 0 | BQ175: 0 | BR175: 0 | BS175: 0 | BT175: 0 | BU175: 0 | BV175: 0 | BW175: 0 | BX175: =BX172-BX173-BX174 -> 0 | BY175: 0 | BZ175: 0 | CA175: 0 | CB175: 0
D177: Equity Cash Flow | K177: =K170-K175 -> -42974391.24 | L177: =L170-L175 -> 1100298.072 | M177: 1119609.335 | N177: 1125895.536 | O177: 1172275.991 | P177: 1178879.896 | Q177: 1227406.103 | R177: 1241539.213 | S177: 1285115.372 | T177: 1292402.426 | U177: 1345524.978 | V177: 1353179.05 | W177: 1408761.836 | X177: 1416801.001 | Y177: 1474958.878 | Z177: 1492004.972 | AA177: 1544255.332 | AB177: 1553122.495 | AC177: 1616797.029 | AD177: 1626109.002 | AE177: 1692736.716 | AF177: 1702515.387 | AG177: 1772234.388 | AH177: 1792791.658 | AI177: 1855457.635 | AJ177: 1866239.714 | AK177: 1942582.004 | AL177: 1953903.101 | AM177: 2033791.383 | AN177: 2045678.007 | AO177: 2129278.399 | AP177: 8308549.833 | AQ177: 8598515.795 | AR177: 8649053.891 | AS177: 9002193.724 | AT177: 9055250.976 | AU177: 9424818.877 | AV177: 9480519.127 | AW177: 9867286.039 | AX177: 9982589.999 | AY177: 10330532.6 | AZ177: 10391914.98 | BA177: 10815540.6 | BB177: 10879975.18 | BC177: 11323338.9 | BD177: 11390975.68 | BE177: 11855005.38 | BF177: 11994047.84 | BG177: 12411669.35 | BH177: 12486190.41 | BI177: 12994514 | BJ177: 9.587961097e-46 | BK177: 1.309826986e-41 | BL177: 2.952388155e-38 | BM177: 2.62560521e-35 | BN177: 1.226156915e-32 | BO177: 3.468933841e-30 | BP177: 6.465149681e-28 | BQ177: 8.36765952e-26 | BR177: 7.775998177e-24 | BS177: 5.286804511e-22 | BT177: 2.641966663e-20 | BU177: 9.557214545e-19 | BV177: 2.35770388e-17 | BW177: 3.097917407e-16 | BX177: =BX170-BX175 -> -2.382113005e-15 | BY177: -2.282811365e-13 | BZ177: -5.933490002e-12 | CA177: -9.262806771e-11 | CB177: -9.379196559e-10
D178: Equity IRR | F178: =XIRR(K177:CB177,K4:CB4) -> 0.1160452545
D180: Target IRR | F180: =InputC!F57 -> 0.08
D181: NPV at Target IRR | F181: =XNPV(F180,K177:CB177,K4:CB4) -> 26079652.31 | G181: NPV
